Unique reference number ,Vendor Name,Subj Mapping 1 (Higher Level),Subj Mapping 2 (Lower Level),Subjective Description,Net Amount,Capital/Revenue,GL Posting Date,Directorate
WC46-0001,11KBW,Supplies & Services,Other Supplies & Services,63116-EXTERNAL BARRISTERS-SERVICES-FEES,"1,850.00",Revenue,17/07/2014,Neighbourhood Services
WC46-0002,1ST HAND CARE LTD,Third Party Payments,Private Contractor Fees,73372-DOMICILIARY CARE,"9,498.60",Revenue,18/07/2014,Social Care & Inclusion
WC46-0003,A 1 EAGLE TAXIS,Transport,Hire,52000-WITH DRIVER-HIRE OF VEHICLES,805.00,Revenue,07/07/2014,Childrens
WC46-0004,A 2 Z TAXIS (A2Z CARS),Transport,Hire,52000-WITH DRIVER-HIRE OF VEHICLES,336.00,Revenue,18/07/2014,Childrens
WC46-0005,A 2 Z TAXIS (A2Z CARS),Transport,Hire,52000-WITH DRIVER-HIRE OF VEHICLES,336.00,Revenue,18/07/2014,Childrens
WC46-0006,A 2 Z TAXIS (A2Z CARS),Transport,Hire,52000-WITH DRIVER-HIRE OF VEHICLES,336.00,Revenue,18/07/2014,Childrens
WC46-0007,A 2 Z TAXIS (A2Z CARS),Transport,Hire,52000-WITH DRIVER-HIRE OF VEHICLES,372.33,Revenue,18/07/2014,Childrens
WC46-0008,A 2 Z TAXIS (A2Z CARS),Transport,Hire,52000-WITH DRIVER-HIRE OF VEHICLES,399.00,Revenue,18/07/2014,Childrens
WC46-0009,A 2 Z TAXIS (A2Z CARS),Transport,Hire,52000-WITH DRIVER-HIRE OF VEHICLES,504.00,Revenue,18/07/2014,Childrens
WC46-0010,A 2 Z TAXIS (A2Z CARS),Transport,Hire,52000-WITH DRIVER-HIRE OF VEHICLES,588.00,Revenue,18/07/2014,Childrens
WC46-0011,A 2 Z TAXIS (A2Z CARS),Transport,Hire,52000-WITH DRIVER-HIRE OF VEHICLES,630.00,Revenue,18/07/2014,Childrens
WC46-0012,A 2 Z TAXIS (A2Z CARS),Transport,Hire,52000-WITH DRIVER-HIRE OF VEHICLES,630.00,Revenue,18/07/2014,Childrens
WC46-0013,A 2 Z TAXIS (A2Z CARS),Transport,Hire,52000-WITH DRIVER-HIRE OF VEHICLES,840.00,Revenue,18/07/2014,Childrens
WC46-0014,A 2 Z TAXIS (A2Z CARS),Transport,Hire,52000-WITH DRIVER-HIRE OF VEHICLES,840.00,Revenue,18/07/2014,Childrens
WC46-0015,A 2 Z TAXIS (A2Z CARS),Transport,Hire,52000-WITH DRIVER-HIRE OF VEHICLES,"1,015.98",Revenue,18/07/2014,Childrens
WC46-0016,A 2 Z TAXIS (A2Z CARS),Transport,Hire,52000-WITH DRIVER-HIRE OF VEHICLES,"1,305.36",Revenue,18/07/2014,Childrens
WC46-0017,REDACTED,Supplies & Services,"Equip,Furniture & Materials",60006-NEW-FURNITURE & EQUIPMENT,504.30,Revenue,02/07/2014,Neighbourhood Services
WC46-0018,REDACTED,Supplies & Services,"Equip,Furniture & Materials",60006-NEW-FURNITURE & EQUIPMENT,636.10,Revenue,07/07/2014,Neighbourhood Services
WC46-0019,A D T FIRE AND SECURITY PLC,Premises,Premises-Repairs & Maintenance,"40000-REPAIRS,ALTERATIONS & MAINTENANCE-PREM",258.00,Revenue,01/07/2014,Regeneration
WC46-0020,A D T FIRE AND SECURITY PLC,Supplies & Services,"Equip,Furniture & Materials",60008-MAINTENANCE-FURNITURE & EQUIPMENT,299.64,Revenue,01/07/2014,Childrens
WC46-0021,A D T FIRE AND SECURITY PLC,Supplies & Services,"Equip,Furniture & Materials",60008-MAINTENANCE-FURNITURE & EQUIPMENT,350.60,Revenue,02/07/2014,Social Care & Inclusion
WC46-0022,A D T FIRE AND SECURITY PLC,Third Party Payments,Private Contractor Fees,73025-PROFESSIONAL SERVICES-PRIV CONTRACTOR & OTHER AGENCIES,386.04,Revenue,18/07/2014,Regeneration
WC46-0023,A D T FIRE AND SECURITY PLC,Supplies & Services,"Equip,Furniture & Materials",60008-MAINTENANCE-FURNITURE & EQUIPMENT,429.99,Revenue,03/07/2014,Neighbourhood Services
WC46-0024,A D T FIRE AND SECURITY PLC,Premises,Premises-Repairs & Maintenance,"40000-REPAIRS,ALTERATIONS & MAINTENANCE-PREM",431.15,Revenue,10/07/2014,Regeneration
WC46-0025,A D T FIRE AND SECURITY PLC,Premises,Premises-Repairs & Maintenance,40015-ALARM CALL OUTS-OP MTCE,440.74,Revenue,17/07/2014,Childrens
WC46-0026,A D T FIRE AND SECURITY PLC,Supplies & Services,"Equip,Furniture & Materials",60008-MAINTENANCE-FURNITURE & EQUIPMENT,474.92,Revenue,14/07/2014,Childrens
WC46-0027,A D T FIRE AND SECURITY PLC,Third Party Payments,Private Contractor Fees,73025-PROFESSIONAL SERVICES-PRIV CONTRACTOR & OTHER AGENCIES,693.63,Revenue,11/07/2014,Regeneration
WC46-0028,A D T FIRE AND SECURITY PLC,Third Party Payments,Private Contractor Fees,73025-PROFESSIONAL SERVICES-PRIV CONTRACTOR & OTHER AGENCIES,721.92,Revenue,03/07/2014,Regeneration
WC46-0029,A D T FIRE AND SECURITY PLC,Third Party Payments,Private Contractor Fees,73025-PROFESSIONAL SERVICES-PRIV CONTRACTOR & OTHER AGENCIES,976.44,Revenue,15/07/2014,Regeneration
WC46-0030,A DUNFORD & SON,Premises,Premises-Repairs & Maintenance,41001-GROUNDS MAINTENANCE,900.00,Revenue,07/07/2014,Childrens
WC46-0031,A F BLAKEMORE & SON LTD,Supplies & Services,Provisions,61018-DRINKS-PROVISIONS,263.60,Revenue,07/07/2014,Neighbourhood Services
WC46-0032,A F BLAKEMORE & SON LTD,Supplies & Services,Provisions,61016-FOOD AND BEVERAGES-PROVISIONS,269.35,Revenue,14/07/2014,Social Care & Inclusion
WC46-0033,A F BLAKEMORE & SON LTD,Supplies & Services,Provisions,61009-BEVERAGES-PROVISIONS,301.79,Revenue,07/07/2014,Neighbourhood Services
WC46-0034,A F BLAKEMORE & SON LTD,Supplies & Services,"Equip,Furniture & Materials",60006-NEW-FURNITURE & EQUIPMENT,314.43,Revenue,21/07/2014,Neighbourhood Services
WC46-0035,A F BLAKEMORE & SON LTD,Supplies & Services,Provisions,61305-CATERING,357.53,Revenue,23/07/2014,Neighbourhood Services
WC46-0036,A F BLAKEMORE & SON LTD,Supplies & Services,Provisions,61006-FRUIT & VEGETABLES OTHER-PROVISIONS,382.46,Revenue,16/07/2014,Social Care & Inclusion
WC46-0037,A F BLAKEMORE & SON LTD,Supplies & Services,Provisions,61006-FRUIT & VEGETABLES OTHER-PROVISIONS,385.22,Revenue,21/07/2014,Social Care & Inclusion
WC46-0038,A F BLAKEMORE & SON LTD,Supplies & Services,"Equip,Furniture & Materials",60006-NEW-FURNITURE & EQUIPMENT,422.45,Revenue,22/07/2014,Neighbourhood Services
WC46-0039,A F BLAKEMORE & SON LTD,Supplies & Services,Provisions,61305-CATERING,556.40,Revenue,23/07/2014,Neighbourhood Services
WC46-0040,A F BLAKEMORE & SON LTD,Supplies & Services,Provisions,61006-FRUIT & VEGETABLES OTHER-PROVISIONS,670.96,Revenue,01/07/2014,Social Care & Inclusion
WC46-0041,A F BLAKEMORE & SON LTD,Supplies & Services,Provisions,61305-CATERING,742.63,Revenue,25/07/2014,Social Care & Inclusion
WC46-0042,A F BLAKEMORE & SON LTD,Supplies & Services,Provisions,61018-DRINKS-PROVISIONS,"1,761.78",Revenue,16/07/2014,Neighbourhood Services
WC46-0043,REDACTED,Third Party Payments,Private Contractor Fees,74006-HOLIDAY/CHRISTMAS ALLOWANCE-FOSTER CARERS-OTH AGENCY PROVISION,333.92,Revenue,07/07/2014,Childrens
WC46-0044,REDACTED,Supplies & Services,Other Supplies & Services,62523-EVENTS,250.00,Revenue,04/07/2014,Neighbourhood Services
WC46-0045,REDACTED,Supplies & Services,Other Supplies & Services,62523-EVENTS,250.00,Revenue,04/07/2014,Neighbourhood Services
WC46-0046,A JAM LOCKSMITH'S,Third Party Payments,Private Contractor Fees,73025-PROFESSIONAL SERVICES-PRIV CONTRACTOR & OTHER AGENCIES,350.00,Revenue,07/07/2014,Regeneration
WC46-0047,REDACTED,Supplies & Services,Other Supplies & Services,62515-MISCELLANEOUS SUPPLIES,896.24,Revenue,21/07/2014,Childrens
WC46-0048,REDACTED,Third Party Payments,Private Contractor Fees,74006-HOLIDAY/CHRISTMAS ALLOWANCE-FOSTER CARERS-OTH AGENCY PROVISION,968.32,Revenue,21/07/2014,Childrens
WC46-0049,A SOCCI,Supplies & Services,Other Supplies & Services,62523-EVENTS,250.00,Revenue,14/07/2014,Neighbourhood Services
WC46-0050,A SOCCI,Supplies & Services,Other Supplies & Services,62523-EVENTS,250.00,Revenue,14/07/2014,Neighbourhood Services
WC46-0051,A1 ABLEWELL TAXIS,Transport,Hire,52000-WITH DRIVER-HIRE OF VEHICLES,276.00,Revenue,04/07/2014,Childrens
WC46-0052,A1 ABLEWELL TAXIS,Transport,Hire,52000-WITH DRIVER-HIRE OF VEHICLES,480.00,Revenue,04/07/2014,Childrens
WC46-0053,A1 ABLEWELL TAXIS,Transport,Hire,52000-WITH DRIVER-HIRE OF VEHICLES,580.00,Revenue,04/07/2014,Childrens
WC46-0054,A1 EXPRESS TAXIS,Transport,Hire,52000-WITH DRIVER-HIRE OF VEHICLES,960.00,Revenue,02/07/2014,Childrens
WC46-0055,A1 EXPRESS TAXIS,Transport,Hire,52000-WITH DRIVER-HIRE OF VEHICLES,"1,200.00",Revenue,15/07/2014,Childrens
WC46-0056,A1 PINFOLD TAXIS & ABA CARS,Transport,Hire,52000-WITH DRIVER-HIRE OF VEHICLES,272.00,Revenue,04/07/2014,Childrens
WC46-0057,A1 PINFOLD TAXIS & ABA CARS,Transport,Hire,52000-WITH DRIVER-HIRE OF VEHICLES,304.00,Revenue,04/07/2014,Childrens
WC46-0058,A1 PINFOLD TAXIS & ABA CARS,Transport,Hire,52000-WITH DRIVER-HIRE OF VEHICLES,320.00,Revenue,04/07/2014,Childrens
WC46-0059,A1 PINFOLD TAXIS & ABA CARS,Transport,Hire,52000-WITH DRIVER-HIRE OF VEHICLES,630.00,Revenue,04/07/2014,Childrens
WC46-0060,A1 PINFOLD TAXIS & ABA CARS,Transport,Hire,52000-WITH DRIVER-HIRE OF VEHICLES,840.00,Revenue,03/07/2014,Childrens
WC46-0061,AA CARS,Transport,Hire,52000-WITH DRIVER-HIRE OF VEHICLES,501.00,Revenue,22/07/2014,Childrens
WC46-0062,AA CARS,Transport,Hire,52000-WITH DRIVER-HIRE OF VEHICLES,595.98,Revenue,22/07/2014,Childrens
WC46-0063,AA CARS,Transport,Hire,52000-WITH DRIVER-HIRE OF VEHICLES,609.00,Revenue,22/07/2014,Childrens
WC46-0064,AA CARS,Transport,Hire,52000-WITH DRIVER-HIRE OF VEHICLES,"1,170.00",Revenue,22/07/2014,Childrens
WC46-0065,AAA BEE JAY TRAVEL,Transport,Hire,52000-WITH DRIVER-HIRE OF VEHICLES,250.00,Revenue,03/07/2014,Childrens
WC46-0066,AAA BEE JAY TRAVEL,Transport,Hire,52000-WITH DRIVER-HIRE OF VEHICLES,250.00,Revenue,03/07/2014,Childrens
WC46-0067,AAA BEE JAY TRAVEL,Transport,Hire,52000-WITH DRIVER-HIRE OF VEHICLES,250.00,Revenue,15/07/2014,Childrens
WC46-0068,AAA BEE JAY TRAVEL,Transport,Hire,52000-WITH DRIVER-HIRE OF VEHICLES,290.00,Revenue,03/07/2014,Childrens
WC46-0069,AAA BEE JAY TRAVEL,Transport,Hire,52000-WITH DRIVER-HIRE OF VEHICLES,290.00,Revenue,03/07/2014,Childrens
WC46-0070,AAA BEE JAY TRAVEL,Transport,Hire,52000-WITH DRIVER-HIRE OF VEHICLES,290.00,Revenue,15/07/2014,Childrens
WC46-0071,AAA BEE JAY TRAVEL,Transport,Hire,52000-WITH DRIVER-HIRE OF VEHICLES,328.00,Revenue,04/07/2014,Childrens
WC46-0072,AAA BEE JAY TRAVEL,Transport,Hire,52000-WITH DRIVER-HIRE OF VEHICLES,360.00,Revenue,03/07/2014,Childrens
WC46-0073,AAA BEE JAY TRAVEL,Transport,Hire,52000-WITH DRIVER-HIRE OF VEHICLES,360.00,Revenue,03/07/2014,Childrens
WC46-0074,AAA BEE JAY TRAVEL,Transport,Hire,52000-WITH DRIVER-HIRE OF VEHICLES,360.00,Revenue,15/07/2014,Childrens
WC46-0075,AAA BEE JAY TRAVEL,Transport,Hire,52000-WITH DRIVER-HIRE OF VEHICLES,410.00,Revenue,03/07/2014,Childrens
WC46-0076,AAA BEE JAY TRAVEL,Transport,Hire,52000-WITH DRIVER-HIRE OF VEHICLES,410.00,Revenue,03/07/2014,Childrens
WC46-0077,AAA BEE JAY TRAVEL,Transport,Hire,52000-WITH DRIVER-HIRE OF VEHICLES,410.00,Revenue,15/07/2014,Childrens
WC46-0078,AAINA ASIAN WOMENS GROUP,Supplies & Services,Other Supplies & Services,63115-HIRE OF ROOM (duplicate please use 63128)-SERVICES-FEES,320.00,Revenue,02/07/2014,Neighbourhood Services
WC46-0079,AAINA ASIAN WOMENS GROUP,Supplies & Services,Other Supplies & Services,63115-HIRE OF ROOM (duplicate please use 63128)-SERVICES-FEES,480.00,Revenue,02/07/2014,Neighbourhood Services
WC46-0080,AAINA ASIAN WOMENS GROUP,Supplies & Services,Other Supplies & Services,63115-HIRE OF ROOM (duplicate please use 63128)-SERVICES-FEES,480.00,Revenue,02/07/2014,Neighbourhood Services
WC46-0081,AAINA ASIAN WOMENS GROUP,Supplies & Services,Other Supplies & Services,63115-HIRE OF ROOM (duplicate please use 63128)-SERVICES-FEES,740.00,Revenue,02/07/2014,Neighbourhood Services
WC46-0082,REDACTED,Transfer Payments,Transfer Payments,76422-DIRECT PAYMENTS TO SOCIAL SERVICES CLIENTS,345.24,Revenue,14/07/2014,Childrens
WC46-0083,ABACUS FOSTERING LTD,Third Party Payments,Private Contractor Fees,74037-INDEPENDENT FOSTER CARE-OTH AGENCY PROVISION,"3,728.70",Revenue,01/07/2014,Childrens
WC46-0084,ABACUS FOSTERING LTD,Third Party Payments,Private Contractor Fees,74037-INDEPENDENT FOSTER CARE-OTH AGENCY PROVISION,"3,852.99",Revenue,22/07/2014,Childrens
WC46-0085,REDACTED,Third Party Payments,Private Contractor Fees,74006-HOLIDAY/CHRISTMAS ALLOWANCE-FOSTER CARERS-OTH AGENCY PROVISION,639.40,Revenue,07/07/2014,Childrens
WC46-0086,ABBEY COURT NURSING & RESIDEN,Third Party Payments,Private Contractor Fees,73373-RESIDENTIAL & NURSING CARE PLACEMENTS,"1,494.00",Revenue,08/07/2014,Social Care & Inclusion
WC46-0087,ABBEY COURT NURSING & RESIDEN,Third Party Payments,Private Contractor Fees,73373-RESIDENTIAL & NURSING CARE PLACEMENTS,"1,522.44",Revenue,08/07/2014,Social Care & Inclusion
WC46-0088,ABBEY COURT NURSING & RESIDEN,Third Party Payments,Private Contractor Fees,73373-RESIDENTIAL & NURSING CARE PLACEMENTS,"1,867.50",Revenue,08/07/2014,Social Care & Inclusion
WC46-0089,ABBEY COURT NURSING & RESIDEN,Third Party Payments,Private Contractor Fees,73373-RESIDENTIAL & NURSING CARE PLACEMENTS,"1,867.50",Revenue,08/07/2014,Social Care & Inclusion
WC46-0090,ABBEY COURT NURSING & RESIDEN,Third Party Payments,Private Contractor Fees,73373-RESIDENTIAL & NURSING CARE PLACEMENTS,"1,902.55",Revenue,08/07/2014,Social Care & Inclusion
WC46-0091,ABBEY HEALTHCARE HOMES LTD,Third Party Payments,Private Contractor Fees,73373-RESIDENTIAL & NURSING CARE PLACEMENTS,560.90,Revenue,01/07/2014,Social Care & Inclusion
WC46-0092,ABBEY HEALTHCARE HOMES LTD,Third Party Payments,Private Contractor Fees,73373-RESIDENTIAL & NURSING CARE PLACEMENTS,"1,246.41",Revenue,29/07/2014,Social Care & Inclusion
WC46-0093,ABBEY HEALTHCARE HOMES LTD,Third Party Payments,Private Contractor Fees,73373-RESIDENTIAL & NURSING CARE PLACEMENTS,"1,661.88",Revenue,29/07/2014,Social Care & Inclusion
WC46-0094,ABBEY HEALTHCARE HOMES LTD,Third Party Payments,Private Contractor Fees,73373-RESIDENTIAL & NURSING CARE PLACEMENTS,"1,661.88",Revenue,29/07/2014,Social Care & Inclusion
WC46-0095,ABBEY HEALTHCARE HOMES LTD,Third Party Payments,Private Contractor Fees,73373-RESIDENTIAL & NURSING CARE PLACEMENTS,"1,661.88",Revenue,29/07/2014,Social Care & Inclusion
WC46-0096,ABBEY HEALTHCARE HOMES LTD,Third Party Payments,Private Contractor Fees,73373-RESIDENTIAL & NURSING CARE PLACEMENTS,"1,661.88",Revenue,29/07/2014,Social Care & Inclusion
WC46-0097,ABBEY HEALTHCARE HOMES LTD,Third Party Payments,Private Contractor Fees,73373-RESIDENTIAL & NURSING CARE PLACEMENTS,"1,682.70",Revenue,01/07/2014,Social Care & Inclusion
WC46-0098,ABBEY HEALTHCARE HOMES LTD,Third Party Payments,Private Contractor Fees,73373-RESIDENTIAL & NURSING CARE PLACEMENTS,"2,243.60",Revenue,01/07/2014,Social Care & Inclusion
WC46-0099,ABBEY HEALTHCARE HOMES LTD,Third Party Payments,Private Contractor Fees,73373-RESIDENTIAL & NURSING CARE PLACEMENTS,"2,243.60",Revenue,01/07/2014,Social Care & Inclusion
WC46-0100,ABBEY HEALTHCARE HOMES LTD,Third Party Payments,Private Contractor Fees,73373-RESIDENTIAL & NURSING CARE PLACEMENTS,"2,243.60",Revenue,01/07/2014,Social Care & Inclusion
WC46-0101,ABBEYMERE CARE CENTRE,Third Party Payments,Private Contractor Fees,73373-RESIDENTIAL & NURSING CARE PLACEMENTS,"1,528.87",Revenue,08/07/2014,Social Care & Inclusion
WC46-0102,ABBEYMERE CARE CENTRE,Third Party Payments,Private Contractor Fees,73373-RESIDENTIAL & NURSING CARE PLACEMENTS,"1,528.87",Revenue,29/07/2014,Social Care & Inclusion
WC46-0103,ABC DAY NURSERY (WILLENHALL) LIMITED,Supplies & Services,Other Supplies & Services,63120-CRECHE FACILITIES-SERVICES-FEES,272.00,Revenue,15/07/2014,Neighbourhood Services
WC46-0104,ABC DAY NURSERY (WILLENHALL) LIMITED,Supplies & Services,Other Supplies & Services,63120-CRECHE FACILITIES-SERVICES-FEES,294.00,Revenue,15/07/2014,Neighbourhood Services
WC46-0105,ABC DAY NURSERY (WILLENHALL) LIMITED,Supplies & Services,Other Supplies & Services,63120-CRECHE FACILITIES-SERVICES-FEES,409.60,Revenue,15/07/2014,Neighbourhood Services
WC46-0106,ABC DAY NURSERY (WILLENHALL) LIMITED,Supplies & Services,Other Supplies & Services,63120-CRECHE FACILITIES-SERVICES-FEES,441.00,Revenue,18/07/2014,Neighbourhood Services
WC46-0107,ABC DAY NURSERY (WILLENHALL) LIMITED,Supplies & Services,Other Supplies & Services,63120-CRECHE FACILITIES-SERVICES-FEES,512.00,Revenue,18/07/2014,Neighbourhood Services
WC46-0108,ABC DAY NURSERY (WILLENHALL) LIMITED,Supplies & Services,Other Supplies & Services,63120-CRECHE FACILITIES-SERVICES-FEES,634.00,Revenue,15/07/2014,Neighbourhood Services
WC46-0109,ABC DAY NURSERY (WILLENHALL) LIMITED,Third Party Payments,Grants to Other Orgs,66505-OTHER-GRANTS TO OTHER ORGS,"15,357.36",Revenue,04/07/2014,Childrens
WC46-0110,ABC DAY NURSERY (WILLENHALL) LIMITED,Third Party Payments,Grants to Other Orgs,66505-OTHER-GRANTS TO OTHER ORGS,"15,843.60",Revenue,14/07/2014,Childrens
WC46-0111,ABC FOSTERING,Third Party Payments,Private Contractor Fees,74037-INDEPENDENT FOSTER CARE-OTH AGENCY PROVISION,"3,239.50",Revenue,15/07/2014,Childrens
WC46-0112,ABC FOSTERING,Third Party Payments,Private Contractor Fees,74037-INDEPENDENT FOSTER CARE-OTH AGENCY PROVISION,"3,410.00",Revenue,15/07/2014,Childrens
WC46-0113,ABC TEACHERS LIMITED,Employees,Agency,34305-AGENCY STAFF-EMPLOYEES,300.98,Revenue,24/07/2014,Childrens
WC46-0114,ABC TEACHERS LIMITED,Third Party Payments,Grants to Other Orgs,66502-TOP UP FUNDING -GRANTS TO SCHOOLS,450.00,Revenue,17/07/2014,Childrens
WC46-0115,ABC TEACHERS LIMITED,Third Party Payments,Grants to Other Orgs,66502-TOP UP FUNDING -GRANTS TO SCHOOLS,463.96,Revenue,24/07/2014,Childrens
WC46-0116,ABC TEACHERS LIMITED,Third Party Payments,Grants to Other Orgs,66502-TOP UP FUNDING -GRANTS TO SCHOOLS,465.00,Revenue,18/07/2014,Childrens
WC46-0117,ABC TEACHERS LIMITED,Third Party Payments,Grants to Other Orgs,66502-TOP UP FUNDING -GRANTS TO SCHOOLS,579.95,Revenue,18/07/2014,Childrens
WC46-0118,ABC TEACHERS LIMITED,Third Party Payments,Grants to Other Orgs,66502-TOP UP FUNDING -GRANTS TO SCHOOLS,579.95,Revenue,18/07/2014,Childrens
WC46-0119,ABC TEACHERS LIMITED,Third Party Payments,Grants to Other Orgs,66502-TOP UP FUNDING -GRANTS TO SCHOOLS,579.95,Revenue,18/07/2014,Childrens
WC46-0120,REDACTED,Transfer Payments,Transfer Payments,76422-DIRECT PAYMENTS TO SOCIAL SERVICES CLIENTS,"2,357.99",Revenue,14/07/2014,Social Care & Inclusion
WC46-0121,ABS TAXIS (ALDRIDGE),Transport,Hire,52000-WITH DRIVER-HIRE OF VEHICLES,360.00,Revenue,03/07/2014,Childrens
WC46-0122,ABS TAXIS (ALDRIDGE),Transport,Hire,52000-WITH DRIVER-HIRE OF VEHICLES,450.00,Revenue,03/07/2014,Childrens
WC46-0123,ABS TAXIS (ALDRIDGE),Transport,Hire,52000-WITH DRIVER-HIRE OF VEHICLES,"1,140.00",Revenue,03/07/2014,Childrens
WC46-0124,ABS TAXIS (ALDRIDGE),Transport,Hire,52000-WITH DRIVER-HIRE OF VEHICLES,"1,140.00",Revenue,03/07/2014,Childrens
WC46-0125,ABU BAKR NURSERY,Third Party Payments,Grants to Other Orgs,66505-OTHER-GRANTS TO OTHER ORGS,"3,873.48",Revenue,01/07/2014,Childrens
WC46-0126,ABU BAKR NURSERY,Third Party Payments,Grants to Other Orgs,66505-OTHER-GRANTS TO OTHER ORGS,"4,180.95",Revenue,11/07/2014,Childrens
WC46-0127,ACCESS INTELLIGENCE MEDIA AND COMMUNICATION,Supplies & Services,Services,63000-PROFESSIONAL FEES AND SERVICES,500.00,Revenue,23/07/2014,Resources
WC46-0128,ACCORD HOUSING ASSOCIATION LTD#135,Third Party Payments,Private Contractor Fees,73374-SUPPORTED & OTHER ACCOMMODATION,-434.00,Revenue,22/07/2014,Social Care & Inclusion
WC46-0129,ACCORD HOUSING ASSOCIATION LTD#135,Third Party Payments,Private Contractor Fees,73372-DOMICILIARY CARE,427.39,Revenue,22/07/2014,Social Care & Inclusion
WC46-0130,ACCORD HOUSING ASSOCIATION LTD#135,Third Party Payments,Private Contractor Fees,73374-SUPPORTED & OTHER ACCOMMODATION,434.00,Revenue,01/07/2014,Social Care & Inclusion
WC46-0131,ACCORD HOUSING ASSOCIATION LTD#135,Third Party Payments,Private Contractor Fees,73374-SUPPORTED & OTHER ACCOMMODATION,550.71,Revenue,29/07/2014,Social Care & Inclusion
WC46-0132,ACCORD HOUSING ASSOCIATION LTD#135,Third Party Payments,Private Contractor Fees,73374-SUPPORTED & OTHER ACCOMMODATION,650.56,Revenue,01/07/2014,Social Care & Inclusion
WC46-0133,ACCORD HOUSING ASSOCIATION LTD#135,Third Party Payments,Private Contractor Fees,73374-SUPPORTED & OTHER ACCOMMODATION,651.00,Revenue,22/07/2014,Social Care & Inclusion
WC46-0134,ACCORD HOUSING ASSOCIATION LTD#135,Third Party Payments,Private Contractor Fees,73374-SUPPORTED & OTHER ACCOMMODATION,883.28,Revenue,01/07/2014,Social Care & Inclusion
WC46-0135,ACCORD HOUSING ASSOCIATION LTD#135,Third Party Payments,Private Contractor Fees,73374-SUPPORTED & OTHER ACCOMMODATION,975.84,Revenue,22/07/2014,Social Care & Inclusion
WC46-0136,ACCORD HOUSING ASSOCIATION LTD#135,Third Party Payments,Private Contractor Fees,73372-DOMICILIARY CARE,"1,146.08",Revenue,22/07/2014,Social Care & Inclusion
WC46-0137,ACCORD HOUSING ASSOCIATION LTD#135,Third Party Payments,Private Contractor Fees,73374-SUPPORTED & OTHER ACCOMMODATION,"1,880.53",Revenue,01/07/2014,Social Care & Inclusion
WC46-0138,ACCORD HOUSING ASSOCIATION LTD#135,Third Party Payments,Private Contractor Fees,73373-RESIDENTIAL & NURSING CARE PLACEMENTS,"4,490.79",Revenue,08/07/2014,Social Care & Inclusion
WC46-0139,ACCORD HOUSING ASSOCIATION LTD#135,Third Party Payments,Private Contractor Fees,73373-RESIDENTIAL & NURSING CARE PLACEMENTS,"4,490.79",Revenue,08/07/2014,Social Care & Inclusion
WC46-0140,ACCORD HOUSING ASSOCIATION LTD#135,Third Party Payments,Private Contractor Fees,73373-RESIDENTIAL & NURSING CARE PLACEMENTS,"4,490.79",Revenue,08/07/2014,Social Care & Inclusion
WC46-0141,ACCORD HOUSING ASSOCIATION LTD#135,Third Party Payments,Private Contractor Fees,73373-RESIDENTIAL & NURSING CARE PLACEMENTS,"4,490.79",Revenue,08/07/2014,Social Care & Inclusion
WC46-0142,ACCORD HOUSING ASSOCIATION LTD#135,Third Party Payments,Private Contractor Fees,73374-SUPPORTED & OTHER ACCOMMODATION,"6,154.40",Revenue,01/07/2014,Social Care & Inclusion
WC46-0143,ACCORD HOUSING ASSOCIATION LTD#135,Third Party Payments,Private Contractor Fees,73374-SUPPORTED & OTHER ACCOMMODATION,"6,154.40",Revenue,01/07/2014,Social Care & Inclusion
WC46-0144,ACCORD HOUSING ASSOCIATION LTD#135,Third Party Payments,Private Contractor Fees,73373-RESIDENTIAL & NURSING CARE PLACEMENTS,"6,267.69",Revenue,08/07/2014,Social Care & Inclusion
WC46-0145,ACCORD HOUSING ASSOCIATION LTD#135,Third Party Payments,Private Contractor Fees,73373-RESIDENTIAL & NURSING CARE PLACEMENTS,"6,267.69",Revenue,08/07/2014,Social Care & Inclusion
WC46-0146,ACCORD HOUSING ASSOCIATION LTD#135,Third Party Payments,Private Contractor Fees,73373-RESIDENTIAL & NURSING CARE PLACEMENTS,"6,267.69",Revenue,08/07/2014,Social Care & Inclusion
WC46-0147,ACCORD HOUSING ASSOCIATION LTD#135,Third Party Payments,Private Contractor Fees,73374-SUPPORTED & OTHER ACCOMMODATION,"11,799.00",Revenue,01/07/2014,Social Care & Inclusion
WC46-0148,ACCORD HOUSING ASSOCIATION LTD#135,Third Party Payments,Private Contractor Fees,73367-BLOCK SUBSIDY-SUPPORTING PEOPLE,"18,585.15",Revenue,07/07/2014,Social Care & Inclusion
WC46-0149,ACE CARE AGENCY,Third Party Payments,Private Contractor Fees,73372-DOMICILIARY CARE,323.76,Revenue,07/07/2014,Social Care & Inclusion
WC46-0150,ACE CARE AGENCY,Third Party Payments,Private Contractor Fees,73372-DOMICILIARY CARE,404.70,Revenue,07/07/2014,Social Care & Inclusion
WC46-0151,ACE CARE AGENCY,Third Party Payments,Private Contractor Fees,73372-DOMICILIARY CARE,519.40,Revenue,07/07/2014,Social Care & Inclusion
WC46-0152,ACE CARE AGENCY,Third Party Payments,Private Contractor Fees,73372-DOMICILIARY CARE,607.05,Revenue,07/07/2014,Social Care & Inclusion
WC46-0153,ACE CARE AGENCY,Third Party Payments,Private Contractor Fees,73372-DOMICILIARY CARE,944.98,Revenue,07/07/2014,Social Care & Inclusion
WC46-0154,ACE CARE AGENCY,Third Party Payments,Private Contractor Fees,73372-DOMICILIARY CARE,"1,250.80",Revenue,07/07/2014,Social Care & Inclusion
WC46-0155,ACE PA HIRE,Premises,Premises-Repairs & Maintenance,"40000-REPAIRS,ALTERATIONS & MAINTENANCE-PREM",350.00,Revenue,17/07/2014,Regeneration
WC46-0156,ACE RADIO CARS,Transport,Hire,52000-WITH DRIVER-HIRE OF VEHICLES,630.00,Revenue,04/07/2014,Childrens
WC46-0157,ACE RADIO CARS,Transport,Hire,52000-WITH DRIVER-HIRE OF VEHICLES,"1,050.00",Revenue,04/07/2014,Childrens
WC46-0158,ACE RADIO CARS,Transport,Hire,52000-WITH DRIVER-HIRE OF VEHICLES,"1,176.00",Revenue,04/07/2014,Childrens
WC46-0159,ACE REMOVALS,Supplies & Services,"Equip,Furniture & Materials",60104-REMOVAL OF FURNITURE,325.00,Revenue,07/07/2014,Childrens
WC46-0160,ACEPAY LTD (COTTAGE NUR HOME),Third Party Payments,Private Contractor Fees,73373-RESIDENTIAL & NURSING CARE PLACEMENTS,"1,460.40",Revenue,22/07/2014,Social Care & Inclusion
WC46-0161,ACEPAY LTD (COTTAGE NUR HOME),Third Party Payments,Private Contractor Fees,73373-RESIDENTIAL & NURSING CARE PLACEMENTS,"1,460.40",Revenue,22/07/2014,Social Care & Inclusion
WC46-0162,ACEPAY LTD (COTTAGE NUR HOME),Third Party Payments,Private Contractor Fees,73373-RESIDENTIAL & NURSING CARE PLACEMENTS,"1,460.40",Revenue,29/07/2014,Social Care & Inclusion
WC46-0163,ACEPAY LTD (COTTAGE NUR HOME),Third Party Payments,Private Contractor Fees,73373-RESIDENTIAL & NURSING CARE PLACEMENTS,"1,460.40",Revenue,29/07/2014,Social Care & Inclusion
WC46-0164,ACEPAY LTD (COTTAGE NUR HOME),Third Party Payments,Private Contractor Fees,73373-RESIDENTIAL & NURSING CARE PLACEMENTS,"1,933.16",Revenue,01/07/2014,Social Care & Inclusion
WC46-0165,ACEPAY LTD (COTTAGE NUR HOME),Third Party Payments,Private Contractor Fees,73373-RESIDENTIAL & NURSING CARE PLACEMENTS,"1,933.16",Revenue,22/07/2014,Social Care & Inclusion
WC46-0166,ACEPAY LTD (COTTAGE NUR HOME),Third Party Payments,Private Contractor Fees,73373-RESIDENTIAL & NURSING CARE PLACEMENTS,"1,933.16",Revenue,22/07/2014,Social Care & Inclusion
WC46-0167,ACEPAY LTD (COTTAGE NUR HOME),Third Party Payments,Private Contractor Fees,73373-RESIDENTIAL & NURSING CARE PLACEMENTS,"1,933.16",Revenue,22/07/2014,Social Care & Inclusion
WC46-0168,ACEPAY LTD (COTTAGE NUR HOME),Third Party Payments,Private Contractor Fees,73373-RESIDENTIAL & NURSING CARE PLACEMENTS,"1,933.16",Revenue,22/07/2014,Social Care & Inclusion
WC46-0169,ACEPAY LTD (COTTAGE NUR HOME),Third Party Payments,Private Contractor Fees,73373-RESIDENTIAL & NURSING CARE PLACEMENTS,"1,933.16",Revenue,22/07/2014,Social Care & Inclusion
WC46-0170,ACEPAY LTD (COTTAGE NUR HOME),Third Party Payments,Private Contractor Fees,73373-RESIDENTIAL & NURSING CARE PLACEMENTS,"1,933.16",Revenue,29/07/2014,Social Care & Inclusion
WC46-0171,ACEPAY LTD (COTTAGE NUR HOME),Third Party Payments,Private Contractor Fees,73373-RESIDENTIAL & NURSING CARE PLACEMENTS,"1,933.16",Revenue,29/07/2014,Social Care & Inclusion
WC46-0172,ACEPAY LTD (COTTAGE NUR HOME),Third Party Payments,Private Contractor Fees,73373-RESIDENTIAL & NURSING CARE PLACEMENTS,"1,933.16",Revenue,29/07/2014,Social Care & Inclusion
WC46-0173,ACEPAY LTD (COTTAGE NUR HOME),Third Party Payments,Private Contractor Fees,73373-RESIDENTIAL & NURSING CARE PLACEMENTS,"1,933.16",Revenue,29/07/2014,Social Care & Inclusion
WC46-0174,ACEPAY LTD (COTTAGE NUR HOME),Third Party Payments,Private Contractor Fees,73373-RESIDENTIAL & NURSING CARE PLACEMENTS,"1,933.16",Revenue,29/07/2014,Social Care & Inclusion
WC46-0175,ACEPAY LTD (COTTAGE NUR HOME),Third Party Payments,Private Contractor Fees,73373-RESIDENTIAL & NURSING CARE PLACEMENTS,"1,933.16",Revenue,29/07/2014,Social Care & Inclusion
WC46-0176,ACEPAY LTD (COTTAGE NUR HOME),Third Party Payments,Private Contractor Fees,73373-RESIDENTIAL & NURSING CARE PLACEMENTS,"1,933.16",Revenue,29/07/2014,Social Care & Inclusion
WC46-0177,ACEPAY LTD (COTTAGE NUR HOME),Third Party Payments,Private Contractor Fees,73373-RESIDENTIAL & NURSING CARE PLACEMENTS,"1,979.20",Revenue,01/07/2014,Social Care & Inclusion
WC46-0178,ACEPAY LTD (COTTAGE NUR HOME),Third Party Payments,Private Contractor Fees,73373-RESIDENTIAL & NURSING CARE PLACEMENTS,"1,979.20",Revenue,01/07/2014,Social Care & Inclusion
WC46-0179,ACEPAY LTD (COTTAGE NUR HOME),Third Party Payments,Private Contractor Fees,73373-RESIDENTIAL & NURSING CARE PLACEMENTS,"1,979.20",Revenue,22/07/2014,Social Care & Inclusion
WC46-0180,ACEPAY LTD (COTTAGE NUR HOME),Third Party Payments,Private Contractor Fees,73373-RESIDENTIAL & NURSING CARE PLACEMENTS,"1,979.20",Revenue,22/07/2014,Social Care & Inclusion
WC46-0181,ACEPAY LTD (COTTAGE NUR HOME),Third Party Payments,Private Contractor Fees,73373-RESIDENTIAL & NURSING CARE PLACEMENTS,"1,979.20",Revenue,22/07/2014,Social Care & Inclusion
WC46-0182,ACEPAY LTD (COTTAGE NUR HOME),Third Party Payments,Private Contractor Fees,73373-RESIDENTIAL & NURSING CARE PLACEMENTS,"1,979.20",Revenue,29/07/2014,Social Care & Inclusion
WC46-0183,ACEPAY LTD (COTTAGE NUR HOME),Third Party Payments,Private Contractor Fees,73373-RESIDENTIAL & NURSING CARE PLACEMENTS,"1,979.20",Revenue,29/07/2014,Social Care & Inclusion
WC46-0184,ACEPAY LTD (COTTAGE NUR HOME),Third Party Payments,Private Contractor Fees,73373-RESIDENTIAL & NURSING CARE PLACEMENTS,"1,979.20",Revenue,29/07/2014,Social Care & Inclusion
WC46-0185,ACEPAY LTD (COTTAGE NUR HOME),Third Party Payments,Private Contractor Fees,73373-RESIDENTIAL & NURSING CARE PLACEMENTS,"2,372.32",Revenue,22/07/2014,Social Care & Inclusion
WC46-0186,ACEPAY LTD (COTTAGE NUR HOME),Third Party Payments,Private Contractor Fees,73373-RESIDENTIAL & NURSING CARE PLACEMENTS,"2,372.32",Revenue,29/07/2014,Social Care & Inclusion
WC46-0187,ACIVICO LTD,Supplies & Services,Services,63248-SURVEYS & PROF SERVICES-PAYMENT TO CONTRACTOR,792.00,Revenue,29/07/2014,Regeneration
WC46-0188,ACORN CARE LTD,Third Party Payments,Private Contractor Fees,73373-RESIDENTIAL & NURSING CARE PLACEMENTS,"14,840.32",Revenue,22/07/2014,Social Care & Inclusion
WC46-0189,ACORN FOSTERING SERVICES LTD,Third Party Payments,Private Contractor Fees,74037-INDEPENDENT FOSTER CARE-OTH AGENCY PROVISION,"3,300.00",Revenue,14/07/2014,Childrens
WC46-0190,ACORN HOUSE FOSTERING SERVICES LTD,Third Party Payments,Private Contractor Fees,74037-INDEPENDENT FOSTER CARE-OTH AGENCY PROVISION,"3,343.50",Revenue,01/07/2014,Childrens
WC46-0191,ACORN HOUSE FOSTERING SERVICES LTD,Third Party Payments,Private Contractor Fees,74037-INDEPENDENT FOSTER CARE-OTH AGENCY PROVISION,"3,411.90",Revenue,01/07/2014,Childrens
WC46-0192,ACORN HOUSE FOSTERING SERVICES LTD,Third Party Payments,Private Contractor Fees,74037-INDEPENDENT FOSTER CARE-OTH AGENCY PROVISION,"3,454.95",Revenue,01/07/2014,Childrens
WC46-0193,ACORN HOUSE FOSTERING SERVICES LTD,Third Party Payments,Private Contractor Fees,74037-INDEPENDENT FOSTER CARE-OTH AGENCY PROVISION,"3,525.63",Revenue,01/07/2014,Childrens
WC46-0194,ACORNS CHILDRENS HOSPICE TRUST,Supplies & Services,Services,63000-PROFESSIONAL FEES AND SERVICES,750.00,Revenue,03/07/2014,Childrens
WC46-0195,ACORNS CHILDRENS HOSPICE TRUST,Supplies & Services,Services,63000-PROFESSIONAL FEES AND SERVICES,750.00,Revenue,11/07/2014,Childrens
WC46-0196,ACTION DEAFNESS,Supplies & Services,Services,"62521-INTERPRETATION,TRANSLATION & HUMAN AIDS TO TRANSCRIPTION",255.00,Revenue,01/07/2014,Social Care & Inclusion
WC46-0197,ACTION DIGITAL MEDIA LTD,Supplies & Services,"Printing, Stationery & Office Exp",62000-EXTERNAL PRINTING SERVICES,277.36,Revenue,21/07/2014,Neighbourhood Services
WC46-0198,ACTION DIGITAL MEDIA LTD,Supplies & Services,"Printing, Stationery & Office Exp",62000-EXTERNAL PRINTING SERVICES,518.00,Revenue,17/07/2014,Neighbourhood Services
WC46-0199,ACTION DIGITAL MEDIA LTD,Supplies & Services,"Printing, Stationery & Office Exp",62000-EXTERNAL PRINTING SERVICES,845.00,Revenue,17/07/2014,Neighbourhood Services
WC46-0200,ACTION FOR CHILDREN,Third Party Payments,Private Contractor Fees,74037-INDEPENDENT FOSTER CARE-OTH AGENCY PROVISION,"3,518.85",Revenue,15/07/2014,Childrens
WC46-0201,ACTION ON HEARING LOSS,Supplies & Services,"Equip,Furniture & Materials",60520-HEALTH & SAFETY-MATERIALS,305.96,Revenue,22/07/2014,Social Care & Inclusion
WC46-0202,ACTION ON HEARING LOSS,Third Party Payments,Private Contractor Fees,73374-SUPPORTED & OTHER ACCOMMODATION,479.28,Revenue,01/07/2014,Social Care & Inclusion
WC46-0203,ACTION ON HEARING LOSS,Third Party Payments,Private Contractor Fees,73374-SUPPORTED & OTHER ACCOMMODATION,479.28,Revenue,07/07/2014,Social Care & Inclusion
WC46-0204,ACTION ON HEARING LOSS,Third Party Payments,Private Contractor Fees,70000-SOCIAL SERVICES-FEES TO VOLUNTARY BODIES,"25,664.06",Revenue,01/07/2014,Social Care & Inclusion
WC46-0205,REDACTED,Transfer Payments,Transfer Payments,76422-DIRECT PAYMENTS TO SOCIAL SERVICES CLIENTS,487.60,Revenue,14/07/2014,Childrens
WC46-0206,REDACTED,Transfer Payments,Transfer Payments,76422-DIRECT PAYMENTS TO SOCIAL SERVICES CLIENTS,384.00,Revenue,14/07/2014,Social Care & Inclusion
WC46-0207,ADCS (ASSOCIATION OF DIRECTORS OF CHILDRENS SERVICES),Supplies & Services,Services,63000-PROFESSIONAL FEES AND SERVICES,"2,351.25",Revenue,04/07/2014,Childrens
WC46-0208,ADDACTION,Supplies & Services,Services,63000-PROFESSIONAL FEES AND SERVICES,"275,223.00",Revenue,03/07/2014,Neighbourhood Services
WC46-0209,REDACTED,Transfer Payments,Transfer Payments,76422-DIRECT PAYMENTS TO SOCIAL SERVICES CLIENTS,860.00,Revenue,14/07/2014,Social Care & Inclusion
WC46-0210,ADMIRAL SELF STORAGE LTD,Supplies & Services,Services,63000-PROFESSIONAL FEES AND SERVICES,419.32,Revenue,21/07/2014,Resources
WC46-0211,ADMIRAL SELF STORAGE LTD,Supplies & Services,Services,63000-PROFESSIONAL FEES AND SERVICES,"1,303.57",Revenue,18/07/2014,Childrens
WC46-0212,ADOPTION UK,Supplies & Services,Communications & Computing,68001-PUBLICITY & ADVERTISING (NOT STAFF ADVERTISING),550.00,Revenue,17/07/2014,Childrens
WC46-0213,ADOPTION UK,Supplies & Services,Communications & Computing,68001-PUBLICITY & ADVERTISING (NOT STAFF ADVERTISING),700.00,Revenue,17/07/2014,Childrens
WC46-0214,REDACTED,Third Party Payments,Private Contractor Fees,74006-HOLIDAY/CHRISTMAS ALLOWANCE-FOSTER CARERS-OTH AGENCY PROVISION,681.52,Revenue,07/07/2014,Childrens
WC46-0215,ADS ELECTRICAL & HIGHWAY SERVICES LTD,Supplies & Services,Services,63000-PROFESSIONAL FEES AND SERVICES,"8,400.00",Revenue,07/07/2014,Neighbourhood Services
WC46-0216,ADVANCE HEALTH CARE (UK) LTD,Employees,Agency,34305-AGENCY STAFF-EMPLOYEES,-601.80,Revenue,02/07/2014,Social Care & Inclusion
WC46-0217,ADVANCE HEALTH CARE (UK) LTD,Employees,Agency,34305-AGENCY STAFF-EMPLOYEES,-601.20,Revenue,02/07/2014,Social Care & Inclusion
WC46-0218,ADVANCE HEALTH CARE (UK) LTD,Employees,Agency,34305-AGENCY STAFF-EMPLOYEES,-588.00,Revenue,03/07/2014,Social Care & Inclusion
WC46-0219,ADVANCE HEALTH CARE (UK) LTD,Employees,Agency,34305-AGENCY STAFF-EMPLOYEES,-578.40,Revenue,03/07/2014,Social Care & Inclusion
WC46-0220,ADVANCE HEALTH CARE (UK) LTD,Employees,Agency,34305-AGENCY STAFF-EMPLOYEES,-577.80,Revenue,03/07/2014,Social Care & Inclusion
WC46-0221,ADVANCE HEALTH CARE (UK) LTD,Employees,Agency,34305-AGENCY STAFF-EMPLOYEES,-432.60,Revenue,02/07/2014,Social Care & Inclusion
WC46-0222,ADVANCE HEALTH CARE (UK) LTD,Employees,Agency,34305-AGENCY STAFF-EMPLOYEES,-289.36,Revenue,02/07/2014,Social Care & Inclusion
WC46-0223,ADVANCE HEALTH CARE (UK) LTD,Employees,Agency,34305-AGENCY STAFF-EMPLOYEES,"1,448.40",Revenue,03/07/2014,Social Care & Inclusion
WC46-0224,ADVANCE HEALTH CARE (UK) LTD,Employees,Agency,34305-AGENCY STAFF-EMPLOYEES,"6,347.25",Revenue,03/07/2014,Social Care & Inclusion
WC46-0225,ADVANCE HEALTH CARE (UK) LTD,Third Party Payments,Private Contractor Fees,73372-DOMICILIARY CARE,"6,696.44",Revenue,18/07/2014,Social Care & Inclusion
WC46-0226,ADVANCE HEALTH CARE (UK) LTD,Employees,Agency,34305-AGENCY STAFF-EMPLOYEES,"6,837.30",Revenue,03/07/2014,Social Care & Inclusion
WC46-0227,ADVANCED CHILDCARE LTD,Third Party Payments,Private Contractor Fees,74037-INDEPENDENT FOSTER CARE-OTH AGENCY PROVISION,"-1,471.36",Revenue,17/07/2014,Childrens
WC46-0228,ADVANCED CHILDCARE LTD,Third Party Payments,Private Contractor Fees,74037-INDEPENDENT FOSTER CARE-OTH AGENCY PROVISION,-609.90,Revenue,09/07/2014,Childrens
WC46-0229,ADVANCED CHILDCARE LTD,Third Party Payments,Private Contractor Fees,74037-INDEPENDENT FOSTER CARE-OTH AGENCY PROVISION,641.63,Revenue,17/07/2014,Childrens
WC46-0230,ADVANCED CHILDCARE LTD,Third Party Payments,Private Contractor Fees,74036-EXTERNAL RESIDENTIAL CARE-OTH AGENCY PROVISION,"2,571.30",Revenue,01/07/2014,Childrens
WC46-0231,ADVANCED CHILDCARE LTD,Third Party Payments,Private Contractor Fees,74036-EXTERNAL RESIDENTIAL CARE-OTH AGENCY PROVISION,"2,657.01",Revenue,21/07/2014,Childrens
WC46-0232,ADVANCED CHILDCARE LTD,Third Party Payments,Private Contractor Fees,74037-INDEPENDENT FOSTER CARE-OTH AGENCY PROVISION,"2,716.84",Revenue,10/07/2014,Childrens
WC46-0233,ADVANCED CHILDCARE LTD,Third Party Payments,Private Contractor Fees,74037-INDEPENDENT FOSTER CARE-OTH AGENCY PROVISION,"2,716.84",Revenue,10/07/2014,Childrens
WC46-0234,ADVANCED CHILDCARE LTD,Third Party Payments,Private Contractor Fees,74037-INDEPENDENT FOSTER CARE-OTH AGENCY PROVISION,"2,859.92",Revenue,10/07/2014,Childrens
WC46-0235,ADVANCED CHILDCARE LTD,Third Party Payments,Private Contractor Fees,74037-INDEPENDENT FOSTER CARE-OTH AGENCY PROVISION,"2,859.92",Revenue,10/07/2014,Childrens
WC46-0236,ADVANCED CHILDCARE LTD,Third Party Payments,Private Contractor Fees,74037-INDEPENDENT FOSTER CARE-OTH AGENCY PROVISION,"2,910.90",Revenue,10/07/2014,Childrens
WC46-0237,ADVANCED CHILDCARE LTD,Third Party Payments,Private Contractor Fees,74037-INDEPENDENT FOSTER CARE-OTH AGENCY PROVISION,"2,910.90",Revenue,17/07/2014,Childrens
WC46-0238,ADVANCED CHILDCARE LTD,Third Party Payments,Private Contractor Fees,74037-INDEPENDENT FOSTER CARE-OTH AGENCY PROVISION,"3,007.93",Revenue,10/07/2014,Childrens
WC46-0239,ADVANCED CHILDCARE LTD,Third Party Payments,Private Contractor Fees,74037-INDEPENDENT FOSTER CARE-OTH AGENCY PROVISION,"3,007.93",Revenue,10/07/2014,Childrens
WC46-0240,ADVANCED CHILDCARE LTD,Third Party Payments,Private Contractor Fees,74037-INDEPENDENT FOSTER CARE-OTH AGENCY PROVISION,"3,007.93",Revenue,10/07/2014,Childrens
WC46-0241,ADVANCED CHILDCARE LTD,Third Party Payments,Private Contractor Fees,74037-INDEPENDENT FOSTER CARE-OTH AGENCY PROVISION,"3,064.20",Revenue,10/07/2014,Childrens
WC46-0242,ADVANCED CHILDCARE LTD,Third Party Payments,Private Contractor Fees,74037-INDEPENDENT FOSTER CARE-OTH AGENCY PROVISION,"3,064.20",Revenue,17/07/2014,Childrens
WC46-0243,ADVANCED CHILDCARE LTD,Third Party Payments,Private Contractor Fees,74037-INDEPENDENT FOSTER CARE-OTH AGENCY PROVISION,"3,166.34",Revenue,10/07/2014,Childrens
WC46-0244,ADVANCED CHILDCARE LTD,Third Party Payments,Private Contractor Fees,74037-INDEPENDENT FOSTER CARE-OTH AGENCY PROVISION,"3,166.34",Revenue,10/07/2014,Childrens
WC46-0245,ADVANCED CHILDCARE LTD,Third Party Payments,Private Contractor Fees,74037-INDEPENDENT FOSTER CARE-OTH AGENCY PROVISION,"3,166.34",Revenue,10/07/2014,Childrens
WC46-0246,ADVANCED CHILDCARE LTD,Third Party Payments,Private Contractor Fees,74037-INDEPENDENT FOSTER CARE-OTH AGENCY PROVISION,"3,210.00",Revenue,15/07/2014,Childrens
WC46-0247,ADVANCED CHILDCARE LTD,Third Party Payments,Private Contractor Fees,74036-EXTERNAL RESIDENTIAL CARE-OTH AGENCY PROVISION,"13,877.10",Revenue,01/07/2014,Childrens
WC46-0248,ADVANCED CHILDCARE LTD,Third Party Payments,Private Contractor Fees,74036-EXTERNAL RESIDENTIAL CARE-OTH AGENCY PROVISION,"14,339.67",Revenue,21/07/2014,Childrens
WC46-0249,ADVANCED CONTRACTS (MIDLANDS) LTD,Premises,Premises-Repairs & Maintenance,"40000-REPAIRS,ALTERATIONS & MAINTENANCE-PREM",251.25,Revenue,11/07/2014,Regeneration
WC46-0250,ADVANCED CONTRACTS (MIDLANDS) LTD,Third Party Payments,Private Contractor Fees,73025-PROFESSIONAL SERVICES-PRIV CONTRACTOR & OTHER AGENCIES,332.00,Revenue,17/07/2014,Regeneration
WC46-0251,ADVANCED CONTRACTS (MIDLANDS) LTD,Premises,Premises-Repairs & Maintenance,"40000-REPAIRS,ALTERATIONS & MAINTENANCE-PREM",480.00,Revenue,22/07/2014,Regeneration
WC46-0252,ADVANCED CONTRACTS (MIDLANDS) LTD,Premises,Premises-Repairs & Maintenance,"40000-REPAIRS,ALTERATIONS & MAINTENANCE-PREM",730.00,Revenue,22/07/2014,Regeneration
WC46-0253,ADVANCED CONTRACTS (MIDLANDS) LTD,Premises,Premises-Repairs & Maintenance,"40000-REPAIRS,ALTERATIONS & MAINTENANCE-PREM",750.00,Revenue,22/07/2014,Regeneration
WC46-0254,ADVANCED CONTRACTS (MIDLANDS) LTD,Premises,Premises-Repairs & Maintenance,"40000-REPAIRS,ALTERATIONS & MAINTENANCE-PREM",921.00,Revenue,11/07/2014,Regeneration
WC46-0255,ADVANCED CONTRACTS (MIDLANDS) LTD,Third Party Payments,Private Contractor Fees,73025-PROFESSIONAL SERVICES-PRIV CONTRACTOR & OTHER AGENCIES,936.76,Revenue,02/07/2014,Regeneration
WC46-0256,ADVANCED CONTRACTS (MIDLANDS) LTD,Premises,Premises-Repairs & Maintenance,"40000-REPAIRS,ALTERATIONS & MAINTENANCE-PREM",980.00,Revenue,22/07/2014,Regeneration
WC46-0257,ADVANCED DIGITAL IMAGING,Supplies & Services,"Printing, Stationery & Office Exp",62008-OUTWORK-PRINT ROOM,373.00,Revenue,09/07/2014,Resources
WC46-0258,ADVENTURE ACTIVITY ASSOCIATES LTD,Supplies & Services,Services,63000-PROFESSIONAL FEES AND SERVICES,400.00,Revenue,24/07/2014,Neighbourhood Services
WC46-0259,ADVENTURELAND DAY NURSERY,Supplies & Services,Other Supplies & Services,63120-CRECHE FACILITIES-SERVICES-FEES,450.00,Revenue,11/07/2014,Childrens
WC46-0260,ADVENTURELAND DAY NURSERY,Supplies & Services,Other Supplies & Services,63120-CRECHE FACILITIES-SERVICES-FEES,450.00,Revenue,11/07/2014,Childrens
WC46-0261,ADVENTURELAND DAY NURSERY,Third Party Payments,Grants to Other Orgs,66505-OTHER-GRANTS TO OTHER ORGS,"5,605.41",Revenue,14/07/2014,Childrens
WC46-0262,ADVENTURELAND DAY NURSERY,Third Party Payments,Grants to Other Orgs,66505-OTHER-GRANTS TO OTHER ORGS,"9,211.93",Revenue,04/07/2014,Childrens
WC46-0263,ADVOCACY MATTERS LIMITED,Third Party Payments,Private Contractor Fees,70000-SOCIAL SERVICES-FEES TO VOLUNTARY BODIES,"13,429.00",Revenue,01/07/2014,Social Care & Inclusion
WC46-0264,ADVOCACY MATTERS LIMITED,Third Party Payments,Private Contractor Fees,70000-SOCIAL SERVICES-FEES TO VOLUNTARY BODIES,"20,120.00",Revenue,01/07/2014,Social Care & Inclusion
WC46-0265,ADVOCACY MATTERS LIMITED,Third Party Payments,Private Contractor Fees,70000-SOCIAL SERVICES-FEES TO VOLUNTARY BODIES,"22,560.75",Revenue,01/07/2014,Social Care & Inclusion
WC46-0266,AEBI SCHMIDT UK LIMITED,Supplies & Services,"Equip,Furniture & Materials",60500-GENERAL MATERIALS,271.48,Revenue,16/07/2014,Neighbourhood Services
WC46-0267,AECOM LIMITED,Capital,Capital,01006-SITE WORKS MAIN CONTRACTORS,"4,610.55",Capital,21/07/2014,Regeneration
WC46-0268,AGE UK TRAINING,Third Party Payments,Grants to Other Orgs,65500-GRANTS TO ASSOCIATIONS,"6,384.58",Revenue,10/07/2014,Neighbourhood Services
WC46-0269,AGGORA TECHNICAL LTD,Supplies & Services,"Printing, Stationery & Office Exp",63500-POSTAGES AND COURIER SERVICES,59.00,Revenue,02/07/2014,Neighbourhood Services
WC46-0270,AGGORA TECHNICAL LTD,Supplies & Services,"Printing, Stationery & Office Exp",63500-POSTAGES AND COURIER SERVICES,59.00,Revenue,02/07/2014,Neighbourhood Services
WC46-0271,AGGORA TECHNICAL LTD,Supplies & Services,"Printing, Stationery & Office Exp",63500-POSTAGES AND COURIER SERVICES,59.00,Revenue,02/07/2014,Neighbourhood Services
WC46-0272,AGGORA TECHNICAL LTD,Supplies & Services,"Printing, Stationery & Office Exp",63500-POSTAGES AND COURIER SERVICES,59.00,Revenue,02/07/2014,Neighbourhood Services
WC46-0273,AGGORA TECHNICAL LTD,Supplies & Services,"Printing, Stationery & Office Exp",63500-POSTAGES AND COURIER SERVICES,59.00,Revenue,09/07/2014,Neighbourhood Services
WC46-0274,AGGORA TECHNICAL LTD,Supplies & Services,"Printing, Stationery & Office Exp",63500-POSTAGES AND COURIER SERVICES,173.00,Revenue,09/07/2014,Neighbourhood Services
WC46-0275,AGGORA TECHNICAL LTD,Supplies & Services,"Printing, Stationery & Office Exp",63500-POSTAGES AND COURIER SERVICES,173.00,Revenue,09/07/2014,Neighbourhood Services
WC46-0276,AGGORA TECHNICAL LTD,Supplies & Services,"Equip,Furniture & Materials",60006-NEW-FURNITURE & EQUIPMENT,699.00,Revenue,28/07/2014,Neighbourhood Services
WC46-0277,AGGORA TECHNICAL LTD,Supplies & Services,"Equip,Furniture & Materials",60006-NEW-FURNITURE & EQUIPMENT,945.00,Revenue,02/07/2014,Neighbourhood Services
WC46-0278,AGGORA TECHNICAL LTD,Supplies & Services,"Equip,Furniture & Materials",60006-NEW-FURNITURE & EQUIPMENT,"1,129.00",Revenue,02/07/2014,Neighbourhood Services
WC46-0279,AGGORA TECHNICAL LTD,Supplies & Services,"Equip,Furniture & Materials",60006-NEW-FURNITURE & EQUIPMENT,"1,129.00",Revenue,02/07/2014,Neighbourhood Services
WC46-0280,AGGORA TECHNICAL LTD,Supplies & Services,"Equip,Furniture & Materials",60006-NEW-FURNITURE & EQUIPMENT,"1,129.00",Revenue,09/07/2014,Neighbourhood Services
WC46-0281,AGGORA TECHNICAL LTD,Supplies & Services,"Equip,Furniture & Materials",60006-NEW-FURNITURE & EQUIPMENT,"2,034.00",Revenue,09/07/2014,Neighbourhood Services
WC46-0282,AGGORA TECHNICAL LTD,Supplies & Services,"Equip,Furniture & Materials",60006-NEW-FURNITURE & EQUIPMENT,"2,034.00",Revenue,21/07/2014,Neighbourhood Services
WC46-0283,AGGORA TECHNICAL LTD,Supplies & Services,"Equip,Furniture & Materials",60006-NEW-FURNITURE & EQUIPMENT,"2,074.00",Revenue,02/07/2014,Neighbourhood Services
WC46-0284,AGGORA TECHNICAL LTD,Supplies & Services,"Equip,Furniture & Materials",60006-NEW-FURNITURE & EQUIPMENT,"2,074.00",Revenue,02/07/2014,Neighbourhood Services
WC46-0285,AGGORA TECHNICAL LTD,Supplies & Services,"Equip,Furniture & Materials",60006-NEW-FURNITURE & EQUIPMENT,"2,871.00",Revenue,09/07/2014,Neighbourhood Services
WC46-0286,AGGORA TECHNICAL LTD,Supplies & Services,"Equip,Furniture & Materials",60006-NEW-FURNITURE & EQUIPMENT,"2,871.00",Revenue,09/07/2014,Neighbourhood Services
WC46-0287,AGGORA TECHNICAL LTD,Supplies & Services,"Equip,Furniture & Materials",60006-NEW-FURNITURE & EQUIPMENT,"3,043.00",Revenue,09/07/2014,Neighbourhood Services
WC46-0288,AGGORA TECHNICAL LTD,Supplies & Services,"Equip,Furniture & Materials",60006-NEW-FURNITURE & EQUIPMENT,"3,043.00",Revenue,09/07/2014,Neighbourhood Services
WC46-0289,AGINCARE UK LTD,Third Party Payments,Private Contractor Fees,73372-DOMICILIARY CARE,308.00,Revenue,30/07/2014,Social Care & Inclusion
WC46-0290,AGINCARE UK LTD,Third Party Payments,Private Contractor Fees,73372-DOMICILIARY CARE,308.00,Revenue,30/07/2014,Social Care & Inclusion
WC46-0291,AGINCARE UK LTD,Third Party Payments,Private Contractor Fees,73372-DOMICILIARY CARE,"1,713.60",Revenue,22/07/2014,Social Care & Inclusion
WC46-0292,AGINCARE UK LTD,Third Party Payments,Private Contractor Fees,73372-DOMICILIARY CARE,"1,713.60",Revenue,30/07/2014,Social Care & Inclusion
WC46-0293,AGINCARE UK LTD,Third Party Payments,Private Contractor Fees,73372-DOMICILIARY CARE,"1,713.60",Revenue,30/07/2014,Social Care & Inclusion
WC46-0294,REDACTED,Transfer Payments,Transfer Payments,76422-DIRECT PAYMENTS TO SOCIAL SERVICES CLIENTS,"1,882.00",Revenue,14/07/2014,Social Care & Inclusion
WC46-0295,REDACTED,Transfer Payments,Transfer Payments,76422-DIRECT PAYMENTS TO SOCIAL SERVICES CLIENTS,936.52,Revenue,14/07/2014,Social Care & Inclusion
WC46-0296,AJK TRAVEL,Transport,Hire,52000-WITH DRIVER-HIRE OF VEHICLES,360.00,Revenue,21/07/2014,Childrens
WC46-0297,AJK TRAVEL,Transport,Hire,52000-WITH DRIVER-HIRE OF VEHICLES,376.00,Revenue,18/07/2014,Childrens
WC46-0298,AJK TRAVEL,Transport,Hire,52000-WITH DRIVER-HIRE OF VEHICLES,440.00,Revenue,14/07/2014,Childrens
WC46-0299,AJK TRAVEL,Transport,Hire,52000-WITH DRIVER-HIRE OF VEHICLES,440.00,Revenue,21/07/2014,Childrens
WC46-0300,AJK TRAVEL,Transport,Hire,52000-WITH DRIVER-HIRE OF VEHICLES,450.00,Revenue,03/07/2014,Childrens
WC46-0301,AJK TRAVEL,Transport,Hire,52000-WITH DRIVER-HIRE OF VEHICLES,450.00,Revenue,07/07/2014,Childrens
WC46-0302,AJK TRAVEL,Transport,Hire,52000-WITH DRIVER-HIRE OF VEHICLES,450.00,Revenue,14/07/2014,Childrens
WC46-0303,AJK TRAVEL,Transport,Hire,52000-WITH DRIVER-HIRE OF VEHICLES,460.00,Revenue,03/07/2014,Childrens
WC46-0304,AJK TRAVEL,Transport,Hire,52000-WITH DRIVER-HIRE OF VEHICLES,460.00,Revenue,03/07/2014,Childrens
WC46-0305,AJK TRAVEL,Transport,Hire,52000-WITH DRIVER-HIRE OF VEHICLES,460.00,Revenue,07/07/2014,Childrens
WC46-0306,AJK TRAVEL,Transport,Hire,52000-WITH DRIVER-HIRE OF VEHICLES,460.00,Revenue,07/07/2014,Childrens
WC46-0307,AJK TRAVEL,Transport,Hire,52000-WITH DRIVER-HIRE OF VEHICLES,460.00,Revenue,14/07/2014,Childrens
WC46-0308,AJK TRAVEL,Transport,Hire,52000-WITH DRIVER-HIRE OF VEHICLES,460.00,Revenue,14/07/2014,Childrens
WC46-0309,AJK TRAVEL,Transport,Hire,52000-WITH DRIVER-HIRE OF VEHICLES,460.00,Revenue,18/07/2014,Childrens
WC46-0310,AJK TRAVEL,Transport,Hire,52000-WITH DRIVER-HIRE OF VEHICLES,460.00,Revenue,18/07/2014,Childrens
WC46-0311,AJK TRAVEL,Transport,Hire,52000-WITH DRIVER-HIRE OF VEHICLES,470.00,Revenue,03/07/2014,Childrens
WC46-0312,AJK TRAVEL,Transport,Hire,52000-WITH DRIVER-HIRE OF VEHICLES,470.00,Revenue,07/07/2014,Childrens
WC46-0313,AJK TRAVEL,Transport,Hire,52000-WITH DRIVER-HIRE OF VEHICLES,470.00,Revenue,14/07/2014,Childrens
WC46-0314,AJK TRAVEL,Transport,Hire,52000-WITH DRIVER-HIRE OF VEHICLES,480.00,Revenue,21/07/2014,Childrens
WC46-0315,AJK TRAVEL,Transport,Hire,52000-WITH DRIVER-HIRE OF VEHICLES,550.00,Revenue,03/07/2014,Childrens
WC46-0316,AJK TRAVEL,Transport,Hire,52000-WITH DRIVER-HIRE OF VEHICLES,550.00,Revenue,14/07/2014,Childrens
WC46-0317,AJK TRAVEL,Transport,Hire,52000-WITH DRIVER-HIRE OF VEHICLES,568.00,Revenue,18/07/2014,Childrens
WC46-0318,AJK TRAVEL,Transport,Hire,52000-WITH DRIVER-HIRE OF VEHICLES,600.00,Revenue,03/07/2014,Childrens
WC46-0319,AJK TRAVEL,Transport,Hire,52000-WITH DRIVER-HIRE OF VEHICLES,600.00,Revenue,07/07/2014,Childrens
WC46-0320,AJK TRAVEL,Transport,Hire,52000-WITH DRIVER-HIRE OF VEHICLES,600.00,Revenue,14/07/2014,Childrens
WC46-0321,AJK TRAVEL,Transport,Hire,52000-WITH DRIVER-HIRE OF VEHICLES,608.00,Revenue,18/07/2014,Childrens
WC46-0322,AJK TRAVEL,Transport,Hire,52000-WITH DRIVER-HIRE OF VEHICLES,608.00,Revenue,18/07/2014,Childrens
WC46-0323,AJK TRAVEL,Transport,Hire,52000-WITH DRIVER-HIRE OF VEHICLES,710.00,Revenue,03/07/2014,Childrens
WC46-0324,AJK TRAVEL,Transport,Hire,52000-WITH DRIVER-HIRE OF VEHICLES,710.00,Revenue,07/07/2014,Childrens
WC46-0325,AJK TRAVEL,Transport,Hire,52000-WITH DRIVER-HIRE OF VEHICLES,710.00,Revenue,14/07/2014,Childrens
WC46-0326,AJK TRAVEL,Transport,Hire,52000-WITH DRIVER-HIRE OF VEHICLES,760.00,Revenue,03/07/2014,Childrens
WC46-0327,AJK TRAVEL,Transport,Hire,52000-WITH DRIVER-HIRE OF VEHICLES,760.00,Revenue,03/07/2014,Childrens
WC46-0328,AJK TRAVEL,Transport,Hire,52000-WITH DRIVER-HIRE OF VEHICLES,760.00,Revenue,07/07/2014,Childrens
WC46-0329,AJK TRAVEL,Transport,Hire,52000-WITH DRIVER-HIRE OF VEHICLES,760.00,Revenue,07/07/2014,Childrens
WC46-0330,AJK TRAVEL,Transport,Hire,52000-WITH DRIVER-HIRE OF VEHICLES,760.00,Revenue,14/07/2014,Childrens
WC46-0331,AJK TRAVEL,Transport,Hire,52000-WITH DRIVER-HIRE OF VEHICLES,760.00,Revenue,14/07/2014,Childrens
WC46-0332,AKD TRAINING SOLUTIONS LTD,Employees,Training,30030-EXTERNAL TRAINING,"2,229.84",Revenue,01/07/2014,Resources
WC46-0333,ALBEMARLE,Supplies & Services,Services,63000-PROFESSIONAL FEES AND SERVICES,500.00,Revenue,17/07/2014,Neighbourhood Services
WC46-0334,REDACTED,Transfer Payments,Transfer Payments,76422-DIRECT PAYMENTS TO SOCIAL SERVICES CLIENTS,667.80,Revenue,14/07/2014,Social Care & Inclusion
WC46-0335,REDACTED,Transfer Payments,Transfer Payments,76422-DIRECT PAYMENTS TO SOCIAL SERVICES CLIENTS,"2,118.48",Revenue,14/07/2014,Social Care & Inclusion
WC46-0336,ALDERGROVE MANOR CARE HOME,Third Party Payments,Private Contractor Fees,73373-RESIDENTIAL & NURSING CARE PLACEMENTS,"1,784.48",Revenue,01/07/2014,Social Care & Inclusion
WC46-0337,ALDERGROVE MANOR CARE HOME,Third Party Payments,Private Contractor Fees,73373-RESIDENTIAL & NURSING CARE PLACEMENTS,"1,784.48",Revenue,29/07/2014,Social Care & Inclusion
WC46-0338,ALDRIDGE & BARONS LIMITED,Transport,Hire,52001-HIRE OF VEHICLES,413.56,Revenue,14/07/2014,Social Care & Inclusion
WC46-0339,ALDRIDGE & BARONS LIMITED,Transport,Car Allowances,53004-TAXIS-TRAVEL ALLOWANCES,418.00,Revenue,24/07/2014,Childrens
WC46-0340,ALDRIDGE & BARONS LIMITED,Transport,Car Allowances,53004-TAXIS-TRAVEL ALLOWANCES,456.00,Revenue,17/07/2014,Childrens
WC46-0341,ALDRIDGE & BARONS LIMITED,Transport,Car Allowances,53004-TAXIS-TRAVEL ALLOWANCES,462.00,Revenue,01/07/2014,Childrens
WC46-0342,ALDRIDGE & BARONS LIMITED,Supplies & Services,Services,63000-PROFESSIONAL FEES AND SERVICES,476.00,Revenue,15/07/2014,Childrens
WC46-0343,ALDRIDGE & BARONS LIMITED,Transport,Car Allowances,53004-TAXIS-TRAVEL ALLOWANCES,840.00,Revenue,21/07/2014,Childrens
WC46-0344,ALDRIDGE & BARONS LIMITED,Transport,Car Allowances,53004-TAXIS-TRAVEL ALLOWANCES,936.00,Revenue,07/07/2014,Childrens
WC46-0345,ALDRIDGE & BARONS LIMITED,Transport,Hire,52001-HIRE OF VEHICLES,"2,133.24",Revenue,14/07/2014,Social Care & Inclusion
WC46-0346,ALDRIDGE SCHOOL A SCIENCE COLLEGE.,Transfer Payments,Transfer Payments,77300-ISB-FORMULA ALLOCATION,270.00,Revenue,21/07/2014,Childrens
WC46-0347,ALDRIDGE SCHOOL A SCIENCE COLLEGE.,Transfer Payments,Transfer Payments,77300-ISB-FORMULA ALLOCATION,405.00,Revenue,21/07/2014,Childrens
WC46-0348,REDACTED,Transfer Payments,Transfer Payments,76422-DIRECT PAYMENTS TO SOCIAL SERVICES CLIENTS,335.04,Revenue,14/07/2014,Social Care & Inclusion
WC46-0349,ALEXANDRA HOUSE CARE SERVICES LTD T/A STONEBRIDGE NURSING HOME,Third Party Payments,Private Contractor Fees,73373-RESIDENTIAL & NURSING CARE PLACEMENTS,"6,960.84",Revenue,08/07/2014,Social Care & Inclusion
WC46-0350,ALEXANDRA HOUSE CARE SERVICES LTD T/A STONEBRIDGE NURSING HOME,Third Party Payments,Private Contractor Fees,73373-RESIDENTIAL & NURSING CARE PLACEMENTS,"6,960.84",Revenue,22/07/2014,Social Care & Inclusion
WC46-0351,REDACTED,Transfer Payments,Transfer Payments,76422-DIRECT PAYMENTS TO SOCIAL SERVICES CLIENTS,582.66,Revenue,14/07/2014,Childrens
WC46-0352,REDACTED,Transfer Payments,Transfer Payments,76422-DIRECT PAYMENTS TO SOCIAL SERVICES CLIENTS,854.00,Revenue,14/07/2014,Social Care & Inclusion
WC46-0353,REDACTED,Transfer Payments,Transfer Payments,76422-DIRECT PAYMENTS TO SOCIAL SERVICES CLIENTS,328.80,Revenue,14/07/2014,Social Care & Inclusion
WC46-0354,REDACTED,Third Party Payments,Private Contractor Fees,74006-HOLIDAY/CHRISTMAS ALLOWANCE-FOSTER CARERS-OTH AGENCY PROVISION,796.00,Revenue,21/07/2014,Childrens
WC46-0355,REDACTED,Supplies & Services,Other Supplies & Services,62515-MISCELLANEOUS SUPPLIES,"1,428.44",Revenue,21/07/2014,Childrens
WC46-0356,REDACTED,Third Party Payments,Grants to Other Orgs,66505-OTHER-GRANTS TO OTHER ORGS,310.44,Revenue,01/07/2014,Childrens
WC46-0357,REDACTED,Third Party Payments,Private Contractor Fees,74006-HOLIDAY/CHRISTMAS ALLOWANCE-FOSTER CARERS-OTH AGENCY PROVISION,542.80,Revenue,07/07/2014,Childrens
WC46-0358,ALLIANCE HOMECARE SERVICES,Third Party Payments,Private Contractor Fees,73372-DOMICILIARY CARE,391.16,Revenue,14/07/2014,Social Care & Inclusion
WC46-0359,ALLIANCE HOMECARE SERVICES,Third Party Payments,Private Contractor Fees,73372-DOMICILIARY CARE,426.11,Revenue,14/07/2014,Social Care & Inclusion
WC46-0360,ALLIANCE HOMECARE SERVICES,Employees,Agency,34305-AGENCY STAFF-EMPLOYEES,"2,722.15",Revenue,10/07/2014,Social Care & Inclusion
WC46-0361,ALLIANCE HOMECARE SERVICES,Employees,Agency,34305-AGENCY STAFF-EMPLOYEES,"3,257.15",Revenue,21/07/2014,Social Care & Inclusion
WC46-0362,ALLIANCE HOMECARE SERVICES,Employees,Agency,34305-AGENCY STAFF-EMPLOYEES,"3,776.40",Revenue,21/07/2014,Social Care & Inclusion
WC46-0363,ALLIANCE HOMECARE SERVICES,Third Party Payments,Private Contractor Fees,73374-SUPPORTED & OTHER ACCOMMODATION,"6,440.00",Revenue,08/07/2014,Social Care & Inclusion
WC46-0364,ALLIANCE HOMECARE SERVICES,Third Party Payments,Private Contractor Fees,73374-SUPPORTED & OTHER ACCOMMODATION,"6,440.00",Revenue,08/07/2014,Social Care & Inclusion
WC46-0365,ALLIANCE HOMECARE SERVICES,Employees,Agency,34305-AGENCY STAFF-EMPLOYEES,"13,065.30",Revenue,21/07/2014,Social Care & Inclusion
WC46-0366,ALLIANCE HOMECARE SERVICES,Employees,Agency,34305-AGENCY STAFF-EMPLOYEES,"14,292.63",Revenue,21/07/2014,Social Care & Inclusion
WC46-0367,ALLSORTS OFFICE SUPPLIES LTD,Capital,Capital,01044-PURCHASE OF FURNITURE & EQUIPMENT,"2,308.00",Capital,07/07/2014,Regeneration
WC46-0368,ALLSTAR BUSINESS SOLUTIONS LTD,Transport,Other Transport,50301-FUEL-TRANSPORT RUN COSTS,"1,521.81",Revenue,22/07/2014,Neighbourhood Services
WC46-0369,ALLSTAR BUSINESS SOLUTIONS LTD,Transport,Other Transport,50301-FUEL-TRANSPORT RUN COSTS,"1,824.39",Revenue,17/07/2014,Neighbourhood Services
WC46-0370,ALLSTAR BUSINESS SOLUTIONS LTD,Transport,Other Transport,50301-FUEL-TRANSPORT RUN COSTS,"1,870.13",Revenue,07/07/2014,Neighbourhood Services
WC46-0371,ALLSTAR BUSINESS SOLUTIONS LTD,Transport,Other Transport,50301-FUEL-TRANSPORT RUN COSTS,"1,925.38",Revenue,22/07/2014,Neighbourhood Services
WC46-0372,ALMA COURT,Third Party Payments,Private Contractor Fees,73373-RESIDENTIAL & NURSING CARE PLACEMENTS,"5,978.57",Revenue,01/07/2014,Social Care & Inclusion
WC46-0373,ALMA COURT,Third Party Payments,Private Contractor Fees,73373-RESIDENTIAL & NURSING CARE PLACEMENTS,"6,177.85",Revenue,08/07/2014,Social Care & Inclusion
WC46-0374,ALMOZENE NURSERY & CHILDRENS CENTRE,Third Party Payments,Grants to Other Orgs,66505-OTHER-GRANTS TO OTHER ORGS,"5,586.75",Revenue,04/07/2014,Childrens
WC46-0375,ALMOZENE NURSERY & CHILDRENS CENTRE,Third Party Payments,Grants to Other Orgs,66505-OTHER-GRANTS TO OTHER ORGS,"7,579.99",Revenue,14/07/2014,Childrens
WC46-0376,ALPHA HEALTH CARE LTD,Third Party Payments,Private Contractor Fees,73373-RESIDENTIAL & NURSING CARE PLACEMENTS,273.95,Revenue,29/07/2014,Social Care & Inclusion
WC46-0377,ALPHA HEALTH CARE LTD,Third Party Payments,Private Contractor Fees,73373-RESIDENTIAL & NURSING CARE PLACEMENTS,360.67,Revenue,16/07/2014,Social Care & Inclusion
WC46-0378,ALPHA HEALTH CARE LTD,Third Party Payments,Private Contractor Fees,73373-RESIDENTIAL & NURSING CARE PLACEMENTS,372.40,Revenue,16/07/2014,Social Care & Inclusion
WC46-0379,ALPHA HEALTH CARE LTD,Third Party Payments,Private Contractor Fees,73373-RESIDENTIAL & NURSING CARE PLACEMENTS,412.19,Revenue,16/07/2014,Social Care & Inclusion
WC46-0380,ALPHA HEALTH CARE LTD,Third Party Payments,Private Contractor Fees,73373-RESIDENTIAL & NURSING CARE PLACEMENTS,438.32,Revenue,16/07/2014,Social Care & Inclusion
WC46-0381,ALPHA HEALTH CARE LTD,Third Party Payments,Private Contractor Fees,73373-RESIDENTIAL & NURSING CARE PLACEMENTS,469.41,Revenue,16/07/2014,Social Care & Inclusion
WC46-0382,ALPHA HEALTH CARE LTD,Third Party Payments,Private Contractor Fees,73373-RESIDENTIAL & NURSING CARE PLACEMENTS,"1,095.30",Revenue,16/07/2014,Social Care & Inclusion
WC46-0383,ALPHA HEALTH CARE LTD,Third Party Payments,Private Contractor Fees,73373-RESIDENTIAL & NURSING CARE PLACEMENTS,"1,375.60",Revenue,16/07/2014,Social Care & Inclusion
WC46-0384,ALPHA HEALTH CARE LTD,Third Party Payments,Private Contractor Fees,73373-RESIDENTIAL & NURSING CARE PLACEMENTS,"1,375.60",Revenue,22/07/2014,Social Care & Inclusion
WC46-0385,ALPHA HEALTH CARE LTD,Third Party Payments,Private Contractor Fees,73373-RESIDENTIAL & NURSING CARE PLACEMENTS,"1,375.60",Revenue,22/07/2014,Social Care & Inclusion
WC46-0386,ALPHA HEALTH CARE LTD,Third Party Payments,Private Contractor Fees,73373-RESIDENTIAL & NURSING CARE PLACEMENTS,"1,382.00",Revenue,16/07/2014,Social Care & Inclusion
WC46-0387,ALPHA HEALTH CARE LTD,Third Party Payments,Private Contractor Fees,73373-RESIDENTIAL & NURSING CARE PLACEMENTS,"1,383.00",Revenue,16/07/2014,Social Care & Inclusion
WC46-0388,ALPHA HEALTH CARE LTD,Third Party Payments,Private Contractor Fees,73373-RESIDENTIAL & NURSING CARE PLACEMENTS,"1,460.40",Revenue,16/07/2014,Social Care & Inclusion
WC46-0389,ALPHA HEALTH CARE LTD,Third Party Payments,Private Contractor Fees,73373-RESIDENTIAL & NURSING CARE PLACEMENTS,"1,460.40",Revenue,16/07/2014,Social Care & Inclusion
WC46-0390,ALPHA HEALTH CARE LTD,Third Party Payments,Private Contractor Fees,73373-RESIDENTIAL & NURSING CARE PLACEMENTS,"1,470.60",Revenue,16/07/2014,Social Care & Inclusion
WC46-0391,ALPHA HEALTH CARE LTD,Third Party Payments,Private Contractor Fees,73373-RESIDENTIAL & NURSING CARE PLACEMENTS,"1,476.84",Revenue,16/07/2014,Social Care & Inclusion
WC46-0392,ALPHA HEALTH CARE LTD,Third Party Payments,Private Contractor Fees,73373-RESIDENTIAL & NURSING CARE PLACEMENTS,"1,476.84",Revenue,22/07/2014,Social Care & Inclusion
WC46-0393,ALPHA HEALTH CARE LTD,Third Party Payments,Private Contractor Fees,73373-RESIDENTIAL & NURSING CARE PLACEMENTS,"1,476.84",Revenue,29/07/2014,Social Care & Inclusion
WC46-0394,ALPHA HEALTH CARE LTD,Third Party Payments,Private Contractor Fees,73373-RESIDENTIAL & NURSING CARE PLACEMENTS,"1,489.60",Revenue,16/07/2014,Social Care & Inclusion
WC46-0395,ALPHA HEALTH CARE LTD,Third Party Payments,Private Contractor Fees,73373-RESIDENTIAL & NURSING CARE PLACEMENTS,"1,489.60",Revenue,16/07/2014,Social Care & Inclusion
WC46-0396,ALPHA HEALTH CARE LTD,Third Party Payments,Private Contractor Fees,73373-RESIDENTIAL & NURSING CARE PLACEMENTS,"1,489.60",Revenue,16/07/2014,Social Care & Inclusion
WC46-0397,ALPHA HEALTH CARE LTD,Third Party Payments,Private Contractor Fees,73373-RESIDENTIAL & NURSING CARE PLACEMENTS,"1,489.60",Revenue,16/07/2014,Social Care & Inclusion
WC46-0398,ALPHA HEALTH CARE LTD,Third Party Payments,Private Contractor Fees,73373-RESIDENTIAL & NURSING CARE PLACEMENTS,"1,489.60",Revenue,16/07/2014,Social Care & Inclusion
WC46-0399,ALPHA HEALTH CARE LTD,Third Party Payments,Private Contractor Fees,73373-RESIDENTIAL & NURSING CARE PLACEMENTS,"1,489.60",Revenue,16/07/2014,Social Care & Inclusion
WC46-0400,ALPHA HEALTH CARE LTD,Third Party Payments,Private Contractor Fees,73373-RESIDENTIAL & NURSING CARE PLACEMENTS,"1,489.60",Revenue,16/07/2014,Social Care & Inclusion
WC46-0401,ALPHA HEALTH CARE LTD,Third Party Payments,Private Contractor Fees,73373-RESIDENTIAL & NURSING CARE PLACEMENTS,"1,489.60",Revenue,16/07/2014,Social Care & Inclusion
WC46-0402,ALPHA HEALTH CARE LTD,Third Party Payments,Private Contractor Fees,73373-RESIDENTIAL & NURSING CARE PLACEMENTS,"1,489.60",Revenue,16/07/2014,Social Care & Inclusion
WC46-0403,ALPHA HEALTH CARE LTD,Third Party Payments,Private Contractor Fees,73373-RESIDENTIAL & NURSING CARE PLACEMENTS,"1,489.60",Revenue,16/07/2014,Social Care & Inclusion
WC46-0404,ALPHA HEALTH CARE LTD,Third Party Payments,Private Contractor Fees,73373-RESIDENTIAL & NURSING CARE PLACEMENTS,"1,489.60",Revenue,16/07/2014,Social Care & Inclusion
WC46-0405,ALPHA HEALTH CARE LTD,Third Party Payments,Private Contractor Fees,73373-RESIDENTIAL & NURSING CARE PLACEMENTS,"1,489.64",Revenue,22/07/2014,Social Care & Inclusion
WC46-0406,ALPHA HEALTH CARE LTD,Third Party Payments,Private Contractor Fees,73373-RESIDENTIAL & NURSING CARE PLACEMENTS,"1,534.12",Revenue,16/07/2014,Social Care & Inclusion
WC46-0407,ALPHA HEALTH CARE LTD,Third Party Payments,Private Contractor Fees,73373-RESIDENTIAL & NURSING CARE PLACEMENTS,"1,534.12",Revenue,16/07/2014,Social Care & Inclusion
WC46-0408,ALPHA HEALTH CARE LTD,Third Party Payments,Private Contractor Fees,73373-RESIDENTIAL & NURSING CARE PLACEMENTS,"1,534.12",Revenue,16/07/2014,Social Care & Inclusion
WC46-0409,ALPHA HEALTH CARE LTD,Third Party Payments,Private Contractor Fees,73373-RESIDENTIAL & NURSING CARE PLACEMENTS,"1,534.12",Revenue,16/07/2014,Social Care & Inclusion
WC46-0410,ALPHA HEALTH CARE LTD,Third Party Payments,Private Contractor Fees,73373-RESIDENTIAL & NURSING CARE PLACEMENTS,"1,534.12",Revenue,16/07/2014,Social Care & Inclusion
WC46-0411,ALPHA HEALTH CARE LTD,Third Party Payments,Private Contractor Fees,73373-RESIDENTIAL & NURSING CARE PLACEMENTS,"1,534.12",Revenue,16/07/2014,Social Care & Inclusion
WC46-0412,ALPHA HEALTH CARE LTD,Third Party Payments,Private Contractor Fees,73373-RESIDENTIAL & NURSING CARE PLACEMENTS,"1,534.28",Revenue,16/07/2014,Social Care & Inclusion
WC46-0413,ALPHA HEALTH CARE LTD,Third Party Payments,Private Contractor Fees,73373-RESIDENTIAL & NURSING CARE PLACEMENTS,"1,590.32",Revenue,16/07/2014,Social Care & Inclusion
WC46-0414,ALPHA HEALTH CARE LTD,Third Party Payments,Private Contractor Fees,73373-RESIDENTIAL & NURSING CARE PLACEMENTS,"2,008.20",Revenue,16/07/2014,Social Care & Inclusion
WC46-0415,ALPHA HEALTH CARE LTD,Third Party Payments,Private Contractor Fees,73373-RESIDENTIAL & NURSING CARE PLACEMENTS,"2,109.44",Revenue,16/07/2014,Social Care & Inclusion
WC46-0416,ALPHA HEALTH CARE LTD,Third Party Payments,Private Contractor Fees,73373-RESIDENTIAL & NURSING CARE PLACEMENTS,"5,156.44",Revenue,16/07/2014,Social Care & Inclusion
WC46-0417,ALPHA HEALTH CARE LTD,Third Party Payments,Private Contractor Fees,73373-RESIDENTIAL & NURSING CARE PLACEMENTS,"5,426.72",Revenue,16/07/2014,Social Care & Inclusion
WC46-0418,ALPHABIOLABS,Third Party Payments,Private Contractor Fees,73014-LEGAL FEES-PRIV CONTRACTOR FEES,281.25,Revenue,17/07/2014,Childrens
WC46-0419,ALPHABIOLABS,Third Party Payments,Private Contractor Fees,73014-LEGAL FEES-PRIV CONTRACTOR FEES,387.25,Revenue,17/07/2014,Childrens
WC46-0420,ALTODIGITAL NETWORKS LTD,Central,Internal Recharges,82012-PRINT & DESIGN CHARGES-INTERNAL,294.72,Revenue,01/07/2014,Childrens
WC46-0421,ALTODIGITAL NETWORKS LTD,Supplies & Services,"Equip,Furniture & Materials",60009-LEASING/HIRE/RENTAL-EQUIPMENT,300.00,Revenue,03/07/2014,Childrens
WC46-0422,ALTODIGITAL NETWORKS LTD,Supplies & Services,"Equip,Furniture & Materials",60004-PHOTOGRAPHIC DEVELOPMENT/PRINTING-EQUIPMENT,465.08,Revenue,29/07/2014,Social Care & Inclusion
WC46-0423,ALTODIGITAL NETWORKS LTD,Supplies & Services,"Equip,Furniture & Materials",60009-LEASING/HIRE/RENTAL-EQUIPMENT,507.72,Revenue,14/07/2014,Resources
WC46-0424,ALTODIGITAL NETWORKS LTD,Supplies & Services,"Equip,Furniture & Materials",60009-LEASING/HIRE/RENTAL-EQUIPMENT,743.06,Revenue,14/07/2014,Resources
WC46-0425,ALTODIGITAL NETWORKS LTD,Supplies & Services,"Equip,Furniture & Materials",60009-LEASING/HIRE/RENTAL-EQUIPMENT,"4,189.58",Revenue,14/07/2014,Resources
WC46-0426,ALUMWELL DAY CARE,Supplies & Services,Other Supplies & Services,63120-CRECHE FACILITIES-SERVICES-FEES,560.00,Revenue,10/07/2014,Neighbourhood Services
WC46-0427,ALUMWELLIES NURSERY,Employees,Other Staff Costs,32000-MISC FEES AND EXPENSES,990.00,Revenue,11/07/2014,Childrens
WC46-0428,ALUMWELLIES NURSERY,Third Party Payments,Grants to Other Orgs,66505-OTHER-GRANTS TO OTHER ORGS,"4,767.36",Revenue,01/07/2014,Childrens
WC46-0429,ALUMWELLIES NURSERY,Third Party Payments,Grants to Other Orgs,66505-OTHER-GRANTS TO OTHER ORGS,"6,425.46",Revenue,14/07/2014,Childrens
WC46-0430,REDACTED,Third Party Payments,Private Contractor Fees,74006-HOLIDAY/CHRISTMAS ALLOWANCE-FOSTER CARERS-OTH AGENCY PROVISION,453.20,Revenue,07/07/2014,Childrens
WC46-0431,REDACTED,Third Party Payments,Private Contractor Fees,74006-HOLIDAY/CHRISTMAS ALLOWANCE-FOSTER CARERS-OTH AGENCY PROVISION,"1,493.76",Revenue,07/07/2014,Childrens
WC46-0432,REDACTED,Supplies & Services,Other Supplies & Services,62515-MISCELLANEOUS SUPPLIES,402.42,Revenue,21/07/2014,Childrens
WC46-0433,REDACTED,Third Party Payments,Private Contractor Fees,74006-HOLIDAY/CHRISTMAS ALLOWANCE-FOSTER CARERS-OTH AGENCY PROVISION,561.32,Revenue,21/07/2014,Childrens
WC46-0434,REDACTED,Transfer Payments,Transfer Payments,76422-DIRECT PAYMENTS TO SOCIAL SERVICES CLIENTS,"2,664.01",Revenue,14/07/2014,Social Care & Inclusion
WC46-0435,REDACTED,Transfer Payments,Transfer Payments,76422-DIRECT PAYMENTS TO SOCIAL SERVICES CLIENTS,654.50,Revenue,14/07/2014,Social Care & Inclusion
WC46-0436,AMEY LG LIMITED,Supplies & Services,"Equip,Furniture & Materials",60008-MAINTENANCE-FURNITURE & EQUIPMENT,392.68,Revenue,17/07/2014,Neighbourhood Services
WC46-0437,AMEY LG LIMITED,Supplies & Services,"Equip,Furniture & Materials",60008-MAINTENANCE-FURNITURE & EQUIPMENT,417.94,Revenue,02/07/2014,Social Care & Inclusion
WC46-0438,AMEY LG LIMITED,Supplies & Services,"Equip,Furniture & Materials",60008-MAINTENANCE-FURNITURE & EQUIPMENT,597.09,Revenue,03/07/2014,Neighbourhood Services
WC46-0439,AMEY LG LIMITED,Employees,Training,30030-EXTERNAL TRAINING,740.00,Revenue,11/07/2014,Neighbourhood Services
WC46-0440,AMEY LG LIMITED,Capital,Capital,01006-SITE WORKS MAIN CONTRACTORS,"3,998.47",Capital,30/07/2014,Regeneration
WC46-0441,AMEY LG LIMITED,Third Party Payments,Private Contractor Fees,73025-PROFESSIONAL SERVICES-PRIV CONTRACTOR & OTHER AGENCIES,"6,441.70",Revenue,17/07/2014,Neighbourhood Services
WC46-0442,AMEY LG LIMITED,Third Party Payments,Private Contractor Fees,73025-PROFESSIONAL SERVICES-PRIV CONTRACTOR & OTHER AGENCIES,"8,596.39",Revenue,11/07/2014,Neighbourhood Services
WC46-0443,AMEY LG LIMITED,Third Party Payments,Private Contractor Fees,73025-PROFESSIONAL SERVICES-PRIV CONTRACTOR & OTHER AGENCIES,"18,768.89",Revenue,11/07/2014,Neighbourhood Services
WC46-0444,AMG NURSING CARE SERVICES,Supplies & Services,Services,63000-PROFESSIONAL FEES AND SERVICES,345.65,Revenue,28/07/2014,Childrens
WC46-0445,AMG NURSING CARE SERVICES,Supplies & Services,Services,63000-PROFESSIONAL FEES AND SERVICES,"1,088.88",Revenue,01/07/2014,Childrens
WC46-0446,AMG NURSING CARE SERVICES,Supplies & Services,Services,63000-PROFESSIONAL FEES AND SERVICES,"1,088.88",Revenue,28/07/2014,Childrens
WC46-0447,AMG NURSING CARE SERVICES,Supplies & Services,Services,63000-PROFESSIONAL FEES AND SERVICES,"2,161.24",Revenue,14/07/2014,Childrens
WC46-0448,AMG NURSING CARE SERVICES,Supplies & Services,Services,63000-PROFESSIONAL FEES AND SERVICES,"2,229.76",Revenue,10/07/2014,Childrens
WC46-0449,AMG NURSING CARE SERVICES,Supplies & Services,Services,63000-PROFESSIONAL FEES AND SERVICES,"2,592.72",Revenue,09/07/2014,Childrens
WC46-0450,AMG NURSING CARE SERVICES,Third Party Payments,Private Contractor Fees,73374-SUPPORTED & OTHER ACCOMMODATION,"3,484.80",Revenue,30/07/2014,Social Care & Inclusion
WC46-0451,AMG NURSING CARE SERVICES,Third Party Payments,Private Contractor Fees,73374-SUPPORTED & OTHER ACCOMMODATION,"3,498.76",Revenue,01/07/2014,Social Care & Inclusion
WC46-0452,AMG NURSING CARE SERVICES,Third Party Payments,Private Contractor Fees,73374-SUPPORTED & OTHER ACCOMMODATION,"3,525.53",Revenue,04/07/2014,Social Care & Inclusion
WC46-0453,AMG NURSING CARE SERVICES,Third Party Payments,Private Contractor Fees,73374-SUPPORTED & OTHER ACCOMMODATION,"3,676.08",Revenue,01/07/2014,Social Care & Inclusion
WC46-0454,AMG NURSING CARE SERVICES,Third Party Payments,Private Contractor Fees,73374-SUPPORTED & OTHER ACCOMMODATION,"5,304.40",Revenue,30/07/2014,Social Care & Inclusion
WC46-0455,AMG NURSING CARE SERVICES,Third Party Payments,Private Contractor Fees,73372-DOMICILIARY CARE,"6,291.80",Revenue,01/07/2014,Social Care & Inclusion
WC46-0456,AMG NURSING CARE SERVICES,Third Party Payments,Private Contractor Fees,73372-DOMICILIARY CARE,"6,762.01",Revenue,08/07/2014,Social Care & Inclusion
WC46-0457,REDACTED,Transfer Payments,Transfer Payments,76422-DIRECT PAYMENTS TO SOCIAL SERVICES CLIENTS,"1,485.40",Revenue,14/07/2014,Social Care & Inclusion
WC46-0458,REDACTED,Transfer Payments,Transfer Payments,76422-DIRECT PAYMENTS TO SOCIAL SERVICES CLIENTS,891.24,Revenue,14/07/2014,Social Care & Inclusion
WC46-0459,REDACTED,Third Party Payments,Private Contractor Fees,74006-HOLIDAY/CHRISTMAS ALLOWANCE-FOSTER CARERS-OTH AGENCY PROVISION,417.56,Revenue,07/07/2014,Childrens
WC46-0460,REDACTED,Transfer Payments,Transfer Payments,76422-DIRECT PAYMENTS TO SOCIAL SERVICES CLIENTS,569.50,Revenue,14/07/2014,Social Care & Inclusion
WC46-0461,REDACTED,Supplies & Services,Other Supplies & Services,62515-MISCELLANEOUS SUPPLIES,350.40,Revenue,21/07/2014,Childrens
WC46-0462,REDACTED,Third Party Payments,Private Contractor Fees,74006-HOLIDAY/CHRISTMAS ALLOWANCE-FOSTER CARERS-OTH AGENCY PROVISION,593.73,Revenue,21/07/2014,Childrens
WC46-0463,REDACTED,Supplies & Services,Other Supplies & Services,62515-MISCELLANEOUS SUPPLIES,"1,112.12",Revenue,21/07/2014,Childrens
WC46-0464,REDACTED,Third Party Payments,Private Contractor Fees,74006-HOLIDAY/CHRISTMAS ALLOWANCE-FOSTER CARERS-OTH AGENCY PROVISION,"1,709.47",Revenue,21/07/2014,Childrens
WC46-0465,REDACTED,Transfer Payments,Transfer Payments,76422-DIRECT PAYMENTS TO SOCIAL SERVICES CLIENTS,378.00,Revenue,14/07/2014,Social Care & Inclusion
WC46-0466,REDACTED,Supplies & Services,Other Supplies & Services,62515-MISCELLANEOUS SUPPLIES,"1,428.44",Revenue,21/07/2014,Childrens
WC46-0467,REDACTED,Third Party Payments,Private Contractor Fees,74006-HOLIDAY/CHRISTMAS ALLOWANCE-FOSTER CARERS-OTH AGENCY PROVISION,"1,800.44",Revenue,21/07/2014,Childrens
WC46-0468,REDACTED,Transfer Payments,Transfer Payments,74509-SPECIAL GUARDIANSHIP ORDERS,"3,279.37",Revenue,02/07/2014,Childrens
WC46-0469,ANDREWS ELECTRICAL LTD,Premises,Premises-Repairs & Maintenance,"40000-REPAIRS,ALTERATIONS & MAINTENANCE-PREM",250.00,Revenue,22/07/2014,Regeneration
WC46-0470,ANDREWS ELECTRICAL LTD,Capital,Capital,01006-SITE WORKS MAIN CONTRACTORS,"4,180.00",Capital,28/07/2014,Childrens
WC46-0471,ANGEL COURT RESIDENTIAL CARE HOME,Third Party Payments,Private Contractor Fees,73373-RESIDENTIAL & NURSING CARE PLACEMENTS,"1,698.49",Revenue,22/07/2014,Social Care & Inclusion
WC46-0472,ANGEL COURT RESIDENTIAL CARE HOME,Third Party Payments,Private Contractor Fees,73373-RESIDENTIAL & NURSING CARE PLACEMENTS,"1,698.49",Revenue,29/07/2014,Social Care & Inclusion
WC46-0473,ANGEL COURT RESIDENTIAL CARE HOME,Third Party Payments,Private Contractor Fees,73373-RESIDENTIAL & NURSING CARE PLACEMENTS,"1,746.14",Revenue,22/07/2014,Social Care & Inclusion
WC46-0474,ANGEL COURT RESIDENTIAL CARE HOME,Third Party Payments,Private Contractor Fees,73373-RESIDENTIAL & NURSING CARE PLACEMENTS,"1,857.25",Revenue,22/07/2014,Social Care & Inclusion
WC46-0475,REDACTED,Third Party Payments,Private Contractor Fees,74006-HOLIDAY/CHRISTMAS ALLOWANCE-FOSTER CARERS-OTH AGENCY PROVISION,"2,877.30",Revenue,07/07/2014,Childrens
WC46-0476,ANGLIA STAIRLIFTS LTD,Capital,Capital,01045-PRIVATE GRANTS,"3,915.00",Capital,01/07/2014,Resources
WC46-0477,ANGLIA STAIRLIFTS LTD,Capital,Capital,01045-PRIVATE GRANTS,"4,095.00",Capital,01/07/2014,Resources
WC46-0478,ANGLIA STAIRLIFTS LTD,Capital,Capital,01045-PRIVATE GRANTS,"4,825.00",Capital,01/07/2014,Resources
WC46-0479,ANGLIA STAIRLIFTS LTD,Capital,Capital,01045-PRIVATE GRANTS,"5,045.00",Capital,01/07/2014,Resources
WC46-0480,ANGLIA STAIRLIFTS LTD,Capital,Capital,01045-PRIVATE GRANTS,"5,165.00",Capital,10/07/2014,Resources
WC46-0481,ANGLIA STAIRLIFTS LTD,Capital,Capital,01045-PRIVATE GRANTS,"5,316.00",Capital,10/07/2014,Resources
WC46-0482,ANGLIA STAIRLIFTS LTD,Capital,Capital,01045-PRIVATE GRANTS,"5,335.00",Capital,30/07/2014,Resources
WC46-0483,ANGLIA STAIRLIFTS LTD,Capital,Capital,01045-PRIVATE GRANTS,"5,421.00",Capital,01/07/2014,Resources
WC46-0484,ANIMALMANIA,Supplies & Services,Other Supplies & Services,62515-MISCELLANEOUS SUPPLIES,550.00,Revenue,28/07/2014,Regeneration
WC46-0485,REDACTED,Supplies & Services,Other Supplies & Services,62515-MISCELLANEOUS SUPPLIES,459.44,Revenue,21/07/2014,Childrens
WC46-0486,REDACTED,Third Party Payments,Private Contractor Fees,74006-HOLIDAY/CHRISTMAS ALLOWANCE-FOSTER CARERS-OTH AGENCY PROVISION,"1,073.28",Revenue,21/07/2014,Childrens
WC46-0487,REDACTED,Transfer Payments,Transfer Payments,76422-DIRECT PAYMENTS TO SOCIAL SERVICES CLIENTS,"1,431.00",Revenue,14/07/2014,Social Care & Inclusion
WC46-0488,REDACTED,Supplies & Services,Other Supplies & Services,64008-OUTINGS-EXPENSES,19.00,Revenue,04/07/2014,Social Care & Inclusion
WC46-0489,REDACTED,Third Party Payments,Private Contractor Fees,73374-SUPPORTED & OTHER ACCOMMODATION,528.83,Revenue,04/07/2014,Social Care & Inclusion
WC46-0490,REDACTED,Supplies & Services,Services,63000-PROFESSIONAL FEES AND SERVICES,"1,310.00",Revenue,11/07/2014,Neighbourhood Services
WC46-0491,REDACTED,Supplies & Services,Services,63000-PROFESSIONAL FEES AND SERVICES,400.00,Revenue,21/07/2014,Neighbourhood Services
WC46-0492,REDACTED,Transfer Payments,Transfer Payments,76422-DIRECT PAYMENTS TO SOCIAL SERVICES CLIENTS,625.82,Revenue,14/07/2014,Social Care & Inclusion
WC46-0493,REDACTED,Third Party Payments,Private Contractor Fees,73374-SUPPORTED & OTHER ACCOMMODATION,685.72,Revenue,30/07/2014,Social Care & Inclusion
WC46-0494,REDACTED,Transfer Payments,Transfer Payments,76422-DIRECT PAYMENTS TO SOCIAL SERVICES CLIENTS,"1,782.48",Revenue,14/07/2014,Social Care & Inclusion
WC46-0495,ANSON COURT RESIDENTIAL HOME,Third Party Payments,Private Contractor Fees,73373-RESIDENTIAL & NURSING CARE PLACEMENTS,"1,260.17",Revenue,29/07/2014,Social Care & Inclusion
WC46-0496,ANSON COURT RESIDENTIAL HOME,Third Party Payments,Private Contractor Fees,73373-RESIDENTIAL & NURSING CARE PLACEMENTS,"1,532.52",Revenue,08/07/2014,Social Care & Inclusion
WC46-0497,ANSON COURT RESIDENTIAL HOME,Third Party Payments,Private Contractor Fees,73373-RESIDENTIAL & NURSING CARE PLACEMENTS,"1,532.52",Revenue,29/07/2014,Social Care & Inclusion
WC46-0498,ANSON COURT RESIDENTIAL HOME,Third Party Payments,Private Contractor Fees,73373-RESIDENTIAL & NURSING CARE PLACEMENTS,"1,534.12",Revenue,08/07/2014,Social Care & Inclusion
WC46-0499,ANSON COURT RESIDENTIAL HOME,Third Party Payments,Private Contractor Fees,73373-RESIDENTIAL & NURSING CARE PLACEMENTS,"1,534.12",Revenue,08/07/2014,Social Care & Inclusion
WC46-0500,ANSON COURT RESIDENTIAL HOME,Third Party Payments,Private Contractor Fees,73373-RESIDENTIAL & NURSING CARE PLACEMENTS,"1,534.12",Revenue,08/07/2014,Social Care & Inclusion
WC46-0501,ANSON COURT RESIDENTIAL HOME,Third Party Payments,Private Contractor Fees,73373-RESIDENTIAL & NURSING CARE PLACEMENTS,"1,534.12",Revenue,08/07/2014,Social Care & Inclusion
WC46-0502,ANSON COURT RESIDENTIAL HOME,Third Party Payments,Private Contractor Fees,73373-RESIDENTIAL & NURSING CARE PLACEMENTS,"1,534.12",Revenue,08/07/2014,Social Care & Inclusion
WC46-0503,ANSON COURT RESIDENTIAL HOME,Third Party Payments,Private Contractor Fees,73373-RESIDENTIAL & NURSING CARE PLACEMENTS,"1,534.12",Revenue,08/07/2014,Social Care & Inclusion
WC46-0504,ANSON COURT RESIDENTIAL HOME,Third Party Payments,Private Contractor Fees,73373-RESIDENTIAL & NURSING CARE PLACEMENTS,"1,534.12",Revenue,08/07/2014,Social Care & Inclusion
WC46-0505,ANSON COURT RESIDENTIAL HOME,Third Party Payments,Private Contractor Fees,73373-RESIDENTIAL & NURSING CARE PLACEMENTS,"1,534.12",Revenue,22/07/2014,Social Care & Inclusion
WC46-0506,ANSON COURT RESIDENTIAL HOME,Third Party Payments,Private Contractor Fees,73373-RESIDENTIAL & NURSING CARE PLACEMENTS,"1,534.12",Revenue,29/07/2014,Social Care & Inclusion
WC46-0507,ANSON COURT RESIDENTIAL HOME,Third Party Payments,Private Contractor Fees,73373-RESIDENTIAL & NURSING CARE PLACEMENTS,"1,534.12",Revenue,29/07/2014,Social Care & Inclusion
WC46-0508,ANSON COURT RESIDENTIAL HOME,Third Party Payments,Private Contractor Fees,73373-RESIDENTIAL & NURSING CARE PLACEMENTS,"1,534.12",Revenue,29/07/2014,Social Care & Inclusion
WC46-0509,ANSON COURT RESIDENTIAL HOME,Third Party Payments,Private Contractor Fees,73373-RESIDENTIAL & NURSING CARE PLACEMENTS,"1,534.12",Revenue,29/07/2014,Social Care & Inclusion
WC46-0510,ANSON COURT RESIDENTIAL HOME,Third Party Payments,Private Contractor Fees,73373-RESIDENTIAL & NURSING CARE PLACEMENTS,"1,534.12",Revenue,29/07/2014,Social Care & Inclusion
WC46-0511,ANSON COURT RESIDENTIAL HOME,Third Party Payments,Private Contractor Fees,73373-RESIDENTIAL & NURSING CARE PLACEMENTS,"1,534.12",Revenue,29/07/2014,Social Care & Inclusion
WC46-0512,ANSON COURT RESIDENTIAL HOME,Third Party Payments,Private Contractor Fees,73373-RESIDENTIAL & NURSING CARE PLACEMENTS,"1,534.12",Revenue,29/07/2014,Social Care & Inclusion
WC46-0513,ANSON COURT RESIDENTIAL HOME,Third Party Payments,Private Contractor Fees,73373-RESIDENTIAL & NURSING CARE PLACEMENTS,"1,534.12",Revenue,29/07/2014,Social Care & Inclusion
WC46-0514,ANSON COURT RESIDENTIAL HOME,Third Party Payments,Private Contractor Fees,73373-RESIDENTIAL & NURSING CARE PLACEMENTS,"1,534.12",Revenue,29/07/2014,Social Care & Inclusion
WC46-0515,ANSON COURT RESIDENTIAL HOME,Third Party Payments,Private Contractor Fees,73373-RESIDENTIAL & NURSING CARE PLACEMENTS,"1,534.12",Revenue,29/07/2014,Social Care & Inclusion
WC46-0516,ANSON COURT RESIDENTIAL HOME,Third Party Payments,Private Contractor Fees,73373-RESIDENTIAL & NURSING CARE PLACEMENTS,"1,612.92",Revenue,08/07/2014,Social Care & Inclusion
WC46-0517,ANSON COURT RESIDENTIAL HOME,Third Party Payments,Private Contractor Fees,73373-RESIDENTIAL & NURSING CARE PLACEMENTS,"1,612.92",Revenue,29/07/2014,Social Care & Inclusion
WC46-0518,ANSON COURT RESIDENTIAL HOME,Third Party Payments,Private Contractor Fees,73373-RESIDENTIAL & NURSING CARE PLACEMENTS,"1,614.12",Revenue,29/07/2014,Social Care & Inclusion
WC46-0519,ANSON COURT RESIDENTIAL HOME,Third Party Payments,Private Contractor Fees,73373-RESIDENTIAL & NURSING CARE PLACEMENTS,"1,614.72",Revenue,08/07/2014,Social Care & Inclusion
WC46-0520,ANSON COURT RESIDENTIAL HOME,Third Party Payments,Private Contractor Fees,73373-RESIDENTIAL & NURSING CARE PLACEMENTS,"1,614.72",Revenue,08/07/2014,Social Care & Inclusion
WC46-0521,ANSON COURT RESIDENTIAL HOME,Third Party Payments,Private Contractor Fees,73373-RESIDENTIAL & NURSING CARE PLACEMENTS,"1,614.72",Revenue,29/07/2014,Social Care & Inclusion
WC46-0522,ANSON COURT RESIDENTIAL HOME,Third Party Payments,Private Contractor Fees,73373-RESIDENTIAL & NURSING CARE PLACEMENTS,"1,614.72",Revenue,29/07/2014,Social Care & Inclusion
WC46-0523,ANSON COURT RESIDENTIAL HOME,Third Party Payments,Private Contractor Fees,73373-RESIDENTIAL & NURSING CARE PLACEMENTS,"2,136.81",Revenue,29/07/2014,Social Care & Inclusion
WC46-0524,ANTALIS DOCUMENT SUPPLIES,Supplies & Services,"Equip,Furniture & Materials",60500-GENERAL MATERIALS,500.00,Revenue,02/07/2014,Resources
WC46-0525,ANTALIS DOCUMENT SUPPLIES,Supplies & Services,"Equip,Furniture & Materials",60500-GENERAL MATERIALS,500.00,Revenue,09/07/2014,Resources
WC46-0526,REDACTED,Third Party Payments,Private Contractor Fees,74006-HOLIDAY/CHRISTMAS ALLOWANCE-FOSTER CARERS-OTH AGENCY PROVISION,"1,500.76",Revenue,07/07/2014,Childrens
WC46-0527,REDACTED,Third Party Payments,Private Contractor Fees,74006-HOLIDAY/CHRISTMAS ALLOWANCE-FOSTER CARERS-OTH AGENCY PROVISION,481.32,Revenue,07/07/2014,Childrens
WC46-0528,APC THEATRE SERVICES,Supplies & Services,Services,63000-PROFESSIONAL FEES AND SERVICES,312.16,Revenue,03/07/2014,Neighbourhood Services
WC46-0529,APSE 001,Supplies & Services,Subscriptions,64500-PUBLICATIONS/ORGANISATIONS-SUBSCRIPTIONS,"6,989.00",Revenue,25/07/2014,Neighbourhood Services
WC46-0530,AQUAMO LTD,Supplies & Services,"Equip,Furniture & Materials",60008-MAINTENANCE-FURNITURE & EQUIPMENT,860.00,Revenue,29/07/2014,Neighbourhood Services
WC46-0531,ARBORETUM NURSING HOME.,Third Party Payments,Private Contractor Fees,73373-RESIDENTIAL & NURSING CARE PLACEMENTS,"1,035.62",Revenue,16/07/2014,Social Care & Inclusion
WC46-0532,ARBORETUM NURSING HOME.,Third Party Payments,Private Contractor Fees,73373-RESIDENTIAL & NURSING CARE PLACEMENTS,"1,933.16",Revenue,16/07/2014,Social Care & Inclusion
WC46-0533,ARBORETUM NURSING HOME.,Third Party Payments,Private Contractor Fees,73373-RESIDENTIAL & NURSING CARE PLACEMENTS,"1,933.16",Revenue,16/07/2014,Social Care & Inclusion
WC46-0534,ARBORETUM NURSING HOME.,Third Party Payments,Private Contractor Fees,73373-RESIDENTIAL & NURSING CARE PLACEMENTS,"1,933.16",Revenue,16/07/2014,Social Care & Inclusion
WC46-0535,ARBORETUM NURSING HOME.,Third Party Payments,Private Contractor Fees,73373-RESIDENTIAL & NURSING CARE PLACEMENTS,"1,933.16",Revenue,16/07/2014,Social Care & Inclusion
WC46-0536,ARBORETUM NURSING HOME.,Third Party Payments,Private Contractor Fees,73373-RESIDENTIAL & NURSING CARE PLACEMENTS,"1,990.76",Revenue,16/07/2014,Social Care & Inclusion
WC46-0537,ARBORETUM NURSING HOME.,Third Party Payments,Private Contractor Fees,73373-RESIDENTIAL & NURSING CARE PLACEMENTS,"1,990.76",Revenue,16/07/2014,Social Care & Inclusion
WC46-0538,ARBORETUM NURSING HOME.,Third Party Payments,Private Contractor Fees,73373-RESIDENTIAL & NURSING CARE PLACEMENTS,"2,416.45",Revenue,16/07/2014,Social Care & Inclusion
WC46-0539,ARBORETUM NURSING HOME.,Third Party Payments,Private Contractor Fees,73373-RESIDENTIAL & NURSING CARE PLACEMENTS,"2,416.45",Revenue,16/07/2014,Social Care & Inclusion
WC46-0540,ARBORETUM NURSING HOME.,Third Party Payments,Private Contractor Fees,73373-RESIDENTIAL & NURSING CARE PLACEMENTS,"2,416.45",Revenue,16/07/2014,Social Care & Inclusion
WC46-0541,ARBORETUM NURSING HOME.,Third Party Payments,Private Contractor Fees,73373-RESIDENTIAL & NURSING CARE PLACEMENTS,"2,416.45",Revenue,16/07/2014,Social Care & Inclusion
WC46-0542,ARBORETUM NURSING HOME.,Third Party Payments,Private Contractor Fees,73373-RESIDENTIAL & NURSING CARE PLACEMENTS,"2,416.45",Revenue,16/07/2014,Social Care & Inclusion
WC46-0543,ARBORETUM NURSING HOME.,Third Party Payments,Private Contractor Fees,73373-RESIDENTIAL & NURSING CARE PLACEMENTS,"2,416.45",Revenue,16/07/2014,Social Care & Inclusion
WC46-0544,ARBORETUM NURSING HOME.,Third Party Payments,Private Contractor Fees,73373-RESIDENTIAL & NURSING CARE PLACEMENTS,"2,472.75",Revenue,16/07/2014,Social Care & Inclusion
WC46-0545,ARBORETUM NURSING HOME.,Third Party Payments,Private Contractor Fees,73373-RESIDENTIAL & NURSING CARE PLACEMENTS,"2,488.45",Revenue,16/07/2014,Social Care & Inclusion
WC46-0546,ARBORETUM NURSING HOME.,Third Party Payments,Private Contractor Fees,73373-RESIDENTIAL & NURSING CARE PLACEMENTS,"2,488.45",Revenue,16/07/2014,Social Care & Inclusion
WC46-0547,ARBURY WALSALL,Supplies & Services,"Equip,Furniture & Materials",60500-GENERAL MATERIALS,354.63,Revenue,22/07/2014,Neighbourhood Services
WC46-0548,ARCANE DIRECT MARKETING,Supplies & Services,Other Supplies & Services,62511-DISTRIBUTION,347.98,Revenue,30/07/2014,Neighbourhood Services
WC46-0549,ARCANE DIRECT MARKETING,Supplies & Services,Other Supplies & Services,62511-DISTRIBUTION,"1,099.50",Revenue,30/07/2014,Neighbourhood Services
WC46-0550,ARCHWAY TCS LTD,Supplies & Services,"Equip,Furniture & Materials",60537-VEHICLE WASH PLANT-MATERIALS,"1,047.50",Revenue,03/07/2014,Neighbourhood Services
WC46-0551,ARGOS BUSINESS SOLUTIONS LTD,Supplies & Services,"Equip,Furniture & Materials",60006-NEW-FURNITURE & EQUIPMENT,411.20,Revenue,18/07/2014,Neighbourhood Services
WC46-0552,ARIES ENTERTAINMENT LTD,Supplies & Services,Other Supplies & Services,62523-EVENTS,425.00,Revenue,04/07/2014,Neighbourhood Services
WC46-0553,REDACTED,Transfer Payments,Transfer Payments,76422-DIRECT PAYMENTS TO SOCIAL SERVICES CLIENTS,"2,864.08",Revenue,14/07/2014,Social Care & Inclusion
WC46-0554,ASA AWARDS,Supplies & Services,"Equip,Furniture & Materials",60006-NEW-FURNITURE & EQUIPMENT,256.80,Revenue,28/07/2014,Neighbourhood Services
WC46-0555,ASA AWARDS,Supplies & Services,"Equip,Furniture & Materials",60500-GENERAL MATERIALS,444.60,Revenue,01/07/2014,Neighbourhood Services
WC46-0556,ASG STAGE PRODUCTS,Supplies & Services,Services,63000-PROFESSIONAL FEES AND SERVICES,798.00,Revenue,07/07/2014,Neighbourhood Services
WC46-0557,ASG STAGE PRODUCTS,Supplies & Services,Services,63000-PROFESSIONAL FEES AND SERVICES,"3,244.00",Revenue,07/07/2014,Neighbourhood Services
WC46-0558,ASH GRANGE CARE HOME,Third Party Payments,Private Contractor Fees,73373-RESIDENTIAL & NURSING CARE PLACEMENTS,345.21,Revenue,29/07/2014,Social Care & Inclusion
WC46-0559,ASH GRANGE CARE HOME,Third Party Payments,Private Contractor Fees,73373-RESIDENTIAL & NURSING CARE PLACEMENTS,414.25,Revenue,01/07/2014,Social Care & Inclusion
WC46-0560,ASH GRANGE CARE HOME,Third Party Payments,Private Contractor Fees,73373-RESIDENTIAL & NURSING CARE PLACEMENTS,414.25,Revenue,29/07/2014,Social Care & Inclusion
WC46-0561,ASH GRANGE CARE HOME,Third Party Payments,Private Contractor Fees,73373-RESIDENTIAL & NURSING CARE PLACEMENTS,483.29,Revenue,29/07/2014,Social Care & Inclusion
WC46-0562,ASH GRANGE CARE HOME,Third Party Payments,Private Contractor Fees,73373-RESIDENTIAL & NURSING CARE PLACEMENTS,690.41,Revenue,29/07/2014,Social Care & Inclusion
WC46-0563,ASH GRANGE CARE HOME,Third Party Payments,Private Contractor Fees,73373-RESIDENTIAL & NURSING CARE PLACEMENTS,"1,037.98",Revenue,22/07/2014,Social Care & Inclusion
WC46-0564,ASH GRANGE CARE HOME,Third Party Payments,Private Contractor Fees,73373-RESIDENTIAL & NURSING CARE PLACEMENTS,"1,460.40",Revenue,01/07/2014,Social Care & Inclusion
WC46-0565,ASH GRANGE CARE HOME,Third Party Payments,Private Contractor Fees,73373-RESIDENTIAL & NURSING CARE PLACEMENTS,"1,460.40",Revenue,01/07/2014,Social Care & Inclusion
WC46-0566,ASH GRANGE CARE HOME,Third Party Payments,Private Contractor Fees,73373-RESIDENTIAL & NURSING CARE PLACEMENTS,"1,518.91",Revenue,01/07/2014,Social Care & Inclusion
WC46-0567,ASH GRANGE CARE HOME,Third Party Payments,Private Contractor Fees,73373-RESIDENTIAL & NURSING CARE PLACEMENTS,"1,518.91",Revenue,29/07/2014,Social Care & Inclusion
WC46-0568,ASH GRANGE CARE HOME,Third Party Payments,Private Contractor Fees,73373-RESIDENTIAL & NURSING CARE PLACEMENTS,"1,534.50",Revenue,29/07/2014,Social Care & Inclusion
WC46-0569,ASH GRANGE CARE HOME,Third Party Payments,Private Contractor Fees,73373-RESIDENTIAL & NURSING CARE PLACEMENTS,"1,587.95",Revenue,01/07/2014,Social Care & Inclusion
WC46-0570,ASH GRANGE CARE HOME,Third Party Payments,Private Contractor Fees,73373-RESIDENTIAL & NURSING CARE PLACEMENTS,"1,587.95",Revenue,29/07/2014,Social Care & Inclusion
WC46-0571,ASH GRANGE CARE HOME,Third Party Payments,Private Contractor Fees,73373-RESIDENTIAL & NURSING CARE PLACEMENTS,"1,868.36",Revenue,22/07/2014,Social Care & Inclusion
WC46-0572,ASH GRANGE CARE HOME,Third Party Payments,Private Contractor Fees,73373-RESIDENTIAL & NURSING CARE PLACEMENTS,"1,933.16",Revenue,01/07/2014,Social Care & Inclusion
WC46-0573,ASH GRANGE CARE HOME,Third Party Payments,Private Contractor Fees,73373-RESIDENTIAL & NURSING CARE PLACEMENTS,"1,933.16",Revenue,01/07/2014,Social Care & Inclusion
WC46-0574,ASH GRANGE CARE HOME,Third Party Payments,Private Contractor Fees,73373-RESIDENTIAL & NURSING CARE PLACEMENTS,"1,933.16",Revenue,01/07/2014,Social Care & Inclusion
WC46-0575,ASH GRANGE CARE HOME,Third Party Payments,Private Contractor Fees,73373-RESIDENTIAL & NURSING CARE PLACEMENTS,"1,933.16",Revenue,01/07/2014,Social Care & Inclusion
WC46-0576,ASH GRANGE CARE HOME,Third Party Payments,Private Contractor Fees,73373-RESIDENTIAL & NURSING CARE PLACEMENTS,"1,933.16",Revenue,01/07/2014,Social Care & Inclusion
WC46-0577,ASH GRANGE CARE HOME,Third Party Payments,Private Contractor Fees,73373-RESIDENTIAL & NURSING CARE PLACEMENTS,"1,933.16",Revenue,01/07/2014,Social Care & Inclusion
WC46-0578,ASH GRANGE CARE HOME,Third Party Payments,Private Contractor Fees,73373-RESIDENTIAL & NURSING CARE PLACEMENTS,"1,933.16",Revenue,01/07/2014,Social Care & Inclusion
WC46-0579,ASH GRANGE CARE HOME,Third Party Payments,Private Contractor Fees,73373-RESIDENTIAL & NURSING CARE PLACEMENTS,"1,933.16",Revenue,01/07/2014,Social Care & Inclusion
WC46-0580,ASH GRANGE CARE HOME,Third Party Payments,Private Contractor Fees,73373-RESIDENTIAL & NURSING CARE PLACEMENTS,"1,933.16",Revenue,01/07/2014,Social Care & Inclusion
WC46-0581,ASH GRANGE CARE HOME,Third Party Payments,Private Contractor Fees,73373-RESIDENTIAL & NURSING CARE PLACEMENTS,"1,933.16",Revenue,01/07/2014,Social Care & Inclusion
WC46-0582,ASH GRANGE CARE HOME,Third Party Payments,Private Contractor Fees,73373-RESIDENTIAL & NURSING CARE PLACEMENTS,"1,933.16",Revenue,29/07/2014,Social Care & Inclusion
WC46-0583,ASH GRANGE CARE HOME,Third Party Payments,Private Contractor Fees,73373-RESIDENTIAL & NURSING CARE PLACEMENTS,"1,933.52",Revenue,01/07/2014,Social Care & Inclusion
WC46-0584,ASH GRANGE CARE HOME,Third Party Payments,Private Contractor Fees,73373-RESIDENTIAL & NURSING CARE PLACEMENTS,"2,008.24",Revenue,01/07/2014,Social Care & Inclusion
WC46-0585,ASH GRANGE CARE HOME,Third Party Payments,Private Contractor Fees,73373-RESIDENTIAL & NURSING CARE PLACEMENTS,"2,066.20",Revenue,01/07/2014,Social Care & Inclusion
WC46-0586,ASHBOURNE LODGE,Third Party Payments,Private Contractor Fees,73373-RESIDENTIAL & NURSING CARE PLACEMENTS,"4,014.67",Revenue,22/07/2014,Social Care & Inclusion
WC46-0587,ASKEWS AND HOLTS LIBRARY SERVICES LTD,Supplies & Services,"Equip,Furniture & Materials",60501-LIBRARY BOOKS,255.72,Revenue,18/07/2014,Neighbourhood Services
WC46-0588,ASKEWS AND HOLTS LIBRARY SERVICES LTD,Supplies & Services,"Equip,Furniture & Materials",60501-LIBRARY BOOKS,288.77,Revenue,02/07/2014,Neighbourhood Services
WC46-0589,ASKEWS AND HOLTS LIBRARY SERVICES LTD,Supplies & Services,"Equip,Furniture & Materials",60501-LIBRARY BOOKS,298.83,Revenue,29/07/2014,Neighbourhood Services
WC46-0590,ASKEWS AND HOLTS LIBRARY SERVICES LTD,Supplies & Services,"Equip,Furniture & Materials",60501-LIBRARY BOOKS,308.01,Revenue,01/07/2014,Neighbourhood Services
WC46-0591,ASKEWS AND HOLTS LIBRARY SERVICES LTD,Supplies & Services,"Equip,Furniture & Materials",60501-LIBRARY BOOKS,343.90,Revenue,03/07/2014,Neighbourhood Services
WC46-0592,ASKEWS AND HOLTS LIBRARY SERVICES LTD,Supplies & Services,"Equip,Furniture & Materials",60501-LIBRARY BOOKS,423.85,Revenue,11/07/2014,Neighbourhood Services
WC46-0593,ASKEWS AND HOLTS LIBRARY SERVICES LTD,Supplies & Services,"Equip,Furniture & Materials",60501-LIBRARY BOOKS,444.22,Revenue,18/07/2014,Neighbourhood Services
WC46-0594,ASKEWS AND HOLTS LIBRARY SERVICES LTD,Supplies & Services,"Equip,Furniture & Materials",60501-LIBRARY BOOKS,532.46,Revenue,02/07/2014,Neighbourhood Services
WC46-0595,ASKEWS AND HOLTS LIBRARY SERVICES LTD,Supplies & Services,"Equip,Furniture & Materials",60501-LIBRARY BOOKS,534.34,Revenue,07/07/2014,Neighbourhood Services
WC46-0596,REDACTED,Transfer Payments,Transfer Payments,76422-DIRECT PAYMENTS TO SOCIAL SERVICES CLIENTS,493.00,Revenue,14/07/2014,Social Care & Inclusion
WC46-0597,ASN FIRST AID & HYGIENE LTD,Supplies & Services,"Equip,Furniture & Materials",61502-PROTECTIVE CLOTHING & UNIFORM,757.50,Revenue,01/07/2014,Social Care & Inclusion
WC46-0598,A-STAT OFFICE TECHNOLOGY LTD,Supplies & Services,"Equip,Furniture & Materials",60009-LEASING/HIRE/RENTAL-EQUIPMENT,390.62,Revenue,10/07/2014,Childrens
WC46-0599,ASTRA ROOFING LTD,Supplies & Services,Other Supplies & Services,62515-MISCELLANEOUS SUPPLIES,829.53,Revenue,22/07/2014,Childrens
WC46-0600,ATHWAL NEWS LTD,Supplies & Services,"Equip,Furniture & Materials",60501-LIBRARY BOOKS,504.52,Revenue,10/07/2014,Neighbourhood Services
WC46-0601,ATHWAL NEWS LTD,Supplies & Services,"Equip,Furniture & Materials",60501-LIBRARY BOOKS,548.06,Revenue,10/07/2014,Neighbourhood Services
WC46-0602,ATKINS LIMITED,Capital,Capital,01001-OTHER CONSULTANTS FEES,"7,093.41",Capital,07/07/2014,Neighbourhood Services
WC46-0603,AURORA GRAPHICS & DISPLAYS LTD,Supplies & Services,"Printing, Stationery & Office Exp",62008-OUTWORK-PRINT ROOM,677.32,Revenue,23/07/2014,Resources
WC46-0604,AURORA GRAPHICS & DISPLAYS LTD,Supplies & Services,"Printing, Stationery & Office Exp",62008-OUTWORK-PRINT ROOM,764.36,Revenue,02/07/2014,Resources
WC46-0605,AUTHORS ABROAD,Supplies & Services,"Equip,Furniture & Materials",60500-GENERAL MATERIALS,250.00,Revenue,22/07/2014,Neighbourhood Services
WC46-0606,AUTHORS ALOUD UK,Supplies & Services,"Equip,Furniture & Materials",60500-GENERAL MATERIALS,411.43,Revenue,14/07/2014,Neighbourhood Services
WC46-0607,AUTISM WEST MIDLANDS,Third Party Payments,Private Contractor Fees,73373-RESIDENTIAL & NURSING CARE PLACEMENTS,"7,078.49",Revenue,01/07/2014,Social Care & Inclusion
WC46-0608,AUTISM WEST MIDLANDS,Third Party Payments,Private Contractor Fees,70000-SOCIAL SERVICES-FEES TO VOLUNTARY BODIES,"21,666.50",Revenue,01/07/2014,Social Care & Inclusion
WC46-0609,AUTISM WEST MIDLANDS 001,Third Party Payments,Private Contractor Fees,73373-RESIDENTIAL & NURSING CARE PLACEMENTS,"4,765.89",Revenue,01/07/2014,Social Care & Inclusion
WC46-0610,AWKEYE,Supplies & Services,"Equip,Furniture & Materials",61502-PROTECTIVE CLOTHING & UNIFORM,279.36,Revenue,21/07/2014,Neighbourhood Services
WC46-0611,AXIS EUROPE,Capital,Capital,01045-PRIVATE GRANTS,-627.27,Capital,02/07/2014,Resources
WC46-0612,AXIS EUROPE,Capital,Capital,01045-PRIVATE GRANTS,"5,119.30",Capital,02/07/2014,Resources
WC46-0613,AXIS EUROPE,Capital,Capital,01045-PRIVATE GRANTS,"8,977.15",Capital,30/07/2014,Resources
WC46-0614,REDACTED,Transfer Payments,Transfer Payments,76422-DIRECT PAYMENTS TO SOCIAL SERVICES CLIENTS,"2,024.00",Revenue,14/07/2014,Childrens
WC46-0615,REDACTED,Transfer Payments,Transfer Payments,76422-DIRECT PAYMENTS TO SOCIAL SERVICES CLIENTS,"2,652.00",Revenue,14/07/2014,Social Care & Inclusion
WC46-0616,REDACTED,Supplies & Services,"Equip,Furniture & Materials",60500-GENERAL MATERIALS,675.00,Revenue,01/07/2014,Childrens
WC46-0617,REDACTED,Supplies & Services,"Equip,Furniture & Materials",60500-GENERAL MATERIALS,800.00,Revenue,01/07/2014,Childrens
WC46-0618,REDACTED,Third Party Payments,Private Contractor Fees,74006-HOLIDAY/CHRISTMAS ALLOWANCE-FOSTER CARERS-OTH AGENCY PROVISION,796.00,Revenue,21/07/2014,Childrens
WC46-0619,REDACTED,Supplies & Services,Other Supplies & Services,62515-MISCELLANEOUS SUPPLIES,896.24,Revenue,21/07/2014,Childrens
WC46-0620,REDACTED,Supplies & Services,Other Supplies & Services,62515-MISCELLANEOUS SUPPLIES,"1,478.08",Revenue,21/07/2014,Childrens
WC46-0621,REDACTED,Third Party Payments,Private Contractor Fees,74006-HOLIDAY/CHRISTMAS ALLOWANCE-FOSTER CARERS-OTH AGENCY PROVISION,"1,764.32",Revenue,21/07/2014,Childrens
WC46-0622,B&Q WAREHOUSE PLC,Supplies & Services,"Equip,Furniture & Materials",60512-LOOSE TOOLS & CONSUMABLES,328.83,Revenue,04/07/2014,Neighbourhood Services
WC46-0623,BAAF,Supplies & Services,Communications & Computing,68001-PUBLICITY & ADVERTISING (NOT STAFF ADVERTISING),455.70,Revenue,21/07/2014,Childrens
WC46-0624,BAAF,Supplies & Services,Communications & Computing,68001-PUBLICITY & ADVERTISING (NOT STAFF ADVERTISING),568.05,Revenue,18/07/2014,Childrens
WC46-0625,BAAF,Supplies & Services,Communications & Computing,68001-PUBLICITY & ADVERTISING (NOT STAFF ADVERTISING),568.05,Revenue,25/07/2014,Childrens
WC46-0626,BAAF,Supplies & Services,Communications & Computing,68001-PUBLICITY & ADVERTISING (NOT STAFF ADVERTISING),630.00,Revenue,08/07/2014,Childrens
WC46-0627,BAAF,Supplies & Services,Communications & Computing,68001-PUBLICITY & ADVERTISING (NOT STAFF ADVERTISING),827.40,Revenue,25/07/2014,Childrens
WC46-0628,BAAF,Supplies & Services,Communications & Computing,68001-PUBLICITY & ADVERTISING (NOT STAFF ADVERTISING),827.40,Revenue,25/07/2014,Childrens
WC46-0629,REDACTED,Transfer Payments,Transfer Payments,76422-DIRECT PAYMENTS TO SOCIAL SERVICES CLIENTS,863.20,Revenue,14/07/2014,Social Care & Inclusion
WC46-0630,BAG SUPPLIES LTD,Supplies & Services,"Equip,Furniture & Materials",60500-GENERAL MATERIALS,313.00,Revenue,15/07/2014,Neighbourhood Services
WC46-0631,BAKER HALL PARTNERSHIP,Supplies & Services,Services,63248-SURVEYS & PROF SERVICES-PAYMENT TO CONTRACTOR,744.25,Revenue,15/07/2014,Regeneration
WC46-0632,REDACTED,Transfer Payments,Transfer Payments,76422-DIRECT PAYMENTS TO SOCIAL SERVICES CLIENTS,"2,742.54",Revenue,14/07/2014,Social Care & Inclusion
WC46-0633,BALTIMORE AIRCOIL INTERNATIONAL NV,Premises,Premises-Repairs & Maintenance,"40000-REPAIRS,ALTERATIONS & MAINTENANCE-PREM",685.00,Revenue,21/07/2014,Regeneration
WC46-0634,BALTIMORE AIRCOIL INTERNATIONAL NV,Premises,Premises-Repairs & Maintenance,"40000-REPAIRS,ALTERATIONS & MAINTENANCE-PREM","1,392.00",Revenue,16/07/2014,Regeneration
WC46-0635,REDACTED,Transfer Payments,Transfer Payments,76422-DIRECT PAYMENTS TO SOCIAL SERVICES CLIENTS,620.00,Revenue,14/07/2014,Social Care & Inclusion
WC46-0636,REDACTED,Transfer Payments,Transfer Payments,76422-DIRECT PAYMENTS TO SOCIAL SERVICES CLIENTS,"1,140.04",Revenue,14/07/2014,Social Care & Inclusion
WC46-0637,REDACTED,Transfer Payments,Transfer Payments,76422-DIRECT PAYMENTS TO SOCIAL SERVICES CLIENTS,450.26,Revenue,14/07/2014,Social Care & Inclusion
WC46-0638,REDACTED,Transfer Payments,Transfer Payments,76422-DIRECT PAYMENTS TO SOCIAL SERVICES CLIENTS,"1,314.88",Revenue,14/07/2014,Social Care & Inclusion
WC46-0639,REDACTED,Transfer Payments,Transfer Payments,76422-DIRECT PAYMENTS TO SOCIAL SERVICES CLIENTS,"1,280.00",Revenue,14/07/2014,Social Care & Inclusion
WC46-0640,REDACTED,Transfer Payments,Transfer Payments,76422-DIRECT PAYMENTS TO SOCIAL SERVICES CLIENTS,718.00,Revenue,14/07/2014,Social Care & Inclusion
WC46-0641,REDACTED,Transfer Payments,Transfer Payments,76422-DIRECT PAYMENTS TO SOCIAL SERVICES CLIENTS,632.52,Revenue,14/07/2014,Social Care & Inclusion
WC46-0642,REDACTED,Transfer Payments,Transfer Payments,76422-DIRECT PAYMENTS TO SOCIAL SERVICES CLIENTS,690.56,Revenue,14/07/2014,Social Care & Inclusion
WC46-0643,BARBOUR LOGIC LIMITED,Third Party Payments,Private Contractor Fees,73025-PROFESSIONAL SERVICES-PRIV CONTRACTOR & OTHER AGENCIES,"7,837.50",Revenue,18/07/2014,Neighbourhood Services
WC46-0644,BARCHAM TREES PLC,Third Party Payments,Private Contractor Fees,73025-PROFESSIONAL SERVICES-PRIV CONTRACTOR & OTHER AGENCIES,322.00,Revenue,10/07/2014,Neighbourhood Services
WC46-0645,BARCHESTER HEALTHCARE#1,Third Party Payments,Private Contractor Fees,73373-RESIDENTIAL & NURSING CARE PLACEMENTS,"1,920.28",Revenue,22/07/2014,Social Care & Inclusion
WC46-0646,BARNARDOS SERVICES LTD,Third Party Payments,Private Contractor Fees,74037-INDEPENDENT FOSTER CARE-OTH AGENCY PROVISION,"4,627.86",Revenue,16/07/2014,Childrens
WC46-0647,BEADEN POWERLEC LIMITED,Premises,Premises-Repairs & Maintenance,"40000-REPAIRS,ALTERATIONS & MAINTENANCE-PREM",250.00,Revenue,22/07/2014,Regeneration
WC46-0648,BEADEN POWERLEC LIMITED,Supplies & Services,"Equip,Furniture & Materials",60500-GENERAL MATERIALS,"1,875.00",Revenue,25/07/2014,Neighbourhood Services
WC46-0649,BEADEN POWERLEC LIMITED,Capital,Capital,01006-SITE WORKS MAIN CONTRACTORS,"12,050.24",Capital,28/07/2014,Childrens
WC46-0650,BEADEN POWERLEC LIMITED,Capital,Capital,01006-SITE WORKS MAIN CONTRACTORS,"15,972.56",Capital,02/07/2014,Childrens
WC46-0651,BEADEN POWERLEC LIMITED,Capital,Capital,01006-SITE WORKS MAIN CONTRACTORS,"27,691.74",Capital,15/07/2014,Childrens
WC46-0652,BEADEN POWERLEC LIMITED,Capital,Capital,01006-SITE WORKS MAIN CONTRACTORS,"46,963.63",Capital,28/07/2014,Childrens
WC46-0653,REDACTED,Supplies & Services,Other Supplies & Services,62515-MISCELLANEOUS SUPPLIES,914.24,Revenue,21/07/2014,Childrens
WC46-0654,REDACTED,Third Party Payments,Private Contractor Fees,74006-HOLIDAY/CHRISTMAS ALLOWANCE-FOSTER CARERS-OTH AGENCY PROVISION,"1,972.52",Revenue,21/07/2014,Childrens
WC46-0655,BEATRICE COURT NURSING HOME,Third Party Payments,Private Contractor Fees,73373-RESIDENTIAL & NURSING CARE PLACEMENTS,"1,534.12",Revenue,22/07/2014,Social Care & Inclusion
WC46-0656,BEATRICE COURT NURSING HOME,Third Party Payments,Private Contractor Fees,73373-RESIDENTIAL & NURSING CARE PLACEMENTS,"1,917.65",Revenue,01/07/2014,Social Care & Inclusion
WC46-0657,REDACTED,Transfer Payments,Transfer Payments,76422-DIRECT PAYMENTS TO SOCIAL SERVICES CLIENTS,641.76,Revenue,14/07/2014,Social Care & Inclusion
WC46-0658,BECKIE'S CHILDMINDING,Third Party Payments,Grants to Other Orgs,66505-OTHER-GRANTS TO OTHER ORGS,310.44,Revenue,01/07/2014,Childrens
WC46-0659,BEDWORTH HEATH NURSERY SCHOOL & CHILDRENS CENTRE,Third Party Payments,Grants to Other Orgs,66505-OTHER-GRANTS TO OTHER ORGS,564.00,Revenue,11/07/2014,Childrens
WC46-0660,BEECHES DAY NURSERY,Supplies & Services,Other Supplies & Services,63120-CRECHE FACILITIES-SERVICES-FEES,282.00,Revenue,10/07/2014,Neighbourhood Services
WC46-0661,BEECHES DAY NURSERY,Supplies & Services,Other Supplies & Services,63120-CRECHE FACILITIES-SERVICES-FEES,376.00,Revenue,10/07/2014,Neighbourhood Services
WC46-0662,BEECHES DAY NURSERY,Supplies & Services,Other Supplies & Services,63120-CRECHE FACILITIES-SERVICES-FEES,"1,050.50",Revenue,10/07/2014,Neighbourhood Services
WC46-0663,BEECHES DAY NURSERY,Third Party Payments,Grants to Other Orgs,66505-OTHER-GRANTS TO OTHER ORGS,"6,108.18",Revenue,04/07/2014,Childrens
WC46-0664,BEECHES DAY NURSERY,Third Party Payments,Grants to Other Orgs,66505-OTHER-GRANTS TO OTHER ORGS,"6,478.27",Revenue,14/07/2014,Childrens
WC46-0665,BELLE-VIEW (UK) LTD,Third Party Payments,Private Contractor Fees,76002-SUPPORT UNDER SECTION 23 OF THE CHILDRENS ACT,500.00,Revenue,04/07/2014,Childrens
WC46-0666,BELLEVUE COURT CARE HOME,Third Party Payments,Private Contractor Fees,73373-RESIDENTIAL & NURSING CARE PLACEMENTS,"1,486.96",Revenue,01/07/2014,Social Care & Inclusion
WC46-0667,BELLEVUE COURT CARE HOME,Third Party Payments,Private Contractor Fees,73373-RESIDENTIAL & NURSING CARE PLACEMENTS,"1,530.16",Revenue,01/07/2014,Social Care & Inclusion
WC46-0668,BELLEVUE COURT CARE HOME,Third Party Payments,Private Contractor Fees,73373-RESIDENTIAL & NURSING CARE PLACEMENTS,"1,530.16",Revenue,29/07/2014,Social Care & Inclusion
WC46-0669,REDACTED,Transfer Payments,Transfer Payments,76422-DIRECT PAYMENTS TO SOCIAL SERVICES CLIENTS,"2,205.00",Revenue,14/07/2014,Social Care & Inclusion
WC46-0670,BENNIMAN CONSTRUCTION GROUP,Premises,Premises-Repairs & Maintenance,"40000-REPAIRS,ALTERATIONS & MAINTENANCE-PREM",448.50,Revenue,04/07/2014,Regeneration
WC46-0671,BENNIMAN CONSTRUCTION GROUP,Premises,Premises-Repairs & Maintenance,"40000-REPAIRS,ALTERATIONS & MAINTENANCE-PREM","1,398.80",Revenue,04/07/2014,Regeneration
WC46-0672,BENTLEY COURT PRIORY,Third Party Payments,Private Contractor Fees,73373-RESIDENTIAL & NURSING CARE PLACEMENTS,"1,596.00",Revenue,16/07/2014,Social Care & Inclusion
WC46-0673,BENTLEY COURT PRIORY,Third Party Payments,Private Contractor Fees,73373-RESIDENTIAL & NURSING CARE PLACEMENTS,"1,600.72",Revenue,08/07/2014,Social Care & Inclusion
WC46-0674,BENTLEY COURT PRIORY,Third Party Payments,Private Contractor Fees,73373-RESIDENTIAL & NURSING CARE PLACEMENTS,"1,600.72",Revenue,08/07/2014,Social Care & Inclusion
WC46-0675,BENTLEY COURT PRIORY,Third Party Payments,Private Contractor Fees,73373-RESIDENTIAL & NURSING CARE PLACEMENTS,"1,654.07",Revenue,16/07/2014,Social Care & Inclusion
WC46-0676,BENTLEY COURT PRIORY,Third Party Payments,Private Contractor Fees,73373-RESIDENTIAL & NURSING CARE PLACEMENTS,"1,658.78",Revenue,16/07/2014,Social Care & Inclusion
WC46-0677,BENTLEY WEST CHILDRENS CENTRE,Employees,Other Staff Costs,32000-MISC FEES AND EXPENSES,408.00,Revenue,21/07/2014,Childrens
WC46-0678,REDACTED,Transfer Payments,Transfer Payments,76422-DIRECT PAYMENTS TO SOCIAL SERVICES CLIENTS,424.56,Revenue,14/07/2014,Social Care & Inclusion
WC46-0679,BERTRAM TRADING LTD T/A BERTRAM LIBRARY SERVICES),Supplies & Services,"Equip,Furniture & Materials",60501-LIBRARY BOOKS,256.76,Revenue,29/07/2014,Neighbourhood Services
WC46-0680,REDACTED,Transfer Payments,Transfer Payments,76422-DIRECT PAYMENTS TO SOCIAL SERVICES CLIENTS,912.00,Revenue,14/07/2014,Social Care & Inclusion
WC46-0681,REDACTED,Third Party Payments,Private Contractor Fees,74006-HOLIDAY/CHRISTMAS ALLOWANCE-FOSTER CARERS-OTH AGENCY PROVISION,"1,110.04",Revenue,21/07/2014,Childrens
WC46-0682,REDACTED,Supplies & Services,Other Supplies & Services,62515-MISCELLANEOUS SUPPLIES,"1,428.44",Revenue,21/07/2014,Childrens
WC46-0683,REDACTED,Transfer Payments,Transfer Payments,76422-DIRECT PAYMENTS TO SOCIAL SERVICES CLIENTS,968.00,Revenue,14/07/2014,Social Care & Inclusion
WC46-0684,BESCOT LODGE,Third Party Payments,Private Contractor Fees,73373-RESIDENTIAL & NURSING CARE PLACEMENTS,547.90,Revenue,22/07/2014,Social Care & Inclusion
WC46-0685,BESCOT LODGE,Third Party Payments,Private Contractor Fees,73373-RESIDENTIAL & NURSING CARE PLACEMENTS,602.69,Revenue,01/07/2014,Social Care & Inclusion
WC46-0686,BESCOT LODGE,Third Party Payments,Private Contractor Fees,73373-RESIDENTIAL & NURSING CARE PLACEMENTS,767.06,Revenue,16/07/2014,Social Care & Inclusion
WC46-0687,BESCOT LODGE,Third Party Payments,Private Contractor Fees,73373-RESIDENTIAL & NURSING CARE PLACEMENTS,931.43,Revenue,16/07/2014,Social Care & Inclusion
WC46-0688,BESCOT LODGE,Third Party Payments,Private Contractor Fees,73373-RESIDENTIAL & NURSING CARE PLACEMENTS,"1,564.71",Revenue,01/07/2014,Social Care & Inclusion
WC46-0689,BESCOT LODGE,Third Party Payments,Private Contractor Fees,73373-RESIDENTIAL & NURSING CARE PLACEMENTS,"1,616.96",Revenue,22/07/2014,Social Care & Inclusion
WC46-0690,BESCOT LODGE,Third Party Payments,Private Contractor Fees,73373-RESIDENTIAL & NURSING CARE PLACEMENTS,"1,643.70",Revenue,01/07/2014,Social Care & Inclusion
WC46-0691,BESCOT LODGE,Third Party Payments,Private Contractor Fees,73373-RESIDENTIAL & NURSING CARE PLACEMENTS,"1,643.70",Revenue,01/07/2014,Social Care & Inclusion
WC46-0692,BESCOT LODGE,Third Party Payments,Private Contractor Fees,73373-RESIDENTIAL & NURSING CARE PLACEMENTS,"1,643.70",Revenue,01/07/2014,Social Care & Inclusion
WC46-0693,BESCOT LODGE,Third Party Payments,Private Contractor Fees,73373-RESIDENTIAL & NURSING CARE PLACEMENTS,"1,643.70",Revenue,01/07/2014,Social Care & Inclusion
WC46-0694,BESCOT LODGE,Third Party Payments,Private Contractor Fees,73373-RESIDENTIAL & NURSING CARE PLACEMENTS,"1,643.70",Revenue,01/07/2014,Social Care & Inclusion
WC46-0695,BESCOT LODGE,Third Party Payments,Private Contractor Fees,73373-RESIDENTIAL & NURSING CARE PLACEMENTS,"1,643.70",Revenue,01/07/2014,Social Care & Inclusion
WC46-0696,BESCOT LODGE,Third Party Payments,Private Contractor Fees,73373-RESIDENTIAL & NURSING CARE PLACEMENTS,"1,643.70",Revenue,01/07/2014,Social Care & Inclusion
WC46-0697,BESCOT LODGE,Third Party Payments,Private Contractor Fees,73373-RESIDENTIAL & NURSING CARE PLACEMENTS,"1,643.70",Revenue,01/07/2014,Social Care & Inclusion
WC46-0698,BESCOT LODGE,Third Party Payments,Private Contractor Fees,73373-RESIDENTIAL & NURSING CARE PLACEMENTS,"1,643.81",Revenue,01/07/2014,Social Care & Inclusion
WC46-0699,BESCOT LODGE,Third Party Payments,Private Contractor Fees,73373-RESIDENTIAL & NURSING CARE PLACEMENTS,"1,661.27",Revenue,01/07/2014,Social Care & Inclusion
WC46-0700,BESCOT LODGE,Third Party Payments,Private Contractor Fees,73373-RESIDENTIAL & NURSING CARE PLACEMENTS,"1,661.36",Revenue,01/07/2014,Social Care & Inclusion
WC46-0701,BESCOT LODGE,Third Party Payments,Private Contractor Fees,73373-RESIDENTIAL & NURSING CARE PLACEMENTS,"1,661.36",Revenue,01/07/2014,Social Care & Inclusion
WC46-0702,BESCOT LODGE,Third Party Payments,Private Contractor Fees,73373-RESIDENTIAL & NURSING CARE PLACEMENTS,"1,698.36",Revenue,22/07/2014,Social Care & Inclusion
WC46-0703,BESCOT LODGE,Third Party Payments,Private Contractor Fees,73373-RESIDENTIAL & NURSING CARE PLACEMENTS,"1,698.36",Revenue,22/07/2014,Social Care & Inclusion
WC46-0704,BESCOT LODGE,Third Party Payments,Private Contractor Fees,73373-RESIDENTIAL & NURSING CARE PLACEMENTS,"1,698.40",Revenue,22/07/2014,Social Care & Inclusion
WC46-0705,BESCOT LODGE,Third Party Payments,Private Contractor Fees,73373-RESIDENTIAL & NURSING CARE PLACEMENTS,"1,698.45",Revenue,22/07/2014,Social Care & Inclusion
WC46-0706,BESCOT LODGE,Third Party Payments,Private Contractor Fees,73373-RESIDENTIAL & NURSING CARE PLACEMENTS,"1,698.49",Revenue,01/07/2014,Social Care & Inclusion
WC46-0707,BESCOT LODGE,Third Party Payments,Private Contractor Fees,73373-RESIDENTIAL & NURSING CARE PLACEMENTS,"1,698.49",Revenue,22/07/2014,Social Care & Inclusion
WC46-0708,BESCOT LODGE,Third Party Payments,Private Contractor Fees,73373-RESIDENTIAL & NURSING CARE PLACEMENTS,"1,698.49",Revenue,22/07/2014,Social Care & Inclusion
WC46-0709,BESCOT LODGE,Third Party Payments,Private Contractor Fees,73373-RESIDENTIAL & NURSING CARE PLACEMENTS,"1,698.49",Revenue,22/07/2014,Social Care & Inclusion
WC46-0710,BESCOT LODGE,Third Party Payments,Private Contractor Fees,73373-RESIDENTIAL & NURSING CARE PLACEMENTS,"1,698.58",Revenue,22/07/2014,Social Care & Inclusion
WC46-0711,BESCOT LODGE,Third Party Payments,Private Contractor Fees,73373-RESIDENTIAL & NURSING CARE PLACEMENTS,"1,716.60",Revenue,22/07/2014,Social Care & Inclusion
WC46-0712,BESCOT LODGE,Third Party Payments,Private Contractor Fees,73373-RESIDENTIAL & NURSING CARE PLACEMENTS,"1,716.69",Revenue,22/07/2014,Social Care & Inclusion
WC46-0713,BESCOT LODGE,Third Party Payments,Private Contractor Fees,73373-RESIDENTIAL & NURSING CARE PLACEMENTS,"1,716.74",Revenue,01/07/2014,Social Care & Inclusion
WC46-0714,BESCOT LODGE,Third Party Payments,Private Contractor Fees,73373-RESIDENTIAL & NURSING CARE PLACEMENTS,"1,716.78",Revenue,22/07/2014,Social Care & Inclusion
WC46-0715,BESCOT LODGE,Third Party Payments,Private Contractor Fees,73373-RESIDENTIAL & NURSING CARE PLACEMENTS,"1,825.50",Revenue,22/07/2014,Social Care & Inclusion
WC46-0716,BESCOT PROMOTIONS,Third Party Payments,Private Contractor Fees,73025-PROFESSIONAL SERVICES-PRIV CONTRACTOR & OTHER AGENCIES,"2,600.00",Revenue,09/07/2014,Regeneration
WC46-0717,BETHPHAGE.,Third Party Payments,Private Contractor Fees,73374-SUPPORTED & OTHER ACCOMMODATION,684.34,Revenue,22/07/2014,Social Care & Inclusion
WC46-0718,BETHPHAGE.,Third Party Payments,Private Contractor Fees,73374-SUPPORTED & OTHER ACCOMMODATION,"1,579.50",Revenue,22/07/2014,Social Care & Inclusion
WC46-0719,BETHPHAGE.,Third Party Payments,Private Contractor Fees,73372-DOMICILIARY CARE,"1,721.42",Revenue,22/07/2014,Social Care & Inclusion
WC46-0720,BETHPHAGE.,Third Party Payments,Private Contractor Fees,73372-DOMICILIARY CARE,"2,031.84",Revenue,22/07/2014,Social Care & Inclusion
WC46-0721,BETHPHAGE.,Third Party Payments,Private Contractor Fees,73374-SUPPORTED & OTHER ACCOMMODATION,"3,805.93",Revenue,22/07/2014,Social Care & Inclusion
WC46-0722,BETHPHAGE.,Third Party Payments,Private Contractor Fees,73374-SUPPORTED & OTHER ACCOMMODATION,"3,831.92",Revenue,17/07/2014,Social Care & Inclusion
WC46-0723,REDACTED,Transfer Payments,Transfer Payments,76422-DIRECT PAYMENTS TO SOCIAL SERVICES CLIENTS,322.00,Revenue,14/07/2014,Social Care & Inclusion
WC46-0724,REDACTED,Transfer Payments,Transfer Payments,76422-DIRECT PAYMENTS TO SOCIAL SERVICES CLIENTS,949.52,Revenue,14/07/2014,Social Care & Inclusion
WC46-0725,REDACTED,Transfer Payments,Transfer Payments,76422-DIRECT PAYMENTS TO SOCIAL SERVICES CLIENTS,998.60,Revenue,14/07/2014,Social Care & Inclusion
WC46-0726,BEVAN BRITTAN,Supplies & Services,Other Supplies & Services,63116-EXTERNAL BARRISTERS-SERVICES-FEES,"15,500.00",Revenue,25/07/2014,Resources
WC46-0727,BFA SAFETY TRAINING,Employees,Training,30030-EXTERNAL TRAINING,275.00,Revenue,03/07/2014,Resources
WC46-0728,BFA SAFETY TRAINING,Employees,Training,30030-EXTERNAL TRAINING,275.00,Revenue,07/07/2014,Resources
WC46-0729,BFA SAFETY TRAINING,Employees,Training,30030-EXTERNAL TRAINING,450.00,Revenue,07/07/2014,Resources
WC46-0730,BFA SAFETY TRAINING,Employees,Training,30030-EXTERNAL TRAINING,720.00,Revenue,07/07/2014,Resources
WC46-0731,BGL RIEBER LTD,Supplies & Services,"Printing, Stationery & Office Exp",63500-POSTAGES AND COURIER SERVICES,25.00,Revenue,02/07/2014,Neighbourhood Services
WC46-0732,BGL RIEBER LTD,Supplies & Services,"Equip,Furniture & Materials",60006-NEW-FURNITURE & EQUIPMENT,489.60,Revenue,02/07/2014,Neighbourhood Services
WC46-0733,BGL RIEBER LTD,Supplies & Services,"Equip,Furniture & Materials",60006-NEW-FURNITURE & EQUIPMENT,979.20,Revenue,02/07/2014,Neighbourhood Services
WC46-0734,BIFFA WASTE SERVICES LTD,Third Party Payments,Private Contractor Fees,73005-LANDFILL PTYS-PRIV CONTRACTOR FEES,"2,372.34",Revenue,23/07/2014,Neighbourhood Services
WC46-0735,BIFFA WASTE SERVICES LTD,Third Party Payments,Private Contractor Fees,73005-LANDFILL PTYS-PRIV CONTRACTOR FEES,"2,518.48",Revenue,10/07/2014,Neighbourhood Services
WC46-0736,BIFFA WASTE SERVICES LTD,Third Party Payments,Private Contractor Fees,73005-LANDFILL PTYS-PRIV CONTRACTOR FEES,"2,928.38",Revenue,10/07/2014,Neighbourhood Services
WC46-0737,BIFFA WASTE SERVICES LTD,Third Party Payments,Private Contractor Fees,73005-LANDFILL PTYS-PRIV CONTRACTOR FEES,"2,960.52",Revenue,10/07/2014,Neighbourhood Services
WC46-0738,BIFFA WASTE SERVICES LTD,Third Party Payments,Private Contractor Fees,73005-LANDFILL PTYS-PRIV CONTRACTOR FEES,"3,331.81",Revenue,28/07/2014,Neighbourhood Services
WC46-0739,BIFFA WASTE SERVICES LTD,Third Party Payments,Private Contractor Fees,73039-LANDFILL TAX-PRIV CONTRACTOR FEES,"14,700.80",Revenue,23/07/2014,Neighbourhood Services
WC46-0740,BIFFA WASTE SERVICES LTD,Third Party Payments,Private Contractor Fees,73039-LANDFILL TAX-PRIV CONTRACTOR FEES,"15,606.40",Revenue,10/07/2014,Neighbourhood Services
WC46-0741,BIFFA WASTE SERVICES LTD,Third Party Payments,Private Contractor Fees,73039-LANDFILL TAX-PRIV CONTRACTOR FEES,"18,146.40",Revenue,10/07/2014,Neighbourhood Services
WC46-0742,BIFFA WASTE SERVICES LTD,Third Party Payments,Private Contractor Fees,73039-LANDFILL TAX-PRIV CONTRACTOR FEES,"18,345.60",Revenue,10/07/2014,Neighbourhood Services
WC46-0743,BIFFA WASTE SERVICES LTD,Third Party Payments,Private Contractor Fees,73039-LANDFILL TAX-PRIV CONTRACTOR FEES,"20,646.40",Revenue,28/07/2014,Neighbourhood Services
WC46-0744,REDACTED,Transfer Payments,Transfer Payments,76422-DIRECT PAYMENTS TO SOCIAL SERVICES CLIENTS,339.92,Revenue,14/07/2014,Childrens
WC46-0745,BIOGAS TECHNOLOGY LIMITED,Supplies & Services,"Equip,Furniture & Materials",60008-MAINTENANCE-FURNITURE & EQUIPMENT,360.00,Revenue,07/07/2014,Neighbourhood Services
WC46-0746,BIRMINGHAM BOYS AND GIRLS UNION,Supplies & Services,Other Supplies & Services,63128-HIRE OF ROOM-SERVICES-FEES,260.00,Revenue,07/07/2014,Childrens
WC46-0747,BIRMINGHAM BOYS AND GIRLS UNION,Supplies & Services,Other Supplies & Services,63128-HIRE OF ROOM-SERVICES-FEES,260.00,Revenue,07/07/2014,Childrens
WC46-0748,BIRMINGHAM CITY COUNCIL,Supplies & Services,Provisions,61305-CATERING,285.95,Revenue,22/07/2014,Resources
WC46-0749,BIRMINGHAM WOMENS NHS FOUNDATION TRUST,Third Party Payments,Private Contractor Fees,74000-OTHER AGENCY FEES,"1,020.00",Revenue,16/07/2014,Neighbourhood Services
WC46-0750,BLACK COUNTRY CONSORTIUM LIMITED,Supplies & Services,Services,63000-PROFESSIONAL FEES AND SERVICES,"15,000.00",Revenue,10/07/2014,Regeneration
WC46-0751,BLACK COUNTRY CONSORTIUM LIMITED,Supplies & Services,Services,63000-PROFESSIONAL FEES AND SERVICES,"24,141.31",Revenue,01/07/2014,Regeneration
WC46-0752,BLACK COUNTRY CONSORTIUM LIMITED,Supplies & Services,Services,63000-PROFESSIONAL FEES AND SERVICES,"172,415.74",Revenue,17/07/2014,Regeneration
WC46-0753,BLACK COUNTRY PARTNERSHIP NHS,Third Party Payments,Private Contractor Fees,73373-RESIDENTIAL & NURSING CARE PLACEMENTS,"1,060.00",Revenue,01/07/2014,Social Care & Inclusion
WC46-0754,BLACK COUNTRY PARTNERSHIP NHS,Third Party Payments,Private Contractor Fees,73373-RESIDENTIAL & NURSING CARE PLACEMENTS,"3,048.00",Revenue,01/07/2014,Social Care & Inclusion
WC46-0755,BLACK COUNTRY PARTNERSHIP NHS,Third Party Payments,Private Contractor Fees,73373-RESIDENTIAL & NURSING CARE PLACEMENTS,"7,420.00",Revenue,01/07/2014,Social Care & Inclusion
WC46-0756,BLACK COUNTRY PARTNERSHIP NHS,Third Party Payments,Private Contractor Fees,73373-RESIDENTIAL & NURSING CARE PLACEMENTS,"19,572.00",Revenue,01/07/2014,Social Care & Inclusion
WC46-0757,BLACK COUNTRY PARTNERSHIP NHS,Third Party Payments,Private Contractor Fees,73373-RESIDENTIAL & NURSING CARE PLACEMENTS,"87,720.00",Revenue,09/07/2014,Social Care & Inclusion
WC46-0758,BLAKENALL HEATH JMI SCHOOL,Premises,Utilities,42000-GAS-ENERGY COSTS,848.72,Revenue,28/07/2014,Childrens
WC46-0759,BLAKENALL HEATH JMI SCHOOL,Transfer Payments,Transfer Payments,77300-ISB-FORMULA ALLOCATION,"86,631.80",Revenue,16/07/2014,Childrens
WC46-0760,BLANCHWORTH CARE HOMES LIMITED,Third Party Payments,Private Contractor Fees,73373-RESIDENTIAL & NURSING CARE PLACEMENTS,"2,007.30",Revenue,16/07/2014,Social Care & Inclusion
WC46-0761,BLE SECURITY,Third Party Payments,Private Contractor Fees,73025-PROFESSIONAL SERVICES-PRIV CONTRACTOR & OTHER AGENCIES,"1,118.00",Revenue,07/07/2014,Neighbourhood Services
WC46-0762,BLITZ RECYCLING AND WASTE SERVICES LTD,Third Party Payments,Private Contractor Fees,73025-PROFESSIONAL SERVICES-PRIV CONTRACTOR & OTHER AGENCIES,"1,500.00",Revenue,02/07/2014,Regeneration
WC46-0763,BLITZ RECYCLING AND WASTE SERVICES LTD,Third Party Payments,Private Contractor Fees,73025-PROFESSIONAL SERVICES-PRIV CONTRACTOR & OTHER AGENCIES,"1,860.00",Revenue,02/07/2014,Regeneration
WC46-0764,BLITZ RECYCLING AND WASTE SERVICES LTD,Third Party Payments,Private Contractor Fees,73025-PROFESSIONAL SERVICES-PRIV CONTRACTOR & OTHER AGENCIES,"6,405.00",Revenue,02/07/2014,Regeneration
WC46-0765,BLOXWICH COMMUNITY PARTNERSHIP.,Third Party Payments,Grants to Other Orgs,66500-GRANTS TO OTHER ORGS,"3,333.33",Revenue,30/07/2014,Neighbourhood Services
WC46-0766,BLOXWICH COMMUNITY PARTNERSHIP.,Third Party Payments,Grants to Other Orgs,66500-GRANTS TO OTHER ORGS,"6,333.36",Revenue,30/07/2014,Neighbourhood Services
WC46-0767,BLOXWICH COMMUNITY PARTNERSHIP.,Third Party Payments,Grants to Other Orgs,66500-GRANTS TO OTHER ORGS,"33,936.75",Revenue,14/07/2014,Childrens
WC46-0768,BLUE GIRAFFE CHILDCARE,Third Party Payments,Grants to Other Orgs,66505-OTHER-GRANTS TO OTHER ORGS,"2,234.70",Revenue,01/07/2014,Childrens
WC46-0769,BLUE GIRAFFE CHILDCARE,Third Party Payments,Grants to Other Orgs,66505-OTHER-GRANTS TO OTHER ORGS,"6,934.51",Revenue,14/07/2014,Childrens
WC46-0770,BOLDMERE COURT CARE HOME,Third Party Payments,Private Contractor Fees,73373-RESIDENTIAL & NURSING CARE PLACEMENTS,"1,494.00",Revenue,08/07/2014,Social Care & Inclusion
WC46-0771,BOLDMERE COURT CARE HOME,Third Party Payments,Private Contractor Fees,73373-RESIDENTIAL & NURSING CARE PLACEMENTS,"1,494.00",Revenue,08/07/2014,Social Care & Inclusion
WC46-0772,BORN TO PERFORM,Supplies & Services,Other Supplies & Services,62523-EVENTS,350.00,Revenue,24/07/2014,Regeneration
WC46-0773,BORN TO PERFORM,Supplies & Services,Other Supplies & Services,62515-MISCELLANEOUS SUPPLIES,560.00,Revenue,28/07/2014,Regeneration
WC46-0774,BOURNEMOUTH UNIVERSITY,Employees,Training,30030-EXTERNAL TRAINING,550.00,Revenue,10/07/2014,Childrens
WC46-0775,BOWDEN DERRA PARK,Third Party Payments,Private Contractor Fees,73373-RESIDENTIAL & NURSING CARE PLACEMENTS,"10,271.64",Revenue,08/07/2014,Social Care & Inclusion
WC46-0776,BOWDEN DERRA PARK,Third Party Payments,Private Contractor Fees,73373-RESIDENTIAL & NURSING CARE PLACEMENTS,"10,271.64",Revenue,29/07/2014,Social Care & Inclusion
WC46-0777,BPH DATA LTD,Supplies & Services,Other Supplies & Services,63114-OTHER FEES & LICENCES-SERVICES-FEES,755.00,Revenue,24/07/2014,Neighbourhood Services
WC46-0778,BRADLEY ENVIRONMENTAL,Third Party Payments,Private Contractor Fees,73025-PROFESSIONAL SERVICES-PRIV CONTRACTOR & OTHER AGENCIES,525.00,Revenue,11/07/2014,Regeneration
WC46-0779,BRADLEY ENVIRONMENTAL,Premises,Premises-Repairs & Maintenance,"40000-REPAIRS,ALTERATIONS & MAINTENANCE-PREM",630.00,Revenue,15/07/2014,Regeneration
WC46-0780,BRADLEY ENVIRONMENTAL,Premises,Premises-Repairs & Maintenance,"40000-REPAIRS,ALTERATIONS & MAINTENANCE-PREM",670.00,Revenue,21/07/2014,Regeneration
WC46-0781,BRADLEY ENVIRONMENTAL,Premises,Premises-Repairs & Maintenance,"40000-REPAIRS,ALTERATIONS & MAINTENANCE-PREM",780.00,Revenue,11/07/2014,Regeneration
WC46-0782,BRADLEY ENVIRONMENTAL,Premises,Premises-Repairs & Maintenance,"40000-REPAIRS,ALTERATIONS & MAINTENANCE-PREM","1,195.00",Revenue,15/07/2014,Regeneration
WC46-0783,BRADLEY ENVIRONMENTAL,Capital,Capital,01006-SITE WORKS MAIN CONTRACTORS,"2,125.00",Capital,15/07/2014,Childrens
WC46-0784,BRADLEY ENVIRONMENTAL,Capital,Capital,01006-SITE WORKS MAIN CONTRACTORS,"2,300.00",Capital,15/07/2014,Childrens
WC46-0785,REDACTED,Transfer Payments,Transfer Payments,76422-DIRECT PAYMENTS TO SOCIAL SERVICES CLIENTS,460.32,Revenue,14/07/2014,Social Care & Inclusion
WC46-0786,BRADVALE LTD T/A INSPIRE HEALTHCARE SERVICES,Third Party Payments,Private Contractor Fees,73025-PROFESSIONAL SERVICES-PRIV CONTRACTOR & OTHER AGENCIES,"8,071.50",Revenue,03/07/2014,Neighbourhood Services
WC46-0787,BRELMAYNE LTD,Supplies & Services,"Equip,Furniture & Materials",60008-MAINTENANCE-FURNITURE & EQUIPMENT,22.98,Revenue,02/07/2014,Neighbourhood Services
WC46-0788,BRELMAYNE LTD,Supplies & Services,"Equip,Furniture & Materials",60008-MAINTENANCE-FURNITURE & EQUIPMENT,34.86,Revenue,02/07/2014,Neighbourhood Services
WC46-0789,BRELMAYNE LTD,Supplies & Services,"Equip,Furniture & Materials",60008-MAINTENANCE-FURNITURE & EQUIPMENT,36.65,Revenue,02/07/2014,Neighbourhood Services
WC46-0790,BRELMAYNE LTD,Supplies & Services,"Equip,Furniture & Materials",60008-MAINTENANCE-FURNITURE & EQUIPMENT,38.55,Revenue,02/07/2014,Neighbourhood Services
WC46-0791,BRELMAYNE LTD,Supplies & Services,"Equip,Furniture & Materials",60008-MAINTENANCE-FURNITURE & EQUIPMENT,38.58,Revenue,02/07/2014,Neighbourhood Services
WC46-0792,BRELMAYNE LTD,Supplies & Services,"Equip,Furniture & Materials",60008-MAINTENANCE-FURNITURE & EQUIPMENT,45.96,Revenue,02/07/2014,Neighbourhood Services
WC46-0793,BRELMAYNE LTD,Supplies & Services,"Equip,Furniture & Materials",60008-MAINTENANCE-FURNITURE & EQUIPMENT,46.83,Revenue,02/07/2014,Neighbourhood Services
WC46-0794,BRELMAYNE LTD,Supplies & Services,"Equip,Furniture & Materials",60008-MAINTENANCE-FURNITURE & EQUIPMENT,62.29,Revenue,02/07/2014,Neighbourhood Services
WC46-0795,BRELMAYNE LTD,Supplies & Services,"Equip,Furniture & Materials",60008-MAINTENANCE-FURNITURE & EQUIPMENT,103.84,Revenue,02/07/2014,Neighbourhood Services
WC46-0796,BRELMAYNE LTD,Supplies & Services,"Equip,Furniture & Materials",60008-MAINTENANCE-FURNITURE & EQUIPMENT,108.92,Revenue,02/07/2014,Neighbourhood Services
WC46-0797,BRELMAYNE LTD,Supplies & Services,"Equip,Furniture & Materials",60008-MAINTENANCE-FURNITURE & EQUIPMENT,114.90,Revenue,02/07/2014,Neighbourhood Services
WC46-0798,BRELMAYNE LTD,Supplies & Services,"Equip,Furniture & Materials",60008-MAINTENANCE-FURNITURE & EQUIPMENT,114.90,Revenue,02/07/2014,Neighbourhood Services
WC46-0799,BRELMAYNE LTD,Supplies & Services,"Equip,Furniture & Materials",60008-MAINTENANCE-FURNITURE & EQUIPMENT,119.30,Revenue,02/07/2014,Neighbourhood Services
WC46-0800,BRELMAYNE LTD,Supplies & Services,"Equip,Furniture & Materials",60008-MAINTENANCE-FURNITURE & EQUIPMENT,145.89,Revenue,02/07/2014,Neighbourhood Services
WC46-0801,BRELMAYNE LTD,Supplies & Services,"Equip,Furniture & Materials",60008-MAINTENANCE-FURNITURE & EQUIPMENT,212.32,Revenue,02/07/2014,Neighbourhood Services
WC46-0802,BRELMAYNE LTD,Supplies & Services,"Equip,Furniture & Materials",60008-MAINTENANCE-FURNITURE & EQUIPMENT,241.84,Revenue,02/07/2014,Neighbourhood Services
WC46-0803,BRELMAYNE LTD,Supplies & Services,"Equip,Furniture & Materials",60008-MAINTENANCE-FURNITURE & EQUIPMENT,252.46,Revenue,02/07/2014,Neighbourhood Services
WC46-0804,BRELMAYNE LTD,Supplies & Services,"Equip,Furniture & Materials",60008-MAINTENANCE-FURNITURE & EQUIPMENT,261.41,Revenue,02/07/2014,Neighbourhood Services
WC46-0805,BRELMAYNE LTD,Premises,Premises-Repairs & Maintenance,"40000-REPAIRS,ALTERATIONS & MAINTENANCE-PREM",267.85,Revenue,11/07/2014,Regeneration
WC46-0806,BRELMAYNE LTD,Supplies & Services,"Equip,Furniture & Materials",60500-GENERAL MATERIALS,272.96,Revenue,07/07/2014,Neighbourhood Services
WC46-0807,BRELMAYNE LTD,Supplies & Services,"Equip,Furniture & Materials",60008-MAINTENANCE-FURNITURE & EQUIPMENT,273.66,Revenue,02/07/2014,Neighbourhood Services
WC46-0808,BRELMAYNE LTD,Third Party Payments,Private Contractor Fees,73025-PROFESSIONAL SERVICES-PRIV CONTRACTOR & OTHER AGENCIES,284.71,Revenue,25/07/2014,Regeneration
WC46-0809,BRELMAYNE LTD,Capital,Capital,01006-SITE WORKS MAIN CONTRACTORS,285.54,Capital,24/07/2014,Regeneration
WC46-0810,BRELMAYNE LTD,Third Party Payments,Private Contractor Fees,73025-PROFESSIONAL SERVICES-PRIV CONTRACTOR & OTHER AGENCIES,300.75,Revenue,14/07/2014,Regeneration
WC46-0811,BRELMAYNE LTD,Third Party Payments,Private Contractor Fees,73025-PROFESSIONAL SERVICES-PRIV CONTRACTOR & OTHER AGENCIES,301.14,Revenue,30/07/2014,Regeneration
WC46-0812,BRELMAYNE LTD,Third Party Payments,Private Contractor Fees,73025-PROFESSIONAL SERVICES-PRIV CONTRACTOR & OTHER AGENCIES,304.72,Revenue,14/07/2014,Regeneration
WC46-0813,BRELMAYNE LTD,Third Party Payments,Private Contractor Fees,73025-PROFESSIONAL SERVICES-PRIV CONTRACTOR & OTHER AGENCIES,305.37,Revenue,22/07/2014,Regeneration
WC46-0814,BRELMAYNE LTD,Third Party Payments,Private Contractor Fees,73025-PROFESSIONAL SERVICES-PRIV CONTRACTOR & OTHER AGENCIES,308.56,Revenue,28/07/2014,Regeneration
WC46-0815,BRELMAYNE LTD,Third Party Payments,Private Contractor Fees,73025-PROFESSIONAL SERVICES-PRIV CONTRACTOR & OTHER AGENCIES,309.15,Revenue,22/07/2014,Regeneration
WC46-0816,BRELMAYNE LTD,Third Party Payments,Private Contractor Fees,73025-PROFESSIONAL SERVICES-PRIV CONTRACTOR & OTHER AGENCIES,311.10,Revenue,14/07/2014,Regeneration
WC46-0817,BRELMAYNE LTD,Supplies & Services,"Equip,Furniture & Materials",60008-MAINTENANCE-FURNITURE & EQUIPMENT,321.97,Revenue,02/07/2014,Neighbourhood Services
WC46-0818,BRELMAYNE LTD,Capital,Capital,01006-SITE WORKS MAIN CONTRACTORS,341.42,Capital,25/07/2014,Regeneration
WC46-0819,BRELMAYNE LTD,Supplies & Services,Services,63000-PROFESSIONAL FEES AND SERVICES,349.17,Revenue,24/07/2014,Neighbourhood Services
WC46-0820,BRELMAYNE LTD,Third Party Payments,Private Contractor Fees,73025-PROFESSIONAL SERVICES-PRIV CONTRACTOR & OTHER AGENCIES,349.17,Revenue,02/07/2014,Regeneration
WC46-0821,BRELMAYNE LTD,Third Party Payments,Private Contractor Fees,73025-PROFESSIONAL SERVICES-PRIV CONTRACTOR & OTHER AGENCIES,350.11,Revenue,14/07/2014,Regeneration
WC46-0822,BRELMAYNE LTD,Capital,Capital,01006-SITE WORKS MAIN CONTRACTORS,355.92,Capital,28/07/2014,Regeneration
WC46-0823,BRELMAYNE LTD,Third Party Payments,Private Contractor Fees,73025-PROFESSIONAL SERVICES-PRIV CONTRACTOR & OTHER AGENCIES,356.78,Revenue,25/07/2014,Regeneration
WC46-0824,BRELMAYNE LTD,Third Party Payments,Private Contractor Fees,73025-PROFESSIONAL SERVICES-PRIV CONTRACTOR & OTHER AGENCIES,368.05,Revenue,25/07/2014,Regeneration
WC46-0825,BRELMAYNE LTD,Third Party Payments,Private Contractor Fees,73025-PROFESSIONAL SERVICES-PRIV CONTRACTOR & OTHER AGENCIES,368.45,Revenue,14/07/2014,Regeneration
WC46-0826,BRELMAYNE LTD,Supplies & Services,"Equip,Furniture & Materials",60008-MAINTENANCE-FURNITURE & EQUIPMENT,382.57,Revenue,28/07/2014,Neighbourhood Services
WC46-0827,BRELMAYNE LTD,Supplies & Services,"Equip,Furniture & Materials",60008-MAINTENANCE-FURNITURE & EQUIPMENT,392.30,Revenue,25/07/2014,Neighbourhood Services
WC46-0828,BRELMAYNE LTD,Capital,Capital,01006-SITE WORKS MAIN CONTRACTORS,392.63,Capital,28/07/2014,Regeneration
WC46-0829,BRELMAYNE LTD,Premises,Premises-Repairs & Maintenance,"40000-REPAIRS,ALTERATIONS & MAINTENANCE-PREM",443.11,Revenue,30/07/2014,Regeneration
WC46-0830,BRELMAYNE LTD,Supplies & Services,"Equip,Furniture & Materials",60008-MAINTENANCE-FURNITURE & EQUIPMENT,472.90,Revenue,25/07/2014,Neighbourhood Services
WC46-0831,BRELMAYNE LTD,Premises,Premises-Repairs & Maintenance,"40000-REPAIRS,ALTERATIONS & MAINTENANCE-PREM",502.61,Revenue,01/07/2014,Regeneration
WC46-0832,BRELMAYNE LTD,Third Party Payments,Private Contractor Fees,73025-PROFESSIONAL SERVICES-PRIV CONTRACTOR & OTHER AGENCIES,507.83,Revenue,14/07/2014,Regeneration
WC46-0833,BRELMAYNE LTD,Supplies & Services,"Equip,Furniture & Materials",60008-MAINTENANCE-FURNITURE & EQUIPMENT,572.24,Revenue,02/07/2014,Neighbourhood Services
WC46-0834,BRELMAYNE LTD,Capital,Capital,01006-SITE WORKS MAIN CONTRACTORS,658.55,Capital,02/07/2014,Regeneration
WC46-0835,BRELMAYNE LTD,Supplies & Services,"Equip,Furniture & Materials",60008-MAINTENANCE-FURNITURE & EQUIPMENT,780.00,Revenue,14/07/2014,Neighbourhood Services
WC46-0836,BRELMAYNE LTD,Premises,Premises-Repairs & Maintenance,"40000-REPAIRS,ALTERATIONS & MAINTENANCE-PREM",787.60,Revenue,02/07/2014,Regeneration
WC46-0837,BRELMAYNE LTD,Supplies & Services,"Equip,Furniture & Materials",60008-MAINTENANCE-FURNITURE & EQUIPMENT,912.81,Revenue,25/07/2014,Neighbourhood Services
WC46-0838,BRELMAYNE LTD,Premises,Premises-Repairs & Maintenance,40501-EXTERNAL DECORATING,992.18,Revenue,09/07/2014,Neighbourhood Services
WC46-0839,BRELMAYNE LTD,Premises,Premises-Repairs & Maintenance,"40000-REPAIRS,ALTERATIONS & MAINTENANCE-PREM","1,040.76",Revenue,28/07/2014,Regeneration
WC46-0840,BRELMAYNE LTD,Third Party Payments,Private Contractor Fees,73025-PROFESSIONAL SERVICES-PRIV CONTRACTOR & OTHER AGENCIES,"1,092.40",Revenue,02/07/2014,Regeneration
WC46-0841,BRELMAYNE LTD,Capital,Capital,01006-SITE WORKS MAIN CONTRACTORS,"1,112.80",Capital,24/07/2014,Regeneration
WC46-0842,BRELMAYNE LTD,Third Party Payments,Private Contractor Fees,73025-PROFESSIONAL SERVICES-PRIV CONTRACTOR & OTHER AGENCIES,"1,121.65",Revenue,02/07/2014,Regeneration
WC46-0843,BRELMAYNE LTD,Third Party Payments,Private Contractor Fees,73025-PROFESSIONAL SERVICES-PRIV CONTRACTOR & OTHER AGENCIES,"1,495.79",Revenue,11/07/2014,Regeneration
WC46-0844,BRELMAYNE LTD,Supplies & Services,"Equip,Furniture & Materials",60008-MAINTENANCE-FURNITURE & EQUIPMENT,"1,706.77",Revenue,25/07/2014,Neighbourhood Services
WC46-0845,BRELMAYNE LTD,Premises,Premises-Repairs & Maintenance,"40000-REPAIRS,ALTERATIONS & MAINTENANCE-PREM","1,745.80",Revenue,14/07/2014,Regeneration
WC46-0846,BRELMAYNE LTD,Third Party Payments,Private Contractor Fees,73025-PROFESSIONAL SERVICES-PRIV CONTRACTOR & OTHER AGENCIES,"1,940.09",Revenue,25/07/2014,Regeneration
WC46-0847,BRELMAYNE LTD,Supplies & Services,"Equip,Furniture & Materials",60006-NEW-FURNITURE & EQUIPMENT,"2,350.00",Revenue,30/07/2014,Neighbourhood Services
WC46-0848,BRELMAYNE LTD,Supplies & Services,"Equip,Furniture & Materials",60006-NEW-FURNITURE & EQUIPMENT,"2,838.70",Revenue,30/07/2014,Neighbourhood Services
WC46-0849,BRELMAYNE LTD,Supplies & Services,"Equip,Furniture & Materials",60006-NEW-FURNITURE & EQUIPMENT,"2,838.70",Revenue,30/07/2014,Neighbourhood Services
WC46-0850,BRELMAYNE LTD,Supplies & Services,"Equip,Furniture & Materials",60006-NEW-FURNITURE & EQUIPMENT,"2,838.70",Revenue,30/07/2014,Neighbourhood Services
WC46-0851,BRELMAYNE LTD,Premises,Premises-Repairs & Maintenance,"40000-REPAIRS,ALTERATIONS & MAINTENANCE-PREM","3,440.25",Revenue,02/07/2014,Regeneration
WC46-0852,REDACTED,Transfer Payments,Transfer Payments,76422-DIRECT PAYMENTS TO SOCIAL SERVICES CLIENTS,680.00,Revenue,14/07/2014,Social Care & Inclusion
WC46-0853,REDACTED,Transfer Payments,Transfer Payments,76422-DIRECT PAYMENTS TO SOCIAL SERVICES CLIENTS,440.00,Revenue,14/07/2014,Social Care & Inclusion
WC46-0854,REDACTED,Supplies & Services,Other Supplies & Services,62515-MISCELLANEOUS SUPPLIES,"1,540.64",Revenue,21/07/2014,Childrens
WC46-0855,REDACTED,Third Party Payments,Private Contractor Fees,74006-HOLIDAY/CHRISTMAS ALLOWANCE-FOSTER CARERS-OTH AGENCY PROVISION,"1,918.20",Revenue,21/07/2014,Childrens
WC46-0856,REDACTED,Transfer Payments,Transfer Payments,76422-DIRECT PAYMENTS TO SOCIAL SERVICES CLIENTS,544.00,Revenue,14/07/2014,Social Care & Inclusion
WC46-0857,BRENNTAG UK LIMITED,Transport,Other Transport,50301-FUEL-TRANSPORT RUN COSTS,571.12,Revenue,29/07/2014,Neighbourhood Services
WC46-0858,REDACTED,Third Party Payments,Private Contractor Fees,73374-SUPPORTED & OTHER ACCOMMODATION,"2,935.24",Revenue,14/07/2014,Social Care & Inclusion
WC46-0859,REDACTED,Transfer Payments,Transfer Payments,76422-DIRECT PAYMENTS TO SOCIAL SERVICES CLIENTS,493.20,Revenue,14/07/2014,Social Care & Inclusion
WC46-0860,REDACTED,Transfer Payments,Transfer Payments,76422-DIRECT PAYMENTS TO SOCIAL SERVICES CLIENTS,"1,294.80",Revenue,14/07/2014,Social Care & Inclusion
WC46-0861,REDACTED,Transfer Payments,Transfer Payments,76422-DIRECT PAYMENTS TO SOCIAL SERVICES CLIENTS,517.92,Revenue,14/07/2014,Social Care & Inclusion
WC46-0862,BRIAR ASSOCIATES,Third Party Payments,Private Contractor Fees,73025-PROFESSIONAL SERVICES-PRIV CONTRACTOR & OTHER AGENCIES,250.00,Revenue,14/07/2014,Regeneration
WC46-0863,BRIDGEWOOD HEALTH CARE LTD,Third Party Payments,Private Contractor Fees,73373-RESIDENTIAL & NURSING CARE PLACEMENTS,"5,058.44",Revenue,01/07/2014,Social Care & Inclusion
WC46-0864,BRIDGEWOOD HEALTH CARE LTD,Third Party Payments,Private Contractor Fees,73373-RESIDENTIAL & NURSING CARE PLACEMENTS,"5,058.44",Revenue,22/07/2014,Social Care & Inclusion
WC46-0865,BRIGHTER FUTURES,Premises,Utilities,45000-WATER CHARGES,"25,000.00",Revenue,22/07/2014,Resources
WC46-0866,REDACTED,Transfer Payments,Transfer Payments,76422-DIRECT PAYMENTS TO SOCIAL SERVICES CLIENTS,"1,039.78",Revenue,14/07/2014,Social Care & Inclusion
WC46-0867,BRISTOW & SUTOR,Supplies & Services,Services,63102-CONSULTANTS FEES - CORPORATE,"1,380.00",Revenue,08/07/2014,Resources
WC46-0868,BRITANNIA APPRENTICESHIPS LTD,Third Party Payments,Grants to Other Orgs,66500-GRANTS TO OTHER ORGS,"1,125.00",Revenue,16/07/2014,Regeneration
WC46-0869,BRITANNIA APPRENTICESHIPS LTD,Supplies & Services,Services,63000-PROFESSIONAL FEES AND SERVICES,"1,500.00",Revenue,01/07/2014,Regeneration
WC46-0870,BRITANNIA APPRENTICESHIPS LTD,Third Party Payments,Grants to Other Orgs,66500-GRANTS TO OTHER ORGS,"2,250.00",Revenue,28/07/2014,Regeneration
WC46-0871,BRITANNIA APPRENTICESHIPS LTD,Third Party Payments,Grants to Other Orgs,66500-GRANTS TO OTHER ORGS,"3,000.00",Revenue,07/07/2014,Regeneration
WC46-0872,BRITISH ELECTRICAL COMPANY,Supplies & Services,"Equip,Furniture & Materials",60500-GENERAL MATERIALS,255.00,Revenue,07/07/2014,Neighbourhood Services
WC46-0873,BRITISH GAS BUSINESS,Premises,Utilities,42000-GAS-ENERGY COSTS,342.82,Revenue,15/07/2014,Regeneration
WC46-0874,BRITISH GAS BUSINESS,Premises,Utilities,42000-GAS-ENERGY COSTS,709.04,Revenue,15/07/2014,Regeneration
WC46-0875,BRITISH GAS BUSINESS,Premises,Utilities,42000-GAS-ENERGY COSTS,"1,541.18",Revenue,15/07/2014,Regeneration
WC46-0876,BRITISH GAS BUSINESS,Premises,Utilities,42000-GAS-ENERGY COSTS,"2,379.62",Revenue,24/07/2014,Childrens
WC46-0877,BRITISH GAS BUSINESS,Premises,Utilities,42000-GAS-ENERGY COSTS,"3,407.41",Revenue,01/07/2014,Childrens
WC46-0878,BRITISH GAS BUSINESS,Premises,Utilities,42000-GAS-ENERGY COSTS,"3,922.25",Revenue,15/07/2014,Regeneration
WC46-0879,BRITISH GAS BUSINESS,Premises,Utilities,42000-GAS-ENERGY COSTS,"4,384.21",Revenue,15/07/2014,Regeneration
WC46-0880,BRITISH GAS BUSINESS,Premises,Utilities,42000-GAS-ENERGY COSTS,"28,613.18",Revenue,15/07/2014,Regeneration
WC46-0881,BROADOAK CARE,Third Party Payments,Private Contractor Fees,73373-RESIDENTIAL & NURSING CARE PLACEMENTS,767.04,Revenue,08/07/2014,Social Care & Inclusion
WC46-0882,BROADOAK CARE,Third Party Payments,Private Contractor Fees,73373-RESIDENTIAL & NURSING CARE PLACEMENTS,931.26,Revenue,01/07/2014,Social Care & Inclusion
WC46-0883,BROADOAK CARE,Third Party Payments,Private Contractor Fees,73373-RESIDENTIAL & NURSING CARE PLACEMENTS,"1,041.01",Revenue,16/07/2014,Social Care & Inclusion
WC46-0884,BROADOAK CARE,Third Party Payments,Private Contractor Fees,73373-RESIDENTIAL & NURSING CARE PLACEMENTS,"1,458.14",Revenue,16/07/2014,Social Care & Inclusion
WC46-0885,BROADOAK CARE,Third Party Payments,Private Contractor Fees,73373-RESIDENTIAL & NURSING CARE PLACEMENTS,"1,458.16",Revenue,01/07/2014,Social Care & Inclusion
WC46-0886,BROADOAK CARE,Third Party Payments,Private Contractor Fees,73373-RESIDENTIAL & NURSING CARE PLACEMENTS,"1,458.16",Revenue,01/07/2014,Social Care & Inclusion
WC46-0887,BROADOAK CARE,Third Party Payments,Private Contractor Fees,73373-RESIDENTIAL & NURSING CARE PLACEMENTS,"1,458.16",Revenue,22/07/2014,Social Care & Inclusion
WC46-0888,BROADOAK CARE,Third Party Payments,Private Contractor Fees,73373-RESIDENTIAL & NURSING CARE PLACEMENTS,"1,534.00",Revenue,22/07/2014,Social Care & Inclusion
WC46-0889,BROADOAK CARE,Third Party Payments,Private Contractor Fees,73373-RESIDENTIAL & NURSING CARE PLACEMENTS,"1,534.08",Revenue,01/07/2014,Social Care & Inclusion
WC46-0890,BROADOAK CARE,Third Party Payments,Private Contractor Fees,73373-RESIDENTIAL & NURSING CARE PLACEMENTS,"1,534.08",Revenue,01/07/2014,Social Care & Inclusion
WC46-0891,BROADOAK CARE,Third Party Payments,Private Contractor Fees,73373-RESIDENTIAL & NURSING CARE PLACEMENTS,"1,534.08",Revenue,01/07/2014,Social Care & Inclusion
WC46-0892,BROADOAK CARE,Third Party Payments,Private Contractor Fees,73373-RESIDENTIAL & NURSING CARE PLACEMENTS,"1,534.08",Revenue,01/07/2014,Social Care & Inclusion
WC46-0893,BROADOAK CARE,Third Party Payments,Private Contractor Fees,73373-RESIDENTIAL & NURSING CARE PLACEMENTS,"1,534.08",Revenue,01/07/2014,Social Care & Inclusion
WC46-0894,BROADOAK CARE,Third Party Payments,Private Contractor Fees,73373-RESIDENTIAL & NURSING CARE PLACEMENTS,"1,534.08",Revenue,01/07/2014,Social Care & Inclusion
WC46-0895,BROADOAK CARE,Third Party Payments,Private Contractor Fees,73373-RESIDENTIAL & NURSING CARE PLACEMENTS,"1,534.08",Revenue,01/07/2014,Social Care & Inclusion
WC46-0896,BROADOAK CARE,Third Party Payments,Private Contractor Fees,73373-RESIDENTIAL & NURSING CARE PLACEMENTS,"1,534.08",Revenue,01/07/2014,Social Care & Inclusion
WC46-0897,BROADOAK CARE,Third Party Payments,Private Contractor Fees,73373-RESIDENTIAL & NURSING CARE PLACEMENTS,"1,534.08",Revenue,01/07/2014,Social Care & Inclusion
WC46-0898,BROADOAK CARE,Third Party Payments,Private Contractor Fees,73373-RESIDENTIAL & NURSING CARE PLACEMENTS,"1,534.08",Revenue,01/07/2014,Social Care & Inclusion
WC46-0899,BROADOAK CARE,Third Party Payments,Private Contractor Fees,73373-RESIDENTIAL & NURSING CARE PLACEMENTS,"1,534.08",Revenue,01/07/2014,Social Care & Inclusion
WC46-0900,BROADOAK CARE,Third Party Payments,Private Contractor Fees,73373-RESIDENTIAL & NURSING CARE PLACEMENTS,"1,534.08",Revenue,01/07/2014,Social Care & Inclusion
WC46-0901,BROADOAK CARE,Third Party Payments,Private Contractor Fees,73373-RESIDENTIAL & NURSING CARE PLACEMENTS,"1,534.08",Revenue,01/07/2014,Social Care & Inclusion
WC46-0902,BROADOAK CARE,Third Party Payments,Private Contractor Fees,73373-RESIDENTIAL & NURSING CARE PLACEMENTS,"1,534.08",Revenue,01/07/2014,Social Care & Inclusion
WC46-0903,BROADOAK CARE,Third Party Payments,Private Contractor Fees,73373-RESIDENTIAL & NURSING CARE PLACEMENTS,"1,534.08",Revenue,01/07/2014,Social Care & Inclusion
WC46-0904,BROADOAK CARE,Third Party Payments,Private Contractor Fees,73373-RESIDENTIAL & NURSING CARE PLACEMENTS,"1,534.08",Revenue,22/07/2014,Social Care & Inclusion
WC46-0905,BROADOAK CARE,Third Party Payments,Private Contractor Fees,73373-RESIDENTIAL & NURSING CARE PLACEMENTS,"1,534.08",Revenue,22/07/2014,Social Care & Inclusion
WC46-0906,BROADOAK CARE,Third Party Payments,Private Contractor Fees,73373-RESIDENTIAL & NURSING CARE PLACEMENTS,"1,534.08",Revenue,22/07/2014,Social Care & Inclusion
WC46-0907,BROADOAK CARE,Third Party Payments,Private Contractor Fees,73373-RESIDENTIAL & NURSING CARE PLACEMENTS,"1,534.08",Revenue,22/07/2014,Social Care & Inclusion
WC46-0908,BROADOAK CARE,Third Party Payments,Private Contractor Fees,73373-RESIDENTIAL & NURSING CARE PLACEMENTS,"1,534.08",Revenue,22/07/2014,Social Care & Inclusion
WC46-0909,BROADOAK CARE,Third Party Payments,Private Contractor Fees,73373-RESIDENTIAL & NURSING CARE PLACEMENTS,"1,534.08",Revenue,22/07/2014,Social Care & Inclusion
WC46-0910,BROADOAK CARE,Third Party Payments,Private Contractor Fees,73373-RESIDENTIAL & NURSING CARE PLACEMENTS,"1,534.08",Revenue,22/07/2014,Social Care & Inclusion
WC46-0911,BROADOAK CARE,Third Party Payments,Private Contractor Fees,73373-RESIDENTIAL & NURSING CARE PLACEMENTS,"1,534.08",Revenue,22/07/2014,Social Care & Inclusion
WC46-0912,BROADOAK CARE,Third Party Payments,Private Contractor Fees,73373-RESIDENTIAL & NURSING CARE PLACEMENTS,"1,534.08",Revenue,22/07/2014,Social Care & Inclusion
WC46-0913,BROADOAK CARE,Third Party Payments,Private Contractor Fees,73373-RESIDENTIAL & NURSING CARE PLACEMENTS,"1,534.08",Revenue,22/07/2014,Social Care & Inclusion
WC46-0914,BROADOAK CARE,Third Party Payments,Private Contractor Fees,73373-RESIDENTIAL & NURSING CARE PLACEMENTS,"1,534.08",Revenue,22/07/2014,Social Care & Inclusion
WC46-0915,BROADOAK CARE,Third Party Payments,Private Contractor Fees,73373-RESIDENTIAL & NURSING CARE PLACEMENTS,"1,534.08",Revenue,22/07/2014,Social Care & Inclusion
WC46-0916,BROADOAK CARE,Third Party Payments,Private Contractor Fees,73373-RESIDENTIAL & NURSING CARE PLACEMENTS,"1,534.08",Revenue,22/07/2014,Social Care & Inclusion
WC46-0917,BROADOAK CARE,Third Party Payments,Private Contractor Fees,73373-RESIDENTIAL & NURSING CARE PLACEMENTS,"1,534.08",Revenue,22/07/2014,Social Care & Inclusion
WC46-0918,BROADOAK CARE,Third Party Payments,Private Contractor Fees,73373-RESIDENTIAL & NURSING CARE PLACEMENTS,"1,534.18",Revenue,08/07/2014,Social Care & Inclusion
WC46-0919,BROADOAK CARE,Third Party Payments,Private Contractor Fees,73373-RESIDENTIAL & NURSING CARE PLACEMENTS,"1,534.22",Revenue,01/07/2014,Social Care & Inclusion
WC46-0920,BROADOAK CARE,Third Party Payments,Private Contractor Fees,73373-RESIDENTIAL & NURSING CARE PLACEMENTS,"1,534.22",Revenue,22/07/2014,Social Care & Inclusion
WC46-0921,BROADWAY LODGE,Third Party Payments,Private Contractor Fees,73373-RESIDENTIAL & NURSING CARE PLACEMENTS,550.00,Revenue,01/07/2014,Social Care & Inclusion
WC46-0922,BROADWAY LODGE,Third Party Payments,Private Contractor Fees,73373-RESIDENTIAL & NURSING CARE PLACEMENTS,"2,250.00",Revenue,01/07/2014,Social Care & Inclusion
WC46-0923,BROADWAY LODGE,Third Party Payments,Private Contractor Fees,73373-RESIDENTIAL & NURSING CARE PLACEMENTS,"2,695.00",Revenue,02/07/2014,Social Care & Inclusion
WC46-0924,BROADWAY LODGE,Third Party Payments,Private Contractor Fees,73373-RESIDENTIAL & NURSING CARE PLACEMENTS,"2,695.00",Revenue,02/07/2014,Social Care & Inclusion
WC46-0925,BROADWAY LODGE,Third Party Payments,Private Contractor Fees,73373-RESIDENTIAL & NURSING CARE PLACEMENTS,"3,850.00",Revenue,01/07/2014,Social Care & Inclusion
WC46-0926,BROADWAY LODGE,Third Party Payments,Private Contractor Fees,73373-RESIDENTIAL & NURSING CARE PLACEMENTS,"4,750.00",Revenue,01/07/2014,Social Care & Inclusion
WC46-0927,BROADWAY LODGE,Third Party Payments,Private Contractor Fees,73373-RESIDENTIAL & NURSING CARE PLACEMENTS,"6,928.00",Revenue,02/07/2014,Social Care & Inclusion
WC46-0928,BROADWAY LODGE,Third Party Payments,Private Contractor Fees,73373-RESIDENTIAL & NURSING CARE PLACEMENTS,"7,000.00",Revenue,29/07/2014,Social Care & Inclusion
WC46-0929,BROADWAY TRAVEL CONNECTIONS,Transport,Hire,52000-WITH DRIVER-HIRE OF VEHICLES,950.00,Revenue,01/07/2014,Childrens
WC46-0930,BROADWAY TRAVEL CONNECTIONS,Transport,Hire,52000-WITH DRIVER-HIRE OF VEHICLES,950.00,Revenue,15/07/2014,Childrens
WC46-0931,BROOK DESIGN HARDWARE LTD T/A BROOKVENT,Supplies & Services,"Equip,Furniture & Materials",60500-GENERAL MATERIALS,488.00,Revenue,01/07/2014,Social Care & Inclusion
WC46-0932,BROWNHILLS ASPHALT TARMACADAM,Third Party Payments,Private Contractor Fees,73025-PROFESSIONAL SERVICES-PRIV CONTRACTOR & OTHER AGENCIES,250.00,Revenue,30/07/2014,Regeneration
WC46-0933,BROWNHILLS ASPHALT TARMACADAM,Premises,Premises-Repairs & Maintenance,"40000-REPAIRS,ALTERATIONS & MAINTENANCE-PREM",300.00,Revenue,16/07/2014,Regeneration
WC46-0934,BROWNHILLS ASPHALT TARMACADAM,Premises,Premises-Repairs & Maintenance,"40000-REPAIRS,ALTERATIONS & MAINTENANCE-PREM",320.00,Revenue,09/07/2014,Regeneration
WC46-0935,BROWNHILLS ASPHALT TARMACADAM,Premises,Premises-Repairs & Maintenance,"40000-REPAIRS,ALTERATIONS & MAINTENANCE-PREM",340.00,Revenue,10/07/2014,Regeneration
WC46-0936,BROWNHILLS ASPHALT TARMACADAM,Premises,Premises-Repairs & Maintenance,"40000-REPAIRS,ALTERATIONS & MAINTENANCE-PREM",495.00,Revenue,07/07/2014,Neighbourhood Services
WC46-0937,BROWNHILLS ASPHALT TARMACADAM,Premises,Premises-Repairs & Maintenance,"40000-REPAIRS,ALTERATIONS & MAINTENANCE-PREM",980.00,Revenue,04/07/2014,Regeneration
WC46-0938,BROWNHILLS ASPHALT TARMACADAM,Premises,Premises-Repairs & Maintenance,"40000-REPAIRS,ALTERATIONS & MAINTENANCE-PREM","1,085.00",Revenue,17/07/2014,Regeneration
WC46-0939,BROWNHILLS ASPHALT TARMACADAM,Premises,Premises-Repairs & Maintenance,"40000-REPAIRS,ALTERATIONS & MAINTENANCE-PREM","1,350.00",Revenue,17/07/2014,Regeneration
WC46-0940,BROWNHILLS ASPHALT TARMACADAM,Third Party Payments,Private Contractor Fees,73025-PROFESSIONAL SERVICES-PRIV CONTRACTOR & OTHER AGENCIES,"1,459.00",Revenue,22/07/2014,Regeneration
WC46-0941,BROWNHILLS ASPHALT TARMACADAM,Premises,Premises-Repairs & Maintenance,"40000-REPAIRS,ALTERATIONS & MAINTENANCE-PREM","2,450.00",Revenue,25/07/2014,Regeneration
WC46-0942,BROWNHILLS ASPHALT TARMACADAM,Premises,Premises-Repairs & Maintenance,"40000-REPAIRS,ALTERATIONS & MAINTENANCE-PREM","2,582.00",Revenue,21/07/2014,Neighbourhood Services
WC46-0943,BROWNHILLS ASPHALT TARMACADAM,Capital,Capital,01006-SITE WORKS MAIN CONTRACTORS,"6,274.56",Capital,16/07/2014,Regeneration
WC46-0944,BROWNHILLS ASPHALT TARMACADAM,Capital,Capital,01006-SITE WORKS MAIN CONTRACTORS,"6,474.00",Capital,03/07/2014,Neighbourhood Services
WC46-0945,BROWNHILLS CARS,Transport,Hire,52000-WITH DRIVER-HIRE OF VEHICLES,462.00,Revenue,17/07/2014,Childrens
WC46-0946,BROWNHILLS CARS,Transport,Hire,52000-WITH DRIVER-HIRE OF VEHICLES,"1,218.00",Revenue,17/07/2014,Childrens
WC46-0947,BROWNHILLS CARS,Transport,Hire,52000-WITH DRIVER-HIRE OF VEHICLES,"1,974.00",Revenue,17/07/2014,Childrens
WC46-0948,BROWNHILLS COMMUNITY ASSOCIATION,Third Party Payments,Grants to Other Orgs,66505-OTHER-GRANTS TO OTHER ORGS,"4,767.75",Revenue,11/07/2014,Childrens
WC46-0949,BROWNHILLS COMMUNITY ASSOCIATION,Third Party Payments,Grants to Other Orgs,66505-OTHER-GRANTS TO OTHER ORGS,"5,648.83",Revenue,04/07/2014,Childrens
WC46-0950,BROWNHILLS COMMUNITY ASSOCIATION,Third Party Payments,Grants to Other Orgs,66500-GRANTS TO OTHER ORGS,"6,666.66",Revenue,30/07/2014,Neighbourhood Services
WC46-0951,REDACTED,Transfer Payments,Transfer Payments,76422-DIRECT PAYMENTS TO SOCIAL SERVICES CLIENTS,"1,445.00",Revenue,14/07/2014,Social Care & Inclusion
WC46-0952,REDACTED,Supplies & Services,Services,63000-PROFESSIONAL FEES AND SERVICES,"2,081.25",Revenue,02/07/2014,Neighbourhood Services
WC46-0953,REDACTED,Supplies & Services,Services,63000-PROFESSIONAL FEES AND SERVICES,"2,081.25",Revenue,02/07/2014,Neighbourhood Services
WC46-0954,BRUNSWICK HOUSE,Third Party Payments,Private Contractor Fees,73373-RESIDENTIAL & NURSING CARE PLACEMENTS,"3,606.22",Revenue,03/07/2014,Social Care & Inclusion
WC46-0955,BRUNSWICK LODGE,Third Party Payments,Private Contractor Fees,73373-RESIDENTIAL & NURSING CARE PLACEMENTS,"4,922.29",Revenue,03/07/2014,Social Care & Inclusion
WC46-0956,BS SUPPORT SERVICES LIMITED,Supplies & Services,Services,63102-CONSULTANTS FEES - CORPORATE,"2,500.00",Revenue,21/07/2014,Childrens
WC46-0957,BT,Supplies & Services,Communications & Computing,63601-COSTS (NOT INTERNAL RECHARGES)-TELEPHONES,"1,870.40",Revenue,09/07/2014,Resources
WC46-0958,BT,Supplies & Services,Communications & Computing,63601-COSTS (NOT INTERNAL RECHARGES)-TELEPHONES,"7,852.17",Revenue,17/07/2014,Neighbourhood Services
WC46-0959,BT PLC,Supplies & Services,Communications & Computing,63602-COST OF RENTAL-TELEPHONES,190.86,Revenue,07/07/2014,Childrens
WC46-0960,BT PLC,Supplies & Services,Communications & Computing,63603-COST OF CALLS-TELEPHONES,532.49,Revenue,07/07/2014,Childrens
WC46-0961,BT PLC,Supplies & Services,Communications & Computing,63603-COST OF CALLS-TELEPHONES,994.00,Revenue,01/07/2014,Resources
WC46-0962,BT PLC,Supplies & Services,Communications & Computing,63603-COST OF CALLS-TELEPHONES,994.00,Revenue,01/07/2014,Resources
WC46-0963,BT PLC,Supplies & Services,Communications & Computing,63603-COST OF CALLS-TELEPHONES,994.00,Revenue,29/07/2014,Resources
WC46-0964,BT PLC,Supplies & Services,Communications & Computing,63601-COSTS (NOT INTERNAL RECHARGES)-TELEPHONES,"18,306.64",Revenue,23/07/2014,Resources
WC46-0965,BT REDCARE,Supplies & Services,"Equip,Furniture & Materials",60008-MAINTENANCE-FURNITURE & EQUIPMENT,250.00,Revenue,01/07/2014,Social Care & Inclusion
WC46-0966,BUFFET EXPRESS LTD,Supplies & Services,Provisions,61305-CATERING,"1,436.50",Revenue,23/07/2014,Neighbourhood Services
WC46-0967,BUFFET EXPRESS LTD,Supplies & Services,Provisions,61305-CATERING,"1,579.50",Revenue,07/07/2014,Neighbourhood Services
WC46-0968,BUPA CARE HOMES (CFHCARE) LTD,Third Party Payments,Private Contractor Fees,73373-RESIDENTIAL & NURSING CARE PLACEMENTS,"1,458.00",Revenue,01/07/2014,Social Care & Inclusion
WC46-0969,BUPA CARE HOMES (CFHCARE) LTD,Third Party Payments,Private Contractor Fees,73373-RESIDENTIAL & NURSING CARE PLACEMENTS,"1,458.00",Revenue,29/07/2014,Social Care & Inclusion
WC46-0970,BUPA CARE HOMES (CFHCARE) LTD,Third Party Payments,Private Contractor Fees,73373-RESIDENTIAL & NURSING CARE PLACEMENTS,"1,494.00",Revenue,01/07/2014,Social Care & Inclusion
WC46-0971,BUPA CARE HOMES (CFHCARE) LTD,Third Party Payments,Private Contractor Fees,73373-RESIDENTIAL & NURSING CARE PLACEMENTS,"1,494.00",Revenue,29/07/2014,Social Care & Inclusion
WC46-0972,BUPA CARE HOMES (CFHCARE) LTD,Third Party Payments,Private Contractor Fees,73373-RESIDENTIAL & NURSING CARE PLACEMENTS,"1,813.13",Revenue,16/07/2014,Social Care & Inclusion
WC46-0973,BUPA CARE HOMES (CFHCARE) LTD,Third Party Payments,Private Contractor Fees,73373-RESIDENTIAL & NURSING CARE PLACEMENTS,"3,060.92",Revenue,01/07/2014,Social Care & Inclusion
WC46-0974,BUPA CARE HOMES (CFHCARE) LTD,Third Party Payments,Private Contractor Fees,73373-RESIDENTIAL & NURSING CARE PLACEMENTS,"3,060.92",Revenue,29/07/2014,Social Care & Inclusion
WC46-0975,BUPA HOME HEALTHCARE,Supplies & Services,Services,63000-PROFESSIONAL FEES AND SERVICES,"1,960.88",Revenue,21/07/2014,Childrens
WC46-0976,BUPA HOME HEALTHCARE,Supplies & Services,Services,63000-PROFESSIONAL FEES AND SERVICES,"4,328.16",Revenue,21/07/2014,Childrens
WC46-0977,BUPA HOME HEALTHCARE,Supplies & Services,Services,63000-PROFESSIONAL FEES AND SERVICES,"4,704.08",Revenue,21/07/2014,Childrens
WC46-0978,BURNTWOOD COMPRESSOR SERVICES LIMITED,Premises,Premises-Repairs & Maintenance,"40000-REPAIRS,ALTERATIONS & MAINTENANCE-PREM",265.00,Revenue,14/07/2014,Regeneration
WC46-0979,BURNTWOOD COMPRESSOR SERVICES LIMITED,Premises,Premises-Repairs & Maintenance,"40000-REPAIRS,ALTERATIONS & MAINTENANCE-PREM",455.00,Revenue,14/07/2014,Regeneration
WC46-0980,BURROWS GM LTD,Supplies & Services,"Equip,Furniture & Materials",60500-GENERAL MATERIALS,274.84,Revenue,24/07/2014,Neighbourhood Services
WC46-0981,BURROWS GM LTD,Supplies & Services,"Equip,Furniture & Materials",60500-GENERAL MATERIALS,277.44,Revenue,03/07/2014,Neighbourhood Services
WC46-0982,BURROWS GM LTD,Supplies & Services,"Equip,Furniture & Materials",60500-GENERAL MATERIALS,371.41,Revenue,16/07/2014,Neighbourhood Services
WC46-0983,BURROWS GM LTD,Supplies & Services,"Equip,Furniture & Materials",60500-GENERAL MATERIALS,471.82,Revenue,24/07/2014,Neighbourhood Services
WC46-0984,BURROWS GM LTD,Supplies & Services,"Equip,Furniture & Materials",60500-GENERAL MATERIALS,505.60,Revenue,03/07/2014,Neighbourhood Services
WC46-0985,BURROWS GM LTD,Supplies & Services,"Equip,Furniture & Materials",60500-GENERAL MATERIALS,812.39,Revenue,24/07/2014,Neighbourhood Services
WC46-0986,BURTON ADDICTION CENTRE,Supplies & Services,Services,63000-PROFESSIONAL FEES AND SERVICES,"1,279.25",Revenue,30/07/2014,Neighbourhood Services
WC46-0987,BUSH HOME LTD,Third Party Payments,Private Contractor Fees,73373-RESIDENTIAL & NURSING CARE PLACEMENTS,"1,458.16",Revenue,01/07/2014,Social Care & Inclusion
WC46-0988,BUSH HOME LTD,Third Party Payments,Private Contractor Fees,73373-RESIDENTIAL & NURSING CARE PLACEMENTS,"1,458.16",Revenue,01/07/2014,Social Care & Inclusion
WC46-0989,BUSH HOME LTD,Third Party Payments,Private Contractor Fees,73373-RESIDENTIAL & NURSING CARE PLACEMENTS,"1,458.16",Revenue,01/07/2014,Social Care & Inclusion
WC46-0990,BUSH HOME LTD,Third Party Payments,Private Contractor Fees,73373-RESIDENTIAL & NURSING CARE PLACEMENTS,"1,460.40",Revenue,01/07/2014,Social Care & Inclusion
WC46-0991,BUSH HOME LTD,Third Party Payments,Private Contractor Fees,73373-RESIDENTIAL & NURSING CARE PLACEMENTS,"1,460.40",Revenue,01/07/2014,Social Care & Inclusion
WC46-0992,BUSH HOME LTD,Third Party Payments,Private Contractor Fees,73373-RESIDENTIAL & NURSING CARE PLACEMENTS,"1,460.40",Revenue,01/07/2014,Social Care & Inclusion
WC46-0993,BUSH HOME LTD,Third Party Payments,Private Contractor Fees,73373-RESIDENTIAL & NURSING CARE PLACEMENTS,"1,513.64",Revenue,01/07/2014,Social Care & Inclusion
WC46-0994,BUSH HOME LTD,Third Party Payments,Private Contractor Fees,73373-RESIDENTIAL & NURSING CARE PLACEMENTS,"1,513.68",Revenue,01/07/2014,Social Care & Inclusion
WC46-0995,BUSH HOME LTD,Third Party Payments,Private Contractor Fees,73373-RESIDENTIAL & NURSING CARE PLACEMENTS,"1,534.12",Revenue,01/07/2014,Social Care & Inclusion
WC46-0996,BUSH HOME LTD,Third Party Payments,Private Contractor Fees,73373-RESIDENTIAL & NURSING CARE PLACEMENTS,"1,534.12",Revenue,01/07/2014,Social Care & Inclusion
WC46-0997,BUSH HOME LTD,Third Party Payments,Private Contractor Fees,73373-RESIDENTIAL & NURSING CARE PLACEMENTS,"1,534.12",Revenue,01/07/2014,Social Care & Inclusion
WC46-0998,BUSH HOME LTD,Third Party Payments,Private Contractor Fees,73373-RESIDENTIAL & NURSING CARE PLACEMENTS,"1,534.12",Revenue,01/07/2014,Social Care & Inclusion
WC46-0999,BUSH HOME LTD,Third Party Payments,Private Contractor Fees,73373-RESIDENTIAL & NURSING CARE PLACEMENTS,"1,534.12",Revenue,01/07/2014,Social Care & Inclusion
WC46-1000,BUSH HOME LTD,Third Party Payments,Private Contractor Fees,73373-RESIDENTIAL & NURSING CARE PLACEMENTS,"1,534.12",Revenue,01/07/2014,Social Care & Inclusion
WC46-1001,BUSH HOME LTD,Third Party Payments,Private Contractor Fees,73373-RESIDENTIAL & NURSING CARE PLACEMENTS,"1,534.12",Revenue,01/07/2014,Social Care & Inclusion
WC46-1002,BUSH HOME LTD,Third Party Payments,Private Contractor Fees,73373-RESIDENTIAL & NURSING CARE PLACEMENTS,"1,534.12",Revenue,01/07/2014,Social Care & Inclusion
WC46-1003,BUSH HOME LTD,Third Party Payments,Private Contractor Fees,73373-RESIDENTIAL & NURSING CARE PLACEMENTS,"1,534.12",Revenue,01/07/2014,Social Care & Inclusion
WC46-1004,BUSH HOME LTD,Third Party Payments,Private Contractor Fees,73373-RESIDENTIAL & NURSING CARE PLACEMENTS,"1,557.60",Revenue,01/07/2014,Social Care & Inclusion
WC46-1005,BUSY BEES AT ST MATTHEWS,Third Party Payments,Grants to Other Orgs,66505-OTHER-GRANTS TO OTHER ORGS,440.10,Revenue,11/07/2014,Childrens
WC46-1006,BUSY BEES CHILDCARE LTD,Third Party Payments,Grants to Other Orgs,66505-OTHER-GRANTS TO OTHER ORGS,352.08,Revenue,11/07/2014,Childrens
WC46-1007,BUSY BEES CHILDCARE LTD,Third Party Payments,Grants to Other Orgs,66505-OTHER-GRANTS TO OTHER ORGS,"2,023.65",Revenue,01/07/2014,Childrens
WC46-1008,BY THE BRIDGE,Third Party Payments,Private Contractor Fees,74037-INDEPENDENT FOSTER CARE-OTH AGENCY PROVISION,"4,295.71",Revenue,15/07/2014,Childrens
WC46-1009,C & D BUSINESS SOLUTIONS LTD,Supplies & Services,Services,63000-PROFESSIONAL FEES AND SERVICES,720.00,Revenue,07/07/2014,Childrens
WC46-1010,C & V ORCHARD MANOR LTD,Third Party Payments,Private Contractor Fees,73373-RESIDENTIAL & NURSING CARE PLACEMENTS,"1,439.80",Revenue,22/07/2014,Social Care & Inclusion
WC46-1011,C & V ORCHARD MANOR LTD,Third Party Payments,Private Contractor Fees,73373-RESIDENTIAL & NURSING CARE PLACEMENTS,"1,439.80",Revenue,22/07/2014,Social Care & Inclusion
WC46-1012,C & V ORCHARD MANOR LTD,Third Party Payments,Private Contractor Fees,73373-RESIDENTIAL & NURSING CARE PLACEMENTS,"1,439.81",Revenue,22/07/2014,Social Care & Inclusion
WC46-1013,C & V ORCHARD MANOR LTD,Third Party Payments,Private Contractor Fees,73373-RESIDENTIAL & NURSING CARE PLACEMENTS,"1,460.40",Revenue,22/07/2014,Social Care & Inclusion
WC46-1014,C & V ORCHARD MANOR LTD,Third Party Payments,Private Contractor Fees,73373-RESIDENTIAL & NURSING CARE PLACEMENTS,"1,531.76",Revenue,22/07/2014,Social Care & Inclusion
WC46-1015,C & V ORCHARD MANOR LTD,Third Party Payments,Private Contractor Fees,73373-RESIDENTIAL & NURSING CARE PLACEMENTS,"1,531.76",Revenue,22/07/2014,Social Care & Inclusion
WC46-1016,C & V ORCHARD MANOR LTD,Third Party Payments,Private Contractor Fees,73373-RESIDENTIAL & NURSING CARE PLACEMENTS,"1,534.12",Revenue,22/07/2014,Social Care & Inclusion
WC46-1017,C & V ORCHARD RESIDENTIAL LTD,Third Party Payments,Private Contractor Fees,73373-RESIDENTIAL & NURSING CARE PLACEMENTS,"1,369.75",Revenue,22/07/2014,Social Care & Inclusion
WC46-1018,C & V ORCHARD RESIDENTIAL LTD,Third Party Payments,Private Contractor Fees,73373-RESIDENTIAL & NURSING CARE PLACEMENTS,"1,531.00",Revenue,22/07/2014,Social Care & Inclusion
WC46-1019,C & V ORCHARD RESIDENTIAL LTD,Third Party Payments,Private Contractor Fees,73373-RESIDENTIAL & NURSING CARE PLACEMENTS,"1,531.76",Revenue,22/07/2014,Social Care & Inclusion
WC46-1020,C & V ORCHARD RESIDENTIAL LTD,Third Party Payments,Private Contractor Fees,73373-RESIDENTIAL & NURSING CARE PLACEMENTS,"1,531.76",Revenue,22/07/2014,Social Care & Inclusion
WC46-1021,C & V ORCHARD RESIDENTIAL LTD,Third Party Payments,Private Contractor Fees,73373-RESIDENTIAL & NURSING CARE PLACEMENTS,"1,531.76",Revenue,22/07/2014,Social Care & Inclusion
WC46-1022,C & V ORCHARD RESIDENTIAL LTD,Third Party Payments,Private Contractor Fees,73373-RESIDENTIAL & NURSING CARE PLACEMENTS,"1,531.76",Revenue,22/07/2014,Social Care & Inclusion
WC46-1023,C & V ORCHARD RESIDENTIAL LTD,Third Party Payments,Private Contractor Fees,73373-RESIDENTIAL & NURSING CARE PLACEMENTS,"1,534.12",Revenue,22/07/2014,Social Care & Inclusion
WC46-1024,C & V ORCHARD RESIDENTIAL LTD,Third Party Payments,Private Contractor Fees,73373-RESIDENTIAL & NURSING CARE PLACEMENTS,"1,534.12",Revenue,22/07/2014,Social Care & Inclusion
WC46-1025,C ART ART TRANSPORT LTD,Third Party Payments,Private Contractor Fees,73032-TRANSPORTATION-PRIV CONTRACTOR FEES,265.00,Revenue,07/07/2014,Neighbourhood Services
WC46-1026,C ART ART TRANSPORT LTD,Third Party Payments,Private Contractor Fees,73032-TRANSPORTATION-PRIV CONTRACTOR FEES,"2,096.00",Revenue,02/07/2014,Neighbourhood Services
WC46-1027,REDACTED,Supplies & Services,Other Supplies & Services,62515-MISCELLANEOUS SUPPLIES,"4,267.08",Revenue,21/07/2014,Childrens
WC46-1028,REDACTED,Third Party Payments,Private Contractor Fees,74006-HOLIDAY/CHRISTMAS ALLOWANCE-FOSTER CARERS-OTH AGENCY PROVISION,"4,306.20",Revenue,21/07/2014,Childrens
WC46-1029,REDACTED,Supplies & Services,Other Supplies & Services,62515-MISCELLANEOUS SUPPLIES,"1,428.44",Revenue,21/07/2014,Childrens
WC46-1030,REDACTED,Third Party Payments,Private Contractor Fees,74006-HOLIDAY/CHRISTMAS ALLOWANCE-FOSTER CARERS-OTH AGENCY PROVISION,"2,153.10",Revenue,21/07/2014,Childrens
WC46-1031,C P DAVIDSON & SONS LTD,Third Party Payments,Private Contractor Fees,73025-PROFESSIONAL SERVICES-PRIV CONTRACTOR & OTHER AGENCIES,353.88,Revenue,10/07/2014,Neighbourhood Services
WC46-1032,C P DAVIDSON & SONS LTD,Supplies & Services,"Equip,Furniture & Materials",60514-MATERIALS TO STORES,848.52,Revenue,01/07/2014,Neighbourhood Services
WC46-1033,C P DAVIDSON & SONS LTD,Supplies & Services,"Equip,Furniture & Materials",60514-MATERIALS TO STORES,"1,248.80",Revenue,15/07/2014,Neighbourhood Services
WC46-1034,C&S CARE SERVICES,Employees,Agency,34305-AGENCY STAFF-EMPLOYEES,383.50,Revenue,30/07/2014,Social Care & Inclusion
WC46-1035,REDACTED,Supplies & Services,Services,63000-PROFESSIONAL FEES AND SERVICES,414.00,Revenue,18/07/2014,Neighbourhood Services
WC46-1036,REDACTED,Supplies & Services,Services,63000-PROFESSIONAL FEES AND SERVICES,444.00,Revenue,18/07/2014,Neighbourhood Services
WC46-1037,REDACTED,Supplies & Services,Services,63000-PROFESSIONAL FEES AND SERVICES,582.00,Revenue,01/07/2014,Neighbourhood Services
WC46-1038,CACI  LIMITED,Supplies & Services,Services,63000-PROFESSIONAL FEES AND SERVICES,"1,187.97",Revenue,24/07/2014,Childrens
WC46-1039,CALDMORE AREA HOUSING ASS LTD,Third Party Payments,Private Contractor Fees,73373-RESIDENTIAL & NURSING CARE PLACEMENTS,265.43,Revenue,16/07/2014,Social Care & Inclusion
WC46-1040,CALDMORE AREA HOUSING ASS LTD,Third Party Payments,Private Contractor Fees,73374-SUPPORTED & OTHER ACCOMMODATION,505.30,Revenue,23/07/2014,Social Care & Inclusion
WC46-1041,CALDMORE AREA HOUSING ASS LTD,Third Party Payments,Private Contractor Fees,73374-SUPPORTED & OTHER ACCOMMODATION,721.00,Revenue,23/07/2014,Social Care & Inclusion
WC46-1042,CALDMORE AREA HOUSING ASS LTD,Third Party Payments,Private Contractor Fees,73374-SUPPORTED & OTHER ACCOMMODATION,721.00,Revenue,23/07/2014,Social Care & Inclusion
WC46-1043,CALDMORE AREA HOUSING ASS LTD,Third Party Payments,Private Contractor Fees,73374-SUPPORTED & OTHER ACCOMMODATION,721.00,Revenue,23/07/2014,Social Care & Inclusion
WC46-1044,CALDMORE AREA HOUSING ASS LTD,Third Party Payments,Private Contractor Fees,73374-SUPPORTED & OTHER ACCOMMODATION,721.00,Revenue,23/07/2014,Social Care & Inclusion
WC46-1045,CALDMORE AREA HOUSING ASS LTD,Third Party Payments,Private Contractor Fees,73374-SUPPORTED & OTHER ACCOMMODATION,721.00,Revenue,23/07/2014,Social Care & Inclusion
WC46-1046,CALDMORE AREA HOUSING ASS LTD,Third Party Payments,Private Contractor Fees,73374-SUPPORTED & OTHER ACCOMMODATION,721.00,Revenue,23/07/2014,Social Care & Inclusion
WC46-1047,CALDMORE AREA HOUSING ASS LTD,Third Party Payments,Private Contractor Fees,73374-SUPPORTED & OTHER ACCOMMODATION,721.00,Revenue,23/07/2014,Social Care & Inclusion
WC46-1048,CALDMORE AREA HOUSING ASS LTD,Third Party Payments,Private Contractor Fees,73374-SUPPORTED & OTHER ACCOMMODATION,721.00,Revenue,23/07/2014,Social Care & Inclusion
WC46-1049,CALDMORE AREA HOUSING ASS LTD,Third Party Payments,Private Contractor Fees,73374-SUPPORTED & OTHER ACCOMMODATION,721.00,Revenue,23/07/2014,Social Care & Inclusion
WC46-1050,CALDMORE AREA HOUSING ASS LTD,Third Party Payments,Private Contractor Fees,73374-SUPPORTED & OTHER ACCOMMODATION,721.00,Revenue,23/07/2014,Social Care & Inclusion
WC46-1051,CALDMORE AREA HOUSING ASS LTD,Third Party Payments,Private Contractor Fees,73374-SUPPORTED & OTHER ACCOMMODATION,721.00,Revenue,23/07/2014,Social Care & Inclusion
WC46-1052,CALDMORE AREA HOUSING ASS LTD,Third Party Payments,Private Contractor Fees,73373-RESIDENTIAL & NURSING CARE PLACEMENTS,"3,096.65",Revenue,16/07/2014,Social Care & Inclusion
WC46-1053,CALDMORE AREA HOUSING ASS LTD,Third Party Payments,Private Contractor Fees,73373-RESIDENTIAL & NURSING CARE PLACEMENTS,"3,096.65",Revenue,16/07/2014,Social Care & Inclusion
WC46-1054,CALDMORE AREA HOUSING ASS LTD,Third Party Payments,Private Contractor Fees,73373-RESIDENTIAL & NURSING CARE PLACEMENTS,"3,096.65",Revenue,16/07/2014,Social Care & Inclusion
WC46-1055,CALDMORE AREA HOUSING ASS LTD,Third Party Payments,Private Contractor Fees,73373-RESIDENTIAL & NURSING CARE PLACEMENTS,"3,096.65",Revenue,16/07/2014,Social Care & Inclusion
WC46-1056,CALDMORE AREA HOUSING ASS LTD,Third Party Payments,Private Contractor Fees,73373-RESIDENTIAL & NURSING CARE PLACEMENTS,"3,096.65",Revenue,16/07/2014,Social Care & Inclusion
WC46-1057,CALDMORE AREA HOUSING ASS LTD,Third Party Payments,Private Contractor Fees,70000-SOCIAL SERVICES-FEES TO VOLUNTARY BODIES,"15,000.00",Revenue,01/07/2014,Social Care & Inclusion
WC46-1058,CALDMORE AREA HOUSING ASS LTD,Third Party Payments,Private Contractor Fees,73365-BLOCK GROSS-SUPPORTING PEOPLE,"30,663.09",Revenue,07/07/2014,Social Care & Inclusion
WC46-1059,REDACTED,Third Party Payments,Private Contractor Fees,74006-HOLIDAY/CHRISTMAS ALLOWANCE-FOSTER CARERS-OTH AGENCY PROVISION,295.52,Revenue,07/07/2014,Childrens
WC46-1060,REDACTED,Transfer Payments,Transfer Payments,76422-DIRECT PAYMENTS TO SOCIAL SERVICES CLIENTS,287.70,Revenue,14/07/2014,Childrens
WC46-1061,CAMBIAN LEARNING DISABILITES MIDLANDS LIMITED,Transfer Payments,Transfer Payments,76010-ACCOMMODATION AND RELATED COSTS-ASSISTANCE TO S/S CLIENTS,"10,908.90",Revenue,07/07/2014,Social Care & Inclusion
WC46-1062,CAMBIAN LEARNING DISABILITES MIDLANDS LIMITED,Transfer Payments,Transfer Payments,76010-ACCOMMODATION AND RELATED COSTS-ASSISTANCE TO S/S CLIENTS,"10,908.90",Revenue,30/07/2014,Social Care & Inclusion
WC46-1063,CANAL & RIVER TRUST,Premises,Rent,43000-RENTS,"1,302.75",Revenue,15/07/2014,Neighbourhood Services
WC46-1064,CAPITA BUSINESS SERVICES LTD 001,Supplies & Services,Communications & Computing,63800-COMPUTER EQUIPMENT AND SUPPLIES,"1,150.00",Revenue,15/07/2014,Childrens
WC46-1065,CAPITA EDUCATION RESOURCING,Supplies & Services,Services,63000-PROFESSIONAL FEES AND SERVICES,"1,049.75",Revenue,08/07/2014,Resources
WC46-1066,CAPITA TREASURY SOLUTIONS LIMITED,Capital,Capital,01018-VEHICLES LEASING,150.00,Capital,11/07/2014,Leasing
WC46-1067,CAPITA TREASURY SOLUTIONS LIMITED,Supplies & Services,"Equip,Furniture & Materials",60006-NEW-FURNITURE & EQUIPMENT,350.00,Revenue,11/07/2014,Neighbourhood Services
WC46-1068,CAPITA TREASURY SOLUTIONS LIMITED,Supplies & Services,Services,63000-PROFESSIONAL FEES AND SERVICES,"4,250.00",Revenue,30/07/2014,Capital Financing
WC46-1069,CAPSTONE FOSTER CARE (SOUTH EAST) LIMITED,Third Party Payments,Private Contractor Fees,74037-INDEPENDENT FOSTER CARE-OTH AGENCY PROVISION,"1,783.36",Revenue,24/07/2014,Childrens
WC46-1070,CAPSTONE FOSTER CARE (SOUTH EAST) LIMITED,Third Party Payments,Private Contractor Fees,74037-INDEPENDENT FOSTER CARE-OTH AGENCY PROVISION,"1,844.79",Revenue,24/07/2014,Childrens
WC46-1071,CAPSTONE FOSTER CARE (SOUTH EAST) LIMITED,Third Party Payments,Private Contractor Fees,74037-INDEPENDENT FOSTER CARE-OTH AGENCY PROVISION,"2,856.34",Revenue,24/07/2014,Childrens
WC46-1072,CAPSTONE FOSTER CARE (SOUTH EAST) LIMITED,Third Party Payments,Private Contractor Fees,74037-INDEPENDENT FOSTER CARE-OTH AGENCY PROVISION,"2,856.34",Revenue,24/07/2014,Childrens
WC46-1073,CAPSTONE FOSTER CARE (SOUTH EAST) LIMITED,Third Party Payments,Private Contractor Fees,74037-INDEPENDENT FOSTER CARE-OTH AGENCY PROVISION,"3,071.35",Revenue,24/07/2014,Childrens
WC46-1074,CAPSTONE FOSTER CARE (SOUTH EAST) LIMITED,Third Party Payments,Private Contractor Fees,74037-INDEPENDENT FOSTER CARE-OTH AGENCY PROVISION,"3,098.33",Revenue,24/07/2014,Childrens
WC46-1075,CAPSTONE FOSTER CARE (SOUTH EAST) LIMITED,Third Party Payments,Private Contractor Fees,74037-INDEPENDENT FOSTER CARE-OTH AGENCY PROVISION,"3,259.34",Revenue,24/07/2014,Childrens
WC46-1076,CAPSTONE FOSTER CARE (SOUTH EAST) LIMITED,Third Party Payments,Private Contractor Fees,74037-INDEPENDENT FOSTER CARE-OTH AGENCY PROVISION,"3,780.10",Revenue,24/07/2014,Childrens
WC46-1077,CARE 2 U LIMITED,Third Party Payments,Private Contractor Fees,73372-DOMICILIARY CARE,"10,531.72",Revenue,18/07/2014,Social Care & Inclusion
WC46-1078,CARE 2 U LIMITED,Third Party Payments,Private Contractor Fees,73372-DOMICILIARY CARE,"26,244.61",Revenue,18/07/2014,Social Care & Inclusion
WC46-1079,CARE FIRST CARE HOMES LTD,Third Party Payments,Private Contractor Fees,73373-RESIDENTIAL & NURSING CARE PLACEMENTS,266.79,Revenue,16/07/2014,Social Care & Inclusion
WC46-1080,CARE FIRST CARE HOMES LTD,Third Party Payments,Private Contractor Fees,73373-RESIDENTIAL & NURSING CARE PLACEMENTS,320.14,Revenue,01/07/2014,Social Care & Inclusion
WC46-1081,CARE FIRST CARE HOMES LTD,Third Party Payments,Private Contractor Fees,73373-RESIDENTIAL & NURSING CARE PLACEMENTS,533.57,Revenue,01/07/2014,Social Care & Inclusion
WC46-1082,CARE FIRST CARE HOMES LTD,Third Party Payments,Private Contractor Fees,73372-DOMICILIARY CARE,720.00,Revenue,23/07/2014,Social Care & Inclusion
WC46-1083,CARE FIRST CARE HOMES LTD,Third Party Payments,Private Contractor Fees,73373-RESIDENTIAL & NURSING CARE PLACEMENTS,747.00,Revenue,16/07/2014,Social Care & Inclusion
WC46-1084,CARE FIRST MANAGEMENT SERVICES LTD,Third Party Payments,Private Contractor Fees,73372-DOMICILIARY CARE,780.00,Revenue,02/07/2014,Social Care & Inclusion
WC46-1085,CARE FIRST MANAGEMENT SERVICES LTD,Third Party Payments,Private Contractor Fees,73372-DOMICILIARY CARE,780.00,Revenue,22/07/2014,Social Care & Inclusion
WC46-1086,CARE FIRST MANAGEMENT SERVICES LTD,Third Party Payments,Private Contractor Fees,73374-SUPPORTED & OTHER ACCOMMODATION,"5,500.00",Revenue,02/07/2014,Social Care & Inclusion
WC46-1087,CARE FIRST MANAGEMENT SERVICES LTD,Third Party Payments,Private Contractor Fees,73374-SUPPORTED & OTHER ACCOMMODATION,"5,500.00",Revenue,22/07/2014,Social Care & Inclusion
WC46-1088,CARE LEAVERS,Third Party Payments,Private Contractor Fees,74500-CARE LEAVERS MTCE PAYMENTS,"1,973.69",Revenue,25/07/2014,Childrens
WC46-1089,CARE LEAVERS,Third Party Payments,Private Contractor Fees,74500-CARE LEAVERS MTCE PAYMENTS,"3,202.78",Revenue,30/07/2014,Childrens
WC46-1090,CARE LEAVERS,Transfer Payments,Transfer Payments,76010-ACCOMMODATION AND RELATED COSTS-ASSISTANCE TO S/S CLIENTS,"12,631.91",Revenue,30/07/2014,Childrens
WC46-1091,CARE LEAVERS,Transfer Payments,Transfer Payments,76010-ACCOMMODATION AND RELATED COSTS-ASSISTANCE TO S/S CLIENTS,"16,209.91",Revenue,25/07/2014,Childrens
WC46-1092,CARE LEAVERS,Third Party Payments,Private Contractor Fees,74500-CARE LEAVERS MTCE PAYMENTS,"17,198.74",Revenue,23/07/2014,Childrens
WC46-1093,CARE LEAVERS,Third Party Payments,Private Contractor Fees,74500-CARE LEAVERS MTCE PAYMENTS,"17,478.22",Revenue,04/07/2014,Childrens
WC46-1094,CARE SHOP,Supplies & Services,"Equip,Furniture & Materials",60520-HEALTH & SAFETY-MATERIALS,134.48,Revenue,01/07/2014,Social Care & Inclusion
WC46-1095,CARE SHOP,Supplies & Services,"Equip,Furniture & Materials",61502-PROTECTIVE CLOTHING & UNIFORM,355.40,Revenue,01/07/2014,Social Care & Inclusion
WC46-1096,CARE SHOP,Supplies & Services,"Equip,Furniture & Materials",60520-HEALTH & SAFETY-MATERIALS,366.32,Revenue,17/07/2014,Social Care & Inclusion
WC46-1097,CARE SHOP,Supplies & Services,"Equip,Furniture & Materials",60520-HEALTH & SAFETY-MATERIALS,398.50,Revenue,28/07/2014,Social Care & Inclusion
WC46-1098,CARE SHOP,Supplies & Services,"Equip,Furniture & Materials",60520-HEALTH & SAFETY-MATERIALS,441.94,Revenue,01/07/2014,Social Care & Inclusion
WC46-1099,CARE SHOP,Supplies & Services,"Equip,Furniture & Materials",60520-HEALTH & SAFETY-MATERIALS,734.48,Revenue,18/07/2014,Social Care & Inclusion
WC46-1100,CARE TODAY CHILDRENS SERVICES,Third Party Payments,Private Contractor Fees,74036-EXTERNAL RESIDENTIAL CARE-OTH AGENCY PROVISION,"10,161.60",Revenue,21/07/2014,Childrens
WC46-1101,CARE TODAY CHILDRENS SERVICES,Third Party Payments,Private Contractor Fees,74036-EXTERNAL RESIDENTIAL CARE-OTH AGENCY PROVISION,"10,500.32",Revenue,01/07/2014,Childrens
WC46-1102,CARETECH COMMUNITY SERVICE,Third Party Payments,Private Contractor Fees,74036-EXTERNAL RESIDENTIAL CARE-OTH AGENCY PROVISION,"-5,700.00",Revenue,25/07/2014,Childrens
WC46-1103,CARETECH COMMUNITY SERVICE,Third Party Payments,Private Contractor Fees,73374-SUPPORTED & OTHER ACCOMMODATION,"1,210.42",Revenue,23/07/2014,Social Care & Inclusion
WC46-1104,CARETECH COMMUNITY SERVICE,Third Party Payments,Private Contractor Fees,74036-EXTERNAL RESIDENTIAL CARE-OTH AGENCY PROVISION,"9,000.00",Revenue,25/07/2014,Childrens
WC46-1105,CAREVIEW SERVICES LTD,Third Party Payments,Private Contractor Fees,73373-RESIDENTIAL & NURSING CARE PLACEMENTS,"6,653.13",Revenue,16/07/2014,Social Care & Inclusion
WC46-1106,CARING CARE LIMITED,Third Party Payments,Private Contractor Fees,73374-SUPPORTED & OTHER ACCOMMODATION,724.50,Revenue,23/07/2014,Social Care & Inclusion
WC46-1107,CARING CARE LIMITED,Third Party Payments,Private Contractor Fees,73372-DOMICILIARY CARE,"2,094.00",Revenue,16/07/2014,Social Care & Inclusion
WC46-1108,CARING CARE LIMITED,Third Party Payments,Private Contractor Fees,73372-DOMICILIARY CARE,"38,880.45",Revenue,18/07/2014,Social Care & Inclusion
WC46-1109,CARING HANDS LIMITED,Third Party Payments,Private Contractor Fees,73372-DOMICILIARY CARE,250.00,Revenue,01/07/2014,Social Care & Inclusion
WC46-1110,CARING HANDS LIMITED,Third Party Payments,Private Contractor Fees,73372-DOMICILIARY CARE,250.00,Revenue,30/07/2014,Social Care & Inclusion
WC46-1111,CARING HANDS LIMITED,Third Party Payments,Private Contractor Fees,73372-DOMICILIARY CARE,251.00,Revenue,30/07/2014,Social Care & Inclusion
WC46-1112,CARING HANDS LIMITED,Third Party Payments,Private Contractor Fees,73372-DOMICILIARY CARE,266.00,Revenue,01/07/2014,Social Care & Inclusion
WC46-1113,CARING HANDS LIMITED,Third Party Payments,Private Contractor Fees,73372-DOMICILIARY CARE,266.00,Revenue,01/07/2014,Social Care & Inclusion
WC46-1114,CARING HANDS LIMITED,Third Party Payments,Private Contractor Fees,73372-DOMICILIARY CARE,270.50,Revenue,01/07/2014,Social Care & Inclusion
WC46-1115,CARING HANDS LIMITED,Third Party Payments,Private Contractor Fees,73372-DOMICILIARY CARE,275.00,Revenue,29/07/2014,Social Care & Inclusion
WC46-1116,CARING HANDS LIMITED,Third Party Payments,Private Contractor Fees,73372-DOMICILIARY CARE,275.50,Revenue,01/07/2014,Social Care & Inclusion
WC46-1117,CARING HANDS LIMITED,Third Party Payments,Private Contractor Fees,73372-DOMICILIARY CARE,277.50,Revenue,01/07/2014,Social Care & Inclusion
WC46-1118,CARING HANDS LIMITED,Third Party Payments,Private Contractor Fees,73372-DOMICILIARY CARE,312.50,Revenue,22/07/2014,Social Care & Inclusion
WC46-1119,CARING HANDS LIMITED,Third Party Payments,Private Contractor Fees,73372-DOMICILIARY CARE,350.00,Revenue,01/07/2014,Social Care & Inclusion
WC46-1120,CARING HANDS LIMITED,Third Party Payments,Private Contractor Fees,73372-DOMICILIARY CARE,350.00,Revenue,01/07/2014,Social Care & Inclusion
WC46-1121,CARING HANDS LIMITED,Third Party Payments,Private Contractor Fees,73372-DOMICILIARY CARE,350.00,Revenue,30/07/2014,Social Care & Inclusion
WC46-1122,CARING HANDS LIMITED,Third Party Payments,Private Contractor Fees,73372-DOMICILIARY CARE,364.00,Revenue,01/07/2014,Social Care & Inclusion
WC46-1123,CARING HANDS LIMITED,Third Party Payments,Private Contractor Fees,73372-DOMICILIARY CARE,364.00,Revenue,30/07/2014,Social Care & Inclusion
WC46-1124,CARING HANDS LIMITED,Third Party Payments,Private Contractor Fees,73372-DOMICILIARY CARE,375.00,Revenue,22/07/2014,Social Care & Inclusion
WC46-1125,CARING HANDS LIMITED,Third Party Payments,Private Contractor Fees,73372-DOMICILIARY CARE,381.00,Revenue,01/07/2014,Social Care & Inclusion
WC46-1126,CARING HANDS LIMITED,Third Party Payments,Private Contractor Fees,73372-DOMICILIARY CARE,406.00,Revenue,22/07/2014,Social Care & Inclusion
WC46-1127,CARING HANDS LIMITED,Third Party Payments,Private Contractor Fees,73372-DOMICILIARY CARE,431.00,Revenue,01/07/2014,Social Care & Inclusion
WC46-1128,CARING HANDS LIMITED,Third Party Payments,Private Contractor Fees,73372-DOMICILIARY CARE,448.00,Revenue,01/07/2014,Social Care & Inclusion
WC46-1129,CARING HANDS LIMITED,Third Party Payments,Private Contractor Fees,73372-DOMICILIARY CARE,448.00,Revenue,01/07/2014,Social Care & Inclusion
WC46-1130,CARING HANDS LIMITED,Third Party Payments,Private Contractor Fees,73372-DOMICILIARY CARE,448.00,Revenue,01/07/2014,Social Care & Inclusion
WC46-1131,CARING HANDS LIMITED,Third Party Payments,Private Contractor Fees,73372-DOMICILIARY CARE,448.00,Revenue,01/07/2014,Social Care & Inclusion
WC46-1132,CARING HANDS LIMITED,Third Party Payments,Private Contractor Fees,73372-DOMICILIARY CARE,448.00,Revenue,30/07/2014,Social Care & Inclusion
WC46-1133,CARING HANDS LIMITED,Third Party Payments,Private Contractor Fees,73372-DOMICILIARY CARE,456.00,Revenue,30/07/2014,Social Care & Inclusion
WC46-1134,CARING HANDS LIMITED,Third Party Payments,Private Contractor Fees,73372-DOMICILIARY CARE,524.50,Revenue,01/07/2014,Social Care & Inclusion
WC46-1135,CARING HANDS LIMITED,Third Party Payments,Private Contractor Fees,73372-DOMICILIARY CARE,532.50,Revenue,29/07/2014,Social Care & Inclusion
WC46-1136,CARING HANDS LIMITED,Third Party Payments,Private Contractor Fees,73372-DOMICILIARY CARE,546.00,Revenue,01/07/2014,Social Care & Inclusion
WC46-1137,CARING HANDS LIMITED,Third Party Payments,Private Contractor Fees,73372-DOMICILIARY CARE,546.00,Revenue,01/07/2014,Social Care & Inclusion
WC46-1138,CARING HANDS LIMITED,Third Party Payments,Private Contractor Fees,73372-DOMICILIARY CARE,546.00,Revenue,30/07/2014,Social Care & Inclusion
WC46-1139,CARING HANDS LIMITED,Third Party Payments,Private Contractor Fees,73372-DOMICILIARY CARE,546.00,Revenue,30/07/2014,Social Care & Inclusion
WC46-1140,CARING HANDS LIMITED,Third Party Payments,Private Contractor Fees,73372-DOMICILIARY CARE,547.50,Revenue,01/07/2014,Social Care & Inclusion
WC46-1141,CARING HANDS LIMITED,Third Party Payments,Private Contractor Fees,73372-DOMICILIARY CARE,552.00,Revenue,01/07/2014,Social Care & Inclusion
WC46-1142,CARING HANDS LIMITED,Third Party Payments,Private Contractor Fees,73372-DOMICILIARY CARE,572.00,Revenue,01/07/2014,Social Care & Inclusion
WC46-1143,CARING HANDS LIMITED,Third Party Payments,Private Contractor Fees,73372-DOMICILIARY CARE,574.00,Revenue,01/07/2014,Social Care & Inclusion
WC46-1144,CARING HANDS LIMITED,Third Party Payments,Private Contractor Fees,73372-DOMICILIARY CARE,574.00,Revenue,01/07/2014,Social Care & Inclusion
WC46-1145,CARING HANDS LIMITED,Third Party Payments,Private Contractor Fees,73372-DOMICILIARY CARE,574.00,Revenue,30/07/2014,Social Care & Inclusion
WC46-1146,CARING HANDS LIMITED,Third Party Payments,Private Contractor Fees,73372-DOMICILIARY CARE,608.50,Revenue,30/07/2014,Social Care & Inclusion
WC46-1147,CARING HANDS LIMITED,Third Party Payments,Private Contractor Fees,73372-DOMICILIARY CARE,613.50,Revenue,01/07/2014,Social Care & Inclusion
WC46-1148,CARING HANDS LIMITED,Third Party Payments,Private Contractor Fees,73372-DOMICILIARY CARE,615.00,Revenue,01/07/2014,Social Care & Inclusion
WC46-1149,CARING HANDS LIMITED,Third Party Payments,Private Contractor Fees,73372-DOMICILIARY CARE,621.50,Revenue,01/07/2014,Social Care & Inclusion
WC46-1150,CARING HANDS LIMITED,Third Party Payments,Private Contractor Fees,73372-DOMICILIARY CARE,624.00,Revenue,01/07/2014,Social Care & Inclusion
WC46-1151,CARING HANDS LIMITED,Third Party Payments,Private Contractor Fees,73372-DOMICILIARY CARE,627.00,Revenue,01/07/2014,Social Care & Inclusion
WC46-1152,CARING HANDS LIMITED,Third Party Payments,Private Contractor Fees,73372-DOMICILIARY CARE,630.50,Revenue,01/07/2014,Social Care & Inclusion
WC46-1153,CARING HANDS LIMITED,Third Party Payments,Private Contractor Fees,73372-DOMICILIARY CARE,634.50,Revenue,30/07/2014,Social Care & Inclusion
WC46-1154,CARING HANDS LIMITED,Third Party Payments,Private Contractor Fees,73372-DOMICILIARY CARE,635.00,Revenue,01/07/2014,Social Care & Inclusion
WC46-1155,CARING HANDS LIMITED,Third Party Payments,Private Contractor Fees,73372-DOMICILIARY CARE,642.00,Revenue,30/07/2014,Social Care & Inclusion
WC46-1156,CARING HANDS LIMITED,Third Party Payments,Private Contractor Fees,73372-DOMICILIARY CARE,661.50,Revenue,30/07/2014,Social Care & Inclusion
WC46-1157,CARING HANDS LIMITED,Third Party Payments,Private Contractor Fees,73372-DOMICILIARY CARE,663.00,Revenue,01/07/2014,Social Care & Inclusion
WC46-1158,CARING HANDS LIMITED,Third Party Payments,Private Contractor Fees,73372-DOMICILIARY CARE,683.50,Revenue,01/07/2014,Social Care & Inclusion
WC46-1159,CARING HANDS LIMITED,Third Party Payments,Private Contractor Fees,73372-DOMICILIARY CARE,700.00,Revenue,01/07/2014,Social Care & Inclusion
WC46-1160,CARING HANDS LIMITED,Third Party Payments,Private Contractor Fees,73372-DOMICILIARY CARE,700.00,Revenue,30/07/2014,Social Care & Inclusion
WC46-1161,CARING HANDS LIMITED,Third Party Payments,Private Contractor Fees,73372-DOMICILIARY CARE,710.50,Revenue,01/07/2014,Social Care & Inclusion
WC46-1162,CARING HANDS LIMITED,Third Party Payments,Private Contractor Fees,73372-DOMICILIARY CARE,721.00,Revenue,01/07/2014,Social Care & Inclusion
WC46-1163,CARING HANDS LIMITED,Third Party Payments,Private Contractor Fees,73372-DOMICILIARY CARE,721.00,Revenue,01/07/2014,Social Care & Inclusion
WC46-1164,CARING HANDS LIMITED,Third Party Payments,Private Contractor Fees,73372-DOMICILIARY CARE,725.50,Revenue,30/07/2014,Social Care & Inclusion
WC46-1165,CARING HANDS LIMITED,Third Party Payments,Private Contractor Fees,73372-DOMICILIARY CARE,735.50,Revenue,30/07/2014,Social Care & Inclusion
WC46-1166,CARING HANDS LIMITED,Third Party Payments,Private Contractor Fees,73372-DOMICILIARY CARE,742.00,Revenue,01/07/2014,Social Care & Inclusion
WC46-1167,CARING HANDS LIMITED,Third Party Payments,Private Contractor Fees,73372-DOMICILIARY CARE,742.00,Revenue,30/07/2014,Social Care & Inclusion
WC46-1168,CARING HANDS LIMITED,Third Party Payments,Private Contractor Fees,73372-DOMICILIARY CARE,748.50,Revenue,01/07/2014,Social Care & Inclusion
WC46-1169,CARING HANDS LIMITED,Third Party Payments,Private Contractor Fees,73372-DOMICILIARY CARE,749.00,Revenue,01/07/2014,Social Care & Inclusion
WC46-1170,CARING HANDS LIMITED,Third Party Payments,Private Contractor Fees,73372-DOMICILIARY CARE,753.00,Revenue,01/07/2014,Social Care & Inclusion
WC46-1171,CARING HANDS LIMITED,Third Party Payments,Private Contractor Fees,73372-DOMICILIARY CARE,767.00,Revenue,30/07/2014,Social Care & Inclusion
WC46-1172,CARING HANDS LIMITED,Third Party Payments,Private Contractor Fees,73372-DOMICILIARY CARE,769.00,Revenue,01/07/2014,Social Care & Inclusion
WC46-1173,CARING HANDS LIMITED,Third Party Payments,Private Contractor Fees,73372-DOMICILIARY CARE,775.88,Revenue,01/07/2014,Social Care & Inclusion
WC46-1174,CARING HANDS LIMITED,Third Party Payments,Private Contractor Fees,73372-DOMICILIARY CARE,782.00,Revenue,01/07/2014,Social Care & Inclusion
WC46-1175,CARING HANDS LIMITED,Third Party Payments,Private Contractor Fees,73372-DOMICILIARY CARE,797.13,Revenue,29/07/2014,Social Care & Inclusion
WC46-1176,CARING HANDS LIMITED,Third Party Payments,Private Contractor Fees,73372-DOMICILIARY CARE,804.50,Revenue,01/07/2014,Social Care & Inclusion
WC46-1177,CARING HANDS LIMITED,Third Party Payments,Private Contractor Fees,73372-DOMICILIARY CARE,809.00,Revenue,01/07/2014,Social Care & Inclusion
WC46-1178,CARING HANDS LIMITED,Third Party Payments,Private Contractor Fees,73372-DOMICILIARY CARE,812.00,Revenue,30/07/2014,Social Care & Inclusion
WC46-1179,CARING HANDS LIMITED,Third Party Payments,Private Contractor Fees,73372-DOMICILIARY CARE,812.00,Revenue,30/07/2014,Social Care & Inclusion
WC46-1180,CARING HANDS LIMITED,Third Party Payments,Private Contractor Fees,73372-DOMICILIARY CARE,833.00,Revenue,01/07/2014,Social Care & Inclusion
WC46-1181,CARING HANDS LIMITED,Third Party Payments,Private Contractor Fees,73372-DOMICILIARY CARE,859.00,Revenue,30/07/2014,Social Care & Inclusion
WC46-1182,CARING HANDS LIMITED,Third Party Payments,Private Contractor Fees,73372-DOMICILIARY CARE,862.00,Revenue,01/07/2014,Social Care & Inclusion
WC46-1183,CARING HANDS LIMITED,Third Party Payments,Private Contractor Fees,73372-DOMICILIARY CARE,884.00,Revenue,01/07/2014,Social Care & Inclusion
WC46-1184,CARING HANDS LIMITED,Third Party Payments,Private Contractor Fees,73372-DOMICILIARY CARE,896.00,Revenue,30/07/2014,Social Care & Inclusion
WC46-1185,CARING HANDS LIMITED,Third Party Payments,Private Contractor Fees,73372-DOMICILIARY CARE,909.00,Revenue,30/07/2014,Social Care & Inclusion
WC46-1186,CARING HANDS LIMITED,Third Party Payments,Private Contractor Fees,73372-DOMICILIARY CARE,915.00,Revenue,01/07/2014,Social Care & Inclusion
WC46-1187,CARING HANDS LIMITED,Third Party Payments,Private Contractor Fees,73372-DOMICILIARY CARE,917.00,Revenue,22/07/2014,Social Care & Inclusion
WC46-1188,CARING HANDS LIMITED,Third Party Payments,Private Contractor Fees,73372-DOMICILIARY CARE,930.00,Revenue,30/07/2014,Social Care & Inclusion
WC46-1189,CARING HANDS LIMITED,Third Party Payments,Private Contractor Fees,73372-DOMICILIARY CARE,986.00,Revenue,22/07/2014,Social Care & Inclusion
WC46-1190,CARING HANDS LIMITED,Third Party Payments,Private Contractor Fees,73372-DOMICILIARY CARE,989.50,Revenue,01/07/2014,Social Care & Inclusion
WC46-1191,CARING HANDS LIMITED,Third Party Payments,Private Contractor Fees,73372-DOMICILIARY CARE,"1,009.25",Revenue,30/07/2014,Social Care & Inclusion
WC46-1192,CARING HANDS LIMITED,Third Party Payments,Private Contractor Fees,73372-DOMICILIARY CARE,"1,092.00",Revenue,01/07/2014,Social Care & Inclusion
WC46-1193,CARING HANDS LIMITED,Third Party Payments,Private Contractor Fees,73372-DOMICILIARY CARE,"1,092.00",Revenue,01/07/2014,Social Care & Inclusion
WC46-1194,CARING HANDS LIMITED,Third Party Payments,Private Contractor Fees,73372-DOMICILIARY CARE,"1,092.00",Revenue,30/07/2014,Social Care & Inclusion
WC46-1195,CARING HANDS LIMITED,Third Party Payments,Private Contractor Fees,73372-DOMICILIARY CARE,"1,120.00",Revenue,01/07/2014,Social Care & Inclusion
WC46-1196,CARING HANDS LIMITED,Third Party Payments,Private Contractor Fees,73372-DOMICILIARY CARE,"1,120.00",Revenue,01/07/2014,Social Care & Inclusion
WC46-1197,CARING HANDS LIMITED,Third Party Payments,Private Contractor Fees,73372-DOMICILIARY CARE,"1,133.00",Revenue,01/07/2014,Social Care & Inclusion
WC46-1198,CARING HANDS LIMITED,Third Party Payments,Private Contractor Fees,73372-DOMICILIARY CARE,"1,146.00",Revenue,01/07/2014,Social Care & Inclusion
WC46-1199,CARING HANDS LIMITED,Third Party Payments,Private Contractor Fees,73372-DOMICILIARY CARE,"1,146.00",Revenue,30/07/2014,Social Care & Inclusion
WC46-1200,CARING HANDS LIMITED,Third Party Payments,Private Contractor Fees,73372-DOMICILIARY CARE,"1,192.50",Revenue,01/07/2014,Social Care & Inclusion
WC46-1201,CARING HANDS LIMITED,Third Party Payments,Private Contractor Fees,73372-DOMICILIARY CARE,"1,230.00",Revenue,30/07/2014,Social Care & Inclusion
WC46-1202,CARING HANDS LIMITED,Third Party Payments,Private Contractor Fees,73372-DOMICILIARY CARE,"1,240.25",Revenue,01/07/2014,Social Care & Inclusion
WC46-1203,CARING HANDS LIMITED,Third Party Payments,Private Contractor Fees,73372-DOMICILIARY CARE,"1,260.00",Revenue,01/07/2014,Social Care & Inclusion
WC46-1204,CARING HANDS LIMITED,Third Party Payments,Private Contractor Fees,73372-DOMICILIARY CARE,"1,265.00",Revenue,01/07/2014,Social Care & Inclusion
WC46-1205,CARING HANDS LIMITED,Third Party Payments,Private Contractor Fees,73372-DOMICILIARY CARE,"1,275.00",Revenue,30/07/2014,Social Care & Inclusion
WC46-1206,CARING HANDS LIMITED,Third Party Payments,Private Contractor Fees,73372-DOMICILIARY CARE,"1,338.00",Revenue,01/07/2014,Social Care & Inclusion
WC46-1207,CARING HANDS LIMITED,Third Party Payments,Private Contractor Fees,73372-DOMICILIARY CARE,"1,344.00",Revenue,01/07/2014,Social Care & Inclusion
WC46-1208,CARING HANDS LIMITED,Third Party Payments,Private Contractor Fees,73372-DOMICILIARY CARE,"1,453.50",Revenue,30/07/2014,Social Care & Inclusion
WC46-1209,CARING HANDS LIMITED,Third Party Payments,Private Contractor Fees,73372-DOMICILIARY CARE,"1,456.00",Revenue,01/07/2014,Social Care & Inclusion
WC46-1210,CARING HANDS LIMITED,Third Party Payments,Private Contractor Fees,73372-DOMICILIARY CARE,"1,456.00",Revenue,01/07/2014,Social Care & Inclusion
WC46-1211,CARING HANDS LIMITED,Third Party Payments,Private Contractor Fees,73372-DOMICILIARY CARE,"1,484.00",Revenue,01/07/2014,Social Care & Inclusion
WC46-1212,CARING HANDS LIMITED,Third Party Payments,Private Contractor Fees,73372-DOMICILIARY CARE,"1,484.00",Revenue,01/07/2014,Social Care & Inclusion
WC46-1213,CARING HANDS LIMITED,Third Party Payments,Private Contractor Fees,73372-DOMICILIARY CARE,"1,484.00",Revenue,01/07/2014,Social Care & Inclusion
WC46-1214,CARING HANDS LIMITED,Third Party Payments,Private Contractor Fees,73372-DOMICILIARY CARE,"1,484.00",Revenue,30/07/2014,Social Care & Inclusion
